Workbook

Sheet TOT-1015
B2: ANEXO I al Memorandum D.T.E.E. N° 356 / 2017
A4: ENTE NACIONAL REGULADOR
A5: DE LA ELECTRICIDAD
B7: SISTEMA DE TRANSPORTE DE ENERGÍA ELÉCTRICA POR DISTRIBUCIÓN TRONCAL
B9: TRANSNOA S.A.
B11: TOTAL DE PENALIZACIONES
B13: 1
B14: Desde el 01 al 31 de octubre de 2015
B16: Sanciones duplicadas por tasa de falla > 4 Sal. x año/100km.
C18: 1.- | D18: LÍNEAS
D19: 1.1.- | E19: Equipamiento propio | J19: ='LI-10 (2)'!AA43 -> 381972.31
E20: 1.1.1.- | F20: Equipamiento propio incendio | J20: =Incendio!AA29 -> 16867.57
C22: 2.- | D22: CONEXIÓN
D23: 2.1.- | E23: Transformación
E24: 2.1.1.- | F24: Equipamiento propio | J24: ='T-10 (2)'!AC48 -> 27995.89
D26: 2.2.- | E26: Salidas
E27: 2.2.1.- | F27: Equipamiento propio | J27: ='SA-10 (1)'!V44 -> 1084.71
G31: TOTAL | H31: =SUM(J18:J29) -> 427920.48
C33: Valores remuneratorios según Acuerdo SE - ENRE -TRANSNOA 2016-2017

Sheet LI-10 (1)
B2: =+'TOT-1015'!B2 -> ANEXO I al Memorandum D.T.E.E. N° 356 / 2017
A4: ENTE NACIONAL REGULADOR
A5: DE LA ELECTRICIDAD
F8: SISTEMA DE TRANSPORTE DE ENERGÍA ELÉCTRICA POR DISTRIBUCIÓN TRONCAL - TRANSNOA S.A.
F10: 1.- LÍNEAS
F12: 1.1.- Equipamiento propio
B14: ='TOT-1015'!B14 -> Desde el 01 al 31 de octubre de 2015
F16: $/100 km-h : LINEAS 132 kV | G16: 514.204 | K16: FACTOR DE PENALIZACION K = | L16: =30*'TOT-1015'!B13 -> 30 | M16: =IF(L16=30," ",IF(L16=60,"Coeficiente duplicado por tasa de falla >4 Sal. x año/100 km.","REVISAR COEFICIENTE")) -> 
C17: 3 | D17: 4 | E17: 5 | F17: 6 | G17: 7 | H17: 8 | I17: 9 | J17: 10 | K17: 11 | L17: 12 | M17: 13 | N17: 14 | O17: 15 | P17: 16 | Q17: 17 | R17: 18 | S17: 19 | T17: 20 | U17: 21 | V17: 22 | W17: 23 | X17: 24 | Y17: 25 | Z17: 26 | AA17: 27
C18: N° | D18: INDISP | E18: ID EQUIPO | F18: LÍNEAS | G18: U [kV] | H18: Long. [km] | I18: $/h | J18: Salida | K18: Entrada | L18: Hs. Indisp | M18: Minutos Indisp. | N18: Tipo Sal.(²) | O18: C.R. % | P18: PENALIZ. PROGRAM. | Q18: REDUCC. PROGRAM. | R18: PENALIZACION FORZADA Por Salida 1ras. 3 hs. hs. Restantes | U18: REDUCC. FORZADA Por Salida 1ras. 3 hs. hs. Restantes | X18: RESTANTE FORZADA | Y18: REDUCC. RESTANTE | Z18: Informó en Térm. | AA18: TOTAL PENALIZAC.
C21: 1 | D21: 292905 | E21: 5565 | F21: SANTIAGO CENTRO - SANTIAGO ESTE | G21: 132 | H21: 10.66 | I21: =$G$16/100*IF(H21>25,H21,25) -> 128.551 | J21: 2015-10-02T08:31:00 | K21: 2015-10-02T13:03:00 | L21: =IF(F21="","",(K21-J21)*24) -> 4.533333333 | M21: =IF(F21="","",ROUND((K21-J21)*24*60,0)) -> 272 | N21: P | O21: =IF(F21="","","--") -> -- | P21: =IF(N21="P",ROUND(M21/60,2)*I21*$L$16*0.01,"--") -> 174.700809 | Q21: =IF(N21="RP",I21*O21*ROUND(L21/60,2)*0.01*M21/100,"--") -> -- | R21: =IF(N21="F",I21*$L$16,"--") -> -- | S21: =IF(AND(M21>10,N21="F"),I21*$L$16*IF(M21>180,3,ROUND((M21)/60,2)),"--") -> -- | T21: =IF(AND(M21>180,N21="F"),(ROUND(M21/60,2)-3)*I21*$L$16*0.1,"--") -> -- | U21: =IF(N21="R",I21*$L$16*O21/100,"--") -> -- | V21: =IF(AND(M21>10,N21="R"),I21*$L$16*O21/100*IF(M21>180,3,ROUND(M21/60,2)),"--") -> -- | W21: =IF(AND(M21>180,N21="R"),(ROUND(M21/60,2)-3)*I21*$L$16*0.1*O21/100,"--") -> -- | X21: =IF(N21="RF",ROUND(M21/60,2)*I21*$L$16*0.1,"--") -> -- | Y21: =IF(N21="RR",ROUND(M21/60,2)*I21*$L$16*0.1*O21/100,"--") -> -- | Z21: SI | AA21: =IF(F21="","",SUM(P21:Y21)*IF(Z21="SI",1,2)) -> 174.700809
C24: 4 | D24: 292995 | E24: 5513 | F24: CAMPO GALLO - COPO | G24: 132 | H24: 90 | I24: 462.7836 | J24: 2015-10-07T13:11:00 | K24: 2015-10-07T19:54:00 | L24: 6.716666667 | M24: 403 | N24: P | O24: -- | P24: 932.9717376 | Q24: -- | R24: -- | S24: -- | T24: -- | U24: -- | V24: -- | W24: -- | X24: -- | Y24: -- | Z24: SI | AA24: 932.9717376
C25: 5 | D25: 292996 | E25: 5512 | F25: QUIMILI - CAMPO GALLO | G25: 132 | H25: 140 | I25: 719.8856 | J25: 2015-10-07T13:11:00 | K25: 2015-10-07T19:54:00 | L25: 6.716666667 | M25: 403 | N25: P | O25: -- | P25: 1451.28937 | Q25: -- | R25: -- | S25: -- | T25: -- | U25: -- | V25: -- | W25: -- | X25: -- | Y25: -- | Z25: SI | AA25: 1451.28937
C26: 6 | D26: 293003 | E26: 4691 | F26: VILLA QUINTEROS - ANDALGALA | G26: 132 | H26: 102 | I26: 524.48808 | J26: 2015-10-07T18:36:00 | K26: 2015-10-08T00:58:00 | L26: 6.366666667 | M26: 382 | N26: F | O26: -- | P26: -- | Q26: -- | R26: 15734.6424 | S26: 47203.9272 | T26: 5302.574489 | U26: -- | V26: -- | W26: -- | X26: -- | Y26: -- | Z26: SI | AA26: 68241.14409
C27: 7 | D27: 293041 | E27: 4691 | F27: VILLA QUINTEROS - ANDALGALA | G27: 132 | H27: 102 | I27: 524.48808 | J27: 2015-10-11T10:56:00 | K27: 2015-10-11T11:35:00 | L27: 0.65 | M27: 39 | N27: F | O27: -- | P27: -- | Q27: -- | R27: 15734.6424 | S27: 10227.51756 | T27: -- | U27: -- | V27: -- | W27: -- | X27: -- | Y27: -- | Z27: SI | AA27: 25962.15996
C28: 8 | D28: 293070 | E28: 4251 | F28: PAMPA GRANDE - CAFAYATE | G28: 132 | H28: 63 | I28: 323.94852 | J28: 2015-10-11T17:40:00 | K28: 2015-10-12T00:42:00 | L28: 7.033333333 | M28: 422 | N28: F | O28: -- | P28: -- | Q28: -- | R28: 9718.4556 | S28: 29155.3668 | T28: 3916.537607 | U28: -- | V28: -- | W28: -- | X28: -- | Y28: -- | Z28: SI | AA28: 42790.36001
C29: 9 | D29: 293283 | E29: 4251 | F29: PAMPA GRANDE - CAFAYATE | G29: 132 | H29: 63 | I29: 323.94852 | J29: 2015-10-12T08:47:00 | K29: 2015-10-12T09:34:00 | L29: 0.7833333333 | M29: 47 | N29: F | O29: -- | P29: -- | Q29: -- | R29: 9718.4556 | S29: 7580.395368 | T29: -- | U29: -- | V29: -- | W29: -- | X29: -- | Y29: -- | Z29: SI | AA29: 17298.85097
C30: 10 | D30: 293286 | E30: 5554 | F30: STGO CENTRO - FERNANDEZ - SUNCHO CORRAL | G30: 132 | H30: 103 | I30: 529.63012 | J30: 2015-10-13T10:52:00 | K30: 2015-10-13T12:50:00 | L30: 1.966666667 | M30: 118 | N30: P | O30: -- | P30: 313.0114009 | Q30: -- | R30: -- | S30: -- | T30: -- | U30: -- | V30: -- | W30: -- | X30: -- | Y30: -- | Z30: SI | AA30: 313.0114009
C31: 11 | D31: 293288 | E31: 5513 | F31: CAMPO GALLO - COPO | G31: 132 | H31: 90 | I31: 462.7836 | J31: 2015-10-14T09:00:00 | K31: 2015-10-14T17:03:00 | L31: 8.05 | M31: 483 | N31: P | O31: -- | P31: 1117.622394 | Q31: -- | R31: -- | S31: -- | T31: -- | U31: -- | V31: -- | W31: -- | X31: -- | Y31: -- | Z31: SI | AA31: 1117.622394
C32: 12 | D32: 293289 | E32: 272 | F32: AGUILARES - ESCABA | G32: 132 | H32: 27.60000038 | I32: 141.920306 | J32: 2015-10-14T09:23:00 | K32: 2015-10-14T16:39:00 | L32: 7.266666667 | M32: 436 | N32: P | O32: -- | P32: 309.5281873 | Q32: -- | R32: -- | S32: -- | T32: -- | U32: -- | V32: -- | W32: -- | X32: -- | Y32: -- | Z32: NO | AA32: 619.0563746
C33: 13 | D33: 293294 | E33: 4251 | F33: PAMPA GRANDE - CAFAYATE | G33: 132 | H33: 63 | I33: 323.94852 | J33: 2015-10-14T16:09:00 | K33: 2015-10-14T17:38:00 | L33: 1.483333333 | M33: 89 | N33: F | O33: -- | P33: -- | Q33: -- | R33: 9718.4556 | S33: 14383.31429 | T33: -- | U33: -- | V33: -- | W33: -- | X33: -- | Y33: -- | Z33: SI | AA33: 24101.76989
C34: 14 | D34: 293301 | E34: 5513 | F34: CAMPO GALLO - COPO | G34: 132 | H34: 90 | I34: 462.7836 | J34: 2015-10-15T09:29:00 | K34: 2015-10-15T16:31:00 | L34: 7.033333333 | M34: 422 | N34: P | O34: -- | P34: 976.0106124 | Q34: -- | R34: -- | S34: -- | T34: -- | U34: -- | V34: -- | W34: -- | X34: -- | Y34: -- | Z34: SI | AA34: 976.0106124
C35: 15 | D35: 293306 | E35: 5554 | F35: STGO CENTRO - FERNANDEZ - SUNCHO CORRAL | G35: 132 | H35: 103 | I35: 529.63012 | J35: 2015-10-17T06:20:00 | K35: 2015-10-17T10:25:00 | L35: 4.083333333 | M35: 245 | N35: P | O35: -- | P35: 648.2672669 | Q35: -- | R35: -- | S35: -- | T35: -- | U35: -- | V35: -- | W35: -- | X35: -- | Y35: -- | Z35: SI | AA35: 648.2672669
C36: 16 | D36: 293307 | E36: 5565 | F36: SANTIAGO CENTRO - SANTIAGO ESTE | G36: 132 | H36: 10.66 | I36: 128.551 | J36: 2015-10-17T06:24:00 | K36: 2015-10-17T10:24:00 | L36: =IF(F36="","",(K36-J36)*24) -> 4 | M36: =IF(F36="","",ROUND((K36-J36)*24*60,0)) -> 240 | N36: P | O36: =IF(F36="","","--") -> -- | P36: =IF(N36="P",ROUND(M36/60,2)*I36*$L$16*0.01,"--") -> 154.2612 | Q36: =IF(N36="RP",I36*O36*ROUND(L36/60,2)*0.01*M36/100,"--") -> -- | R36: =IF(N36="F",I36*$L$16,"--") -> -- | S36: =IF(AND(M36>10,N36="F"),I36*$L$16*IF(M36>180,3,ROUND((M36)/60,2)),"--") -> -- | T36: =IF(AND(M36>180,N36="F"),(ROUND(M36/60,2)-3)*I36*$L$16*0.1,"--") -> -- | U36: =IF(N36="R",I36*$L$16*O36/100,"--") -> -- | V36: =IF(AND(M36>10,N36="R"),I36*$L$16*O36/100*IF(M36>180,3,ROUND(M36/60,2)),"--") -> -- | W36: =IF(AND(M36>180,N36="R"),(ROUND(M36/60,2)-3)*I36*$L$16*0.1*O36/100,"--") -> -- | X36: =IF(N36="RF",ROUND(M36/60,2)*I36*$L$16*0.1,"--") -> -- | Y36: =IF(N36="RR",ROUND(M36/60,2)*I36*$L$16*0.1*O36/100,"--") -> -- | Z36: SI | AA36: =IF(F36="","",SUM(P36:Y36)*IF(Z36="SI",1,2)) -> 154.2612
C37: 17 | D37: 293308 | E37: 4483 | F37: SANTIAGO SUR - SANTIAGO CENTRO | G37: 132 | H37: 4 | I37: 128.551 | J37: 2015-10-17T06:24:00 | K37: 2015-10-17T10:22:00 | L37: =IF(F37="","",(K37-J37)*24) -> 3.966666666 | M37: =IF(F37="","",ROUND((K37-J37)*24*60,0)) -> 238 | N37: P | O37: =IF(F37="","","--") -> -- | P37: =IF(N37="P",ROUND(M37/60,2)*I37*$L$16*0.01,"--") -> 153.104241 | Q37: =IF(N37="RP",I37*O37*ROUND(L37/60,2)*0.01*M37/100,"--") -> -- | R37: =IF(N37="F",I37*$L$16,"--") -> -- | S37: =IF(AND(M37>10,N37="F"),I37*$L$16*IF(M37>180,3,ROUND((M37)/60,2)),"--") -> -- | T37: =IF(AND(M37>180,N37="F"),(ROUND(M37/60,2)-3)*I37*$L$16*0.1,"--") -> -- | U37: =IF(N37="R",I37*$L$16*O37/100,"--") -> -- | V37: =IF(AND(M37>10,N37="R"),I37*$L$16*O37/100*IF(M37>180,3,ROUND(M37/60,2)),"--") -> -- | W37: =IF(AND(M37>180,N37="R"),(ROUND(M37/60,2)-3)*I37*$L$16*0.1*O37/100,"--") -> -- | X37: =IF(N37="RF",ROUND(M37/60,2)*I37*$L$16*0.1,"--") -> -- | Y37: =IF(N37="RR",ROUND(M37/60,2)*I37*$L$16*0.1*O37/100,"--") -> -- | Z37: SI | AA37: =IF(F37="","",SUM(P37:Y37)*IF(Z37="SI",1,2)) -> 153.104241
C38: 18 | D38: 293469 | E38: 5296 | F38: LA BANDA ESTE - LA BANDA | G38: 132 | H38: 15.2 | I38: 128.551 | J38: 2015-10-21T08:11:00 | K38: 2015-10-21T14:04:00 | L38: =IF(F38="","",(K38-J38)*24) -> 5.883333333 | M38: =IF(F38="","",ROUND((K38-J38)*24*60,0)) -> 353 | N38: P | O38: =IF(F38="","","--") -> -- | P38: =IF(N38="P",ROUND(M38/60,2)*I38*$L$16*0.01,"--") -> 226.763964 | Q38: =IF(N38="RP",I38*O38*ROUND(L38/60,2)*0.01*M38/100,"--") -> -- | R38: =IF(N38="F",I38*$L$16,"--") -> -- | S38: =IF(AND(M38>10,N38="F"),I38*$L$16*IF(M38>180,3,ROUND((M38)/60,2)),"--") -> -- | T38: =IF(AND(M38>180,N38="F"),(ROUND(M38/60,2)-3)*I38*$L$16*0.1,"--") -> -- | U38: =IF(N38="R",I38*$L$16*O38/100,"--") -> -- | V38: =IF(AND(M38>10,N38="R"),I38*$L$16*O38/100*IF(M38>180,3,ROUND(M38/60,2)),"--") -> -- | W38: =IF(AND(M38>180,N38="R"),(ROUND(M38/60,2)-3)*I38*$L$16*0.1*O38/100,"--") -> -- | X38: =IF(N38="RF",ROUND(M38/60,2)*I38*$L$16*0.1,"--") -> -- | Y38: =IF(N38="RR",ROUND(M38/60,2)*I38*$L$16*0.1*O38/100,"--") -> -- | Z38: SI | AA38: =IF(F38="","",SUM(P38:Y38)*IF(Z38="SI",1,2)) -> 226.763964
C40: (²) | D40: P - PROGRAMADA ; F - FORZADA | P40: =SUM(P19:P39) -> 6457.531183 | Q40: 0 | R40: 60624.6516 | S40: 108550.5212 | T40: 9219.112096 | U40: 0 | V40: 0 | W40: 0 | X40: 0 | Y40: 0 | AA40: =ROUND(SUM(AA19:AA39),2) -> 185161.34

Sheet LI-10 (2)
B2: =+'TOT-1015'!B2 -> ANEXO I al Memorandum D.T.E.E. N° 356 / 2017
A4: ENTE NACIONAL REGULADOR
A5: DE LA ELECTRICIDAD
F8: SISTEMA DE TRANSPORTE DE ENERGÍA ELÉCTRICA POR DISTRIBUCIÓN TRONCAL - TRANSNOA S.A.
F10: 1.- LÍNEAS
F12: 1.1.- Equipamiento propio
B14: ='TOT-1015'!B14 -> Desde el 01 al 31 de octubre de 2015
F16: $/100 km-h : LINEAS 132 kV | G16: 514.204 | K16: FACTOR DE PENALIZACION K = | L16: =30*'TOT-1015'!B13 -> 30 | M16: =IF(L16=30," ",IF(L16=60,"Coeficiente duplicado por tasa de falla >4 Sal. x año/100 km.","REVISAR COEFICIENTE")) -> 
C17: 3 | D17: 4 | E17: 5 | F17: 6 | G17: 7 | H17: 8 | I17: 9 | J17: 10 | K17: 11 | L17: 12 | M17: 13 | N17: 14 | O17: 15 | P17: 16 | Q17: 17 | R17: 18 | S17: 19 | T17: 20 | U17: 21 | V17: 22 | W17: 23 | X17: 24 | Y17: 25 | Z17: 26 | AA17: 27
C18: N° | D18: INDISP | E18: ID EQUIPO | F18: LÍNEAS | G18: U [kV] | H18: Long. [km] | I18: $/h | J18: Salida | K18: Entrada | L18: Hs. Indisp | M18: Minutos Indisp. | N18: Tipo Sal.(²) | O18: C.R. % | P18: PENALIZ. PROGRAM. | Q18: REDUCC. PROGRAM. | R18: PENALIZACION FORZADA Por Salida 1ras. 3 hs. hs. Restantes | U18: REDUCC. FORZADA Por Salida 1ras. 3 hs. hs. Restantes | X18: RESTANTE FORZADA | Y18: REDUCC. RESTANTE | Z18: Informó en Térm. | AA18: TOTAL PENALIZAC.
AA19: ='LI-10 (1)'!AA40 -> 185161.34
C21: 19 | D21: 293471 | E21: 272 | F21: AGUILARES - ESCABA | G21: 132 | H21: 27.60000038 | I21: =$G$16/100*IF(H21>25,H21,25) -> 141.920306 | J21: 2015-10-21T09:54:00 | K21: 2015-10-21T18:14:00 | L21: =IF(F21="","",(K21-J21)*24) -> 8.333333333 | M21: =IF(F21="","",ROUND((K21-J21)*24*60,0)) -> 500 | N21: P | O21: =IF(F21="","","--") -> -- | P21: =IF(N21="P",ROUND(M21/60,2)*I21*$L$16*0.01,"--") -> 354.6588446 | Q21: =IF(N21="RP",I21*O21*ROUND(L21/60,2)*0.01*M21/100,"--") -> -- | R21: =IF(N21="F",I21*$L$16,"--") -> -- | S21: =IF(AND(M21>10,N21="F"),I21*$L$16*IF(M21>180,3,ROUND((M21)/60,2)),"--") -> -- | T21: =IF(AND(M21>180,N21="F"),(ROUND(M21/60,2)-3)*I21*$L$16*0.1,"--") -> -- | U21: =IF(N21="R",I21*$L$16*O21/100,"--") -> -- | V21: =IF(AND(M21>10,N21="R"),I21*$L$16*O21/100*IF(M21>180,3,ROUND(M21/60,2)),"--") -> -- | W21: =IF(AND(M21>180,N21="R"),(ROUND(M21/60,2)-3)*I21*$L$16*0.1*O21/100,"--") -> -- | X21: =IF(N21="RF",ROUND(M21/60,2)*I21*$L$16*0.1,"--") -> -- | Y21: =IF(N21="RR",ROUND(M21/60,2)*I21*$L$16*0.1*O21/100,"--") -> -- | Z21: SI | AA21: =IF(F21="","",SUM(P21:Y21)*IF(Z21="SI",1,2)) -> 354.6588446
C22: 20 | D22: 293473 | E22: 5554 | F22: STGO CENTRO - FERNANDEZ - SUNCHO CORRAL | G22: 132 | H22: 103 | I22: =$G$16/100*IF(H22>25,H22,25) -> 529.63012 | J22: 2015-10-22T08:23:00 | K22: 2015-10-22T11:38:00 | L22: =IF(F22="","",(K22-J22)*24) -> 3.25 | M22: =IF(F22="","",ROUND((K22-J22)*24*60,0)) -> 195 | N22: P | O22: =IF(F22="","","--") -> -- | P22: =IF(N22="P",ROUND(M22/60,2)*I22*$L$16*0.01,"--") -> 516.389367 | Q22: =IF(N22="RP",I22*O22*ROUND(L22/60,2)*0.01*M22/100,"--") -> -- | R22: =IF(N22="F",I22*$L$16,"--") -> -- | S22: =IF(AND(M22>10,N22="F"),I22*$L$16*IF(M22>180,3,ROUND((M22)/60,2)),"--") -> -- | T22: =IF(AND(M22>180,N22="F"),(ROUND(M22/60,2)-3)*I22*$L$16*0.1,"--") -> -- | U22: =IF(N22="R",I22*$L$16*O22/100,"--") -> -- | V22: =IF(AND(M22>10,N22="R"),I22*$L$16*O22/100*IF(M22>180,3,ROUND(M22/60,2)),"--") -> -- | W22: =IF(AND(M22>180,N22="R"),(ROUND(M22/60,2)-3)*I22*$L$16*0.1*O22/100,"--") -> -- | X22: =IF(N22="RF",ROUND(M22/60,2)*I22*$L$16*0.1,"--") -> -- | Y22: =IF(N22="RR",ROUND(M22/60,2)*I22*$L$16*0.1*O22/100,"--") -> -- | Z22: SI | AA22: =IF(F22="","",SUM(P22:Y22)*IF(Z22="SI",1,2)) -> 516.389367
C23: 21 | D23: 293474 | E23: 272 | F23: AGUILARES - ESCABA | G23: 132 | H23: 27.60000038 | I23: 141.920306 | J23: 2015-10-22T09:52:00 | K23: 2015-10-22T17:09:00 | L23: 7.283333333 | M23: 437 | N23: P | O23: -- | P23: 309.9539482 | Q23: -- | R23: -- | S23: -- | T23: -- | U23: -- | V23: -- | W23: -- | X23: -- | Y23: -- | Z23: SI | AA23: 309.9539482
C24: 22 | D24: 293475 | E24: 272 | F24: AGUILARES - ESCABA | G24: 132 | H24: 27.60000038 | I24: 141.920306 | J24: 2015-10-23T10:25:00 | K24: 2015-10-23T17:24:00 | L24: 6.983333333 | M24: 419 | N24: P | O24: -- | P24: 297.1811207 | Q24: -- | R24: -- | S24: -- | T24: -- | U24: -- | V24: -- | W24: -- | X24: -- | Y24: -- | Z24: SI | AA24: 297.1811207
C25: 23 | D25: 293971 | E25: 5295 | F25: EL BRACHO - LA BANDA ESTE | G25: 132 | H25: 140.9 | I25: 724.513436 | J25: 2015-10-26T18:12:00 | K25: 2015-10-27T01:36:00 | L25: 7.4 | M25: 444 | N25: F | O25: -- | P25: -- | Q25: -- | R25: 21735.40308 | S25: 65206.20924 | T25: 9563.577355 | U25: -- | V25: -- | W25: -- | X25: -- | Y25: -- | Z25: SI | AA25: 96505.18968
C26: 24 | D26: 293994 | E26: 272 | F26: AGUILARES - ESCABA | G26: 132 | H26: 27.60000038 | I26: 141.920306 | J26: 2015-10-27T10:20:00 | K26: 2015-10-27T16:20:00 | L26: 6 | M26: 360 | N26: P | O26: -- | P26: 255.4565507 | Q26: -- | R26: -- | S26: -- | T26: -- | U26: -- | V26: -- | W26: -- | X26: -- | Y26: -- | Z26: SI | AA26: 255.4565507
C27: 25 | D27: 293995 | E27: 4803 | F27: J. V. GONZALEZ - APOLINARIO SARAVIA | G27: 132 | H27: 94 | I27: 483.35176 | J27: 2015-10-27T10:21:00 | K27: 2015-10-27T17:20:00 | L27: 6.983333333 | M27: 419 | N27: F | O27: -- | P27: =IF(N27="P",ROUND(M27/60,2)*I27*$L$16*0.01,"--") -> -- | Q27: =IF(N27="RP",I27*O27*ROUND(L27/60,2)*0.01*M27/100,"--") -> -- | R27: =IF(N27="F",I27*$L$16,"--") -> 14500.5528 | S27: =IF(AND(M27>10,N27="F"),I27*$L$16*IF(M27>180,3,ROUND((M27)/60,2)),"--") -> 43501.6584 | T27: =IF(AND(M27>180,N27="F"),(ROUND(M27/60,2)-3)*I27*$L$16*0.1,"--") -> 5771.220014 | U27: =IF(N27="R",I27*$L$16*O27/100,"--") -> -- | V27: =IF(AND(M27>10,N27="R"),I27*$L$16*O27/100*IF(M27>180,3,ROUND(M27/60,2)),"--") -> -- | W27: =IF(AND(M27>180,N27="R"),(ROUND(M27/60,2)-3)*I27*$L$16*0.1*O27/100,"--") -> -- | X27: =IF(N27="RF",ROUND(M27/60,2)*I27*$L$16*0.1,"--") -> -- | Y27: =IF(N27="RR",ROUND(M27/60,2)*I27*$L$16*0.1*O27/100,"--") -> -- | Z27: SI | AA27: =IF(F27="","",SUM(P27:Y27)*IF(Z27="SI",1,2)) -> 63773.43121
C28: 26 | D28: 294000 | E28: 5541 | F28: SANTIAGO - SANTIAGO SUR | G28: 132 | H28: 8.4 | I28: 128.551 | J28: 2015-10-28T06:31:00 | K28: 2015-10-28T09:39:00 | L28: 3.133333333 | M28: 188 | N28: F | O28: -- | P28: -- | Q28: -- | R28: 3856.53 | S28: 11569.59 | T28: 50.13489 | U28: -- | V28: -- | W28: -- | X28: -- | Y28: -- | Z28: SI | AA28: 15476.25489
C29: 27 | D29: 294006 | E29: 5513 | F29: CAMPO GALLO - COPO | G29: 132 | H29: 90 | I29: 462.7836 | J29: 2015-10-28T09:53:00 | K29: 2015-10-28T15:51:00 | L29: 5.966666667 | M29: 358 | N29: P | O29: -- | P29: 828.8454276 | Q29: -- | R29: -- | S29: -- | T29: -- | U29: -- | V29: -- | W29: -- | X29: -- | Y29: -- | Z29: SI | AA29: 828.8454276
C30: 28 | D30: 294008 | E30: 5513 | F30: CAMPO GALLO - COPO | G30: 132 | H30: 90 | I30: 462.7836 | J30: 2015-10-29T08:33:00 | K30: 2015-10-29T16:36:00 | L30: 8.05 | M30: 483 | N30: P | O30: -- | P30: 1117.622394 | Q30: -- | R30: -- | S30: -- | T30: -- | U30: -- | V30: -- | W30: -- | X30: -- | Y30: -- | Z30: SI | AA30: 1117.622394
C31: 29 | D31: 294012 | E31: 4902 | F31: ANDALGALA - SAUJIL | G31: 132 | H31: 76 | I31: 390.79504 | J31: 2015-10-29T19:47:00 | K31: 2015-10-29T20:15:00 | L31: 0.4666666666 | M31: 28 | N31: F | O31: -- | P31: -- | Q31: -- | R31: 11723.8512 | S31: 5510.210064 | T31: -- | U31: -- | V31: -- | W31: -- | X31: -- | Y31: -- | Z31: SI | AA31: 17234.06126
C32: 30 | D32: 294019 | E32: 5483 | F32: TERMAS NORTE - RIO HONDO | G32: 132 | H32: 5.8 | I32: 128.551 | J32: 2015-10-30T09:09:00 | K32: 2015-10-30T12:50:00 | L32: 3.683333333 | M32: 221 | N32: P | O32: -- | P32: 141.920304 | Q32: -- | R32: -- | S32: -- | T32: -- | U32: -- | V32: -- | W32: -- | X32: -- | Y32: -- | Z32: SI | AA32: 141.920304
I34: 128.551 | P34: -- | Q34: -- | R34: -- | S34: -- | T34: -- | U34: -- | V34: -- | W34: -- | X34: -- | Y34: -- | Z34: =IF(F34="","","SI") -> 
I35: 128.551 | P35: -- | Q35: -- | R35: -- | S35: -- | T35: -- | U35: -- | V35: -- | W35: -- | X35: -- | Y35: --
I36: 128.551 | P36: -- | Q36: -- | R36: -- | S36: -- | T36: -- | U36: -- | V36: -- | W36: -- | X36: -- | Y36: --
I37: 128.551 | P37: -- | Q37: -- | R37: -- | S37: -- | T37: -- | U37: -- | V37: -- | W37: -- | X37: -- | Y37: --
I38: 128.551 | P38: -- | Q38: -- | R38: -- | S38: -- | T38: -- | U38: -- | V38: -- | W38: -- | X38: -- | Y38: --
I39: 128.551 | L39: =IF(F39="","",(K39-J39)*24) ->  | M39: =IF(F39="","",ROUND((K39-J39)*24*60,0)) ->  | O39: =IF(F39="","","--") ->  | P39: =IF(N39="P",ROUND(M39/60,2)*I39*$L$16*0.01,"--") -> -- | Q39: =IF(N39="RP",I39*O39*ROUND(L39/60,2)*0.01*M39/100,"--") -> -- | R39: =IF(N39="F",I39*$L$16,"--") -> -- | S39: =IF(AND(M39>10,N39="F"),I39*$L$16*IF(M39>180,3,ROUND((M39)/60,2)),"--") -> -- | T39: =IF(AND(M39>180,N39="F"),(ROUND(M39/60,2)-3)*I39*$L$16*0.1,"--") -> -- | U39: =IF(N39="R",I39*$L$16*O39/100,"--") -> -- | V39: =IF(AND(M39>10,N39="R"),I39*$L$16*O39/100*IF(M39>180,3,ROUND(M39/60,2)),"--") -> -- | W39: =IF(AND(M39>180,N39="R"),(ROUND(M39/60,2)-3)*I39*$L$16*0.1*O39/100,"--") -> -- | X39: =IF(N39="RF",ROUND(M39/60,2)*I39*$L$16*0.1,"--") -> -- | Y39: =IF(N39="RR",ROUND(M39/60,2)*I39*$L$16*0.1*O39/100,"--") -> -- | AA39: =IF(F39="","",SUM(P39:Y39)*IF(Z39="SI",1,2)) -> 
I40: 128.551 | L40: =IF(F40="","",(K40-J40)*24) ->  | M40: =IF(F40="","",ROUND((K40-J40)*24*60,0)) ->  | O40: =IF(F40="","","--") ->  | P40: =IF(N40="P",ROUND(M40/60,2)*I40*$L$16*0.01,"--") -> -- | Q40: =IF(N40="RP",I40*O40*ROUND(L40/60,2)*0.01*M40/100,"--") -> -- | R40: =IF(N40="F",I40*$L$16,"--") -> -- | S40: =IF(AND(M40>10,N40="F"),I40*$L$16*IF(M40>180,3,ROUND((M40)/60,2)),"--") -> -- | T40: =IF(AND(M40>180,N40="F"),(ROUND(M40/60,2)-3)*I40*$L$16*0.1,"--") -> -- | U40: =IF(N40="R",I40*$L$16*O40/100,"--") -> -- | V40: =IF(AND(M40>10,N40="R"),I40*$L$16*O40/100*IF(M40>180,3,ROUND(M40/60,2)),"--") -> -- | W40: =IF(AND(M40>180,N40="R"),(ROUND(M40/60,2)-3)*I40*$L$16*0.1*O40/100,"--") -> -- | X40: =IF(N40="RF",ROUND(M40/60,2)*I40*$L$16*0.1,"--") -> -- | Y40: =IF(N40="RR",ROUND(M40/60,2)*I40*$L$16*0.1*O40/100,"--") -> -- | AA40: =IF(F40="","",SUM(P40:Y40)*IF(Z40="SI",1,2)) -> 
I41: 128.551 | L41: =IF(F41="","",(K41-J41)*24) ->  | M41: =IF(F41="","",ROUND((K41-J41)*24*60,0)) ->  | O41: =IF(F41="","","--") ->  | P41: =IF(N41="P",ROUND(M41/60,2)*I41*$L$16*0.01,"--") -> -- | Q41: =IF(N41="RP",I41*O41*ROUND(L41/60,2)*0.01*M41/100,"--") -> -- | R41: =IF(N41="F",I41*$L$16,"--") -> -- | S41: =IF(AND(M41>10,N41="F"),I41*$L$16*IF(M41>180,3,ROUND((M41)/60,2)),"--") -> -- | T41: =IF(AND(M41>180,N41="F"),(ROUND(M41/60,2)-3)*I41*$L$16*0.1,"--") -> -- | U41: =IF(N41="R",I41*$L$16*O41/100,"--") -> -- | V41: =IF(AND(M41>10,N41="R"),I41*$L$16*O41/100*IF(M41>180,3,ROUND(M41/60,2)),"--") -> -- | W41: =IF(AND(M41>180,N41="R"),(ROUND(M41/60,2)-3)*I41*$L$16*0.1*O41/100,"--") -> -- | X41: =IF(N41="RF",ROUND(M41/60,2)*I41*$L$16*0.1,"--") -> -- | Y41: =IF(N41="RR",ROUND(M41/60,2)*I41*$L$16*0.1*O41/100,"--") -> -- | AA41: =IF(F41="","",SUM(P41:Y41)*IF(Z41="SI",1,2)) -> 
C43: (²) | D43: P - PROGRAMADA ; F - FORZADA | P43: =SUM(P19:P42) -> 3822.027957 | Q43: 0 | R43: 51816.33708 | S43: 125787.6677 | T43: 15384.93226 | U43: 0 | V43: 0 | W43: 0 | X43: 0 | Y43: 0 | AA43: =ROUND(SUM(AA19:AA42),2) -> 381972.31

Sheet Incendio
B2: ='TOT-1015'!B2 -> ANEXO I al Memorandum D.T.E.E. N° 356 / 2017
A4: ENTE NACIONAL REGULADOR
A5: DE LA ELECTRICIDAD
F8: SISTEMA DE TRANSPORTE DE ENERGÍA ELÉCTRICA POR DISTRIBUCIÓN TRONCAL - TRANSNOA S.A.
F10: 1.- LÍNEAS
F12: 1.1.1.- Equipamiento propio - Incendio
B14: ='TOT-1015'!B14 -> Desde el 01 al 31 de octubre de 2015
F16: $/100 km-h : LINEAS 132 kV | G16: 514.204 | K16: FACTOR DE PENALIZACION K = | L16: =30*'[1]TOT-0915'!B13 -> 30 | M16: =IF(L16=30," ",IF(L16=60,"Coeficiente duplicado por tasa de falla >4 Sal. x año/100 km.","REVISAR COEFICIENTE")) -> 
C17: 3 | D17: 4 | E17: 5 | F17: 6 | G17: 7 | H17: 8 | I17: 9 | J17: 10 | K17: 11 | L17: 12 | M17: 13 | N17: 14 | O17: 15 | P17: 16 | Q17: 17 | R17: 18 | S17: 19 | T17: 20 | U17: 21 | V17: 22 | W17: 23 | X17: 24 | Y17: 25 | Z17: 26 | AA17: 27
C18: N° | D18: INDISP | E18: ID EQUIPO | F18: LÍNEAS | G18: U [kV] | H18: Long. [km] | I18: $/h | J18: Salida | K18: Entrada | L18: Hs. Indisp | M18: Minutos Indisp. | N18: Tipo Sal.(²) | O18: C.R. % | P18: PENALIZ. PROGRAM. | Q18: REDUCC. PROGRAM. | R18: PENALIZACION FORZADA Por Salida 1ras. 3 hs. hs. Restantes | U18: REDUCC. FORZADA Por Salida 1ras. 3 hs. hs. Restantes | X18: RESTANTE FORZADA | Y18: REDUCC. RESTANTE | Z18: Informó en Térm. | AA18: TOTAL PENALIZAC.
C21: 2 | D21: 292993 | E21: 4677 | F21: GUEMES SALTA - MINETTI | G21: 132 | H21: 36.09999847 | I21: =$G$16/100*IF(H21>25,H21,25) -> 185.6276362 | J21: 2015-10-06T15:07:00 | K21: 2015-10-06T15:27:00 | L21: =IF(F21="","",(K21-J21)*24) -> 0.3333333334 | M21: =IF(F21="","",ROUND((K21-J21)*24*60,0)) -> 20 | N21: FM | O21: =IF(F21="","","--") -> -- | P21: =IF(N21="P",ROUND(M21/60,2)*I21*$L$16*0.01,"--") -> -- | Q21: =IF(N21="RP",I21*O21*ROUND(L21/60,2)*0.01*M21/100,"--") -> -- | R21: 0 | S21: =IF(AND(M21>10,N21="F"),I21*$L$16*IF(M21>180,3,ROUND((M21)/60,2)),"--") -> -- | T21: =IF(AND(M21>180,N21="F"),(ROUND(M21/60,2)-3)*I21*$L$16*0.1,"--") -> -- | U21: =IF(N21="R",I21*$L$16*O21/100,"--") -> -- | V21: =IF(AND(M21>10,N21="R"),I21*$L$16*O21/100*IF(M21>180,3,ROUND(M21/60,2)),"--") -> -- | W21: =IF(AND(M21>180,N21="R"),(ROUND(M21/60,2)-3)*I21*$L$16*0.1*O21/100,"--") -> -- | X21: =IF(N21="RF",ROUND(M21/60,2)*I21*$L$16*0.1,"--") -> -- | Y21: =IF(N21="RR",ROUND(M21/60,2)*I21*$L$16*0.1*O21/100,"--") -> -- | Z21: SI | AA21: 1837.713598
C22: 3 | D22: 292994 | E22: 293 | F22: MINETTI - SAN JUANCITO | G22: 132 | H22: 26 | I22: 133.69304 | J22: 2015-10-06T15:07:00 | K22: 2015-10-06T15:33:00 | L22: =IF(F22="","",(K22-J22)*24) -> 0.4333333333 | M22: =IF(F22="","",ROUND((K22-J22)*24*60,0)) -> 26 | N22: FM | O22: =IF(F22="","","--") -> -- | P22: =IF(N22="P",ROUND(M22/60,2)*I22*$L$16*0.01,"--") -> -- | Q22: =IF(N22="RP",I22*O22*ROUND(L22/60,2)*0.01*M22/100,"--") -> -- | R22: 0 | S22: =IF(AND(M22>10,N22="F"),I22*$L$16*IF(M22>180,3,ROUND((M22)/60,2)),"--") -> -- | T22: =IF(AND(M22>180,N22="F"),(ROUND(M22/60,2)-3)*I22*$L$16*0.1,"--") -> -- | U22: =IF(N22="R",I22*$L$16*O22/100,"--") -> -- | V22: =IF(AND(M22>10,N22="R"),I22*$L$16*O22/100*IF(M22>180,3,ROUND(M22/60,2)),"--") -> -- | W22: =IF(AND(M22>180,N22="R"),(ROUND(M22/60,2)-3)*I22*$L$16*0.1*O22/100,"--") -> -- | X22: =IF(N22="RF",ROUND(M22/60,2)*I22*$L$16*0.1,"--") -> -- | Y22: =IF(N22="RR",ROUND(M22/60,2)*I22*$L$16*0.1*O22/100,"--") -> -- | Z22: SI | AA22: 1724.640216
C23: 31 | D23: 294020 | E23: 281 | F23: GÜEMES - SAN JUANCITO 1 | G23: 132 | H23: 36.24000168 | I23: 186.3475382 | J23: 2015-10-30T11:58:00 | K23: 2015-10-30T14:21:00 | L23: =IF(F23="","",(K23-J23)*24) -> 2.383333333 | M23: =IF(F23="","",ROUND((K23-J23)*24*60,0)) -> 143 | N23: FM | O23: =IF(F23="","","--") -> -- | P23: =IF(N23="P",ROUND(M23/60,2)*I23*$L$16*0.01,"--") -> -- | Q23: =IF(N23="RP",I23*O23*ROUND(L23/60,2)*0.01*M23/100,"--") -> -- | R23: 0 | S23: =IF(AND(M23>10,N23="F"),I23*$L$16*IF(M23>180,3,ROUND((M23)/60,2)),"--") -> -- | T23: =IF(AND(M23>180,N23="F"),(ROUND(M23/60,2)-3)*I23*$L$16*0.1,"--") -> -- | U23: -- | V23: -- | W23: -- | X23: -- | Y23: -- | Z23: SI | AA23: 13305.21423
I24: 128.551 | AA24: =IF(F24="","",SUM(P24:Y24)*IF(Z24="SI",1,2)) -> 
I25: =$G$16/100*IF(H25>25,H25,25) -> 128.551
I26: 128.551
I27: 128.551 | L27: =IF(F27="","",(K27-J27)*24) ->  | M27: =IF(F27="","",ROUND((K27-J27)*24*60,0)) ->  | AA27: =IF(F27="","",SUM(P27:Y27)*IF(Z27="SI",1,2)) -> 
C29: (²) | D29: F - FORZADA | P29: =SUM(P19:P28) -> 0 | Q29: 0 | R29: 0 | S29: 0 | T29: 0 | U29: 0 | V29: 0 | W29: 0 | X29: 0 | Y29: 0 | AA29: =ROUND(SUM(AA19:AA28),2) -> 16867.57
C30: FM : | D30: Fuerza Mayor

Sheet T-10 (1)
B2: =+'TOT-1015'!B2 -> ANEXO I al Memorandum D.T.E.E. N° 356 / 2017
A4: ENTE NACIONAL REGULADOR
A5: DE LA ELECTRICIDAD
F8: SISTEMA DE TRANSPORTE DE ENERGÍA ELÉCTRICA POR DISTRIBUCIÓN TRONCAL - TRANSNOA S.A.
F10: 2.- CONEXIÓN
F12: 2.1.- Transformación
F14: 2.1.1.- Equipamiento propio
B16: ='TOT-1015'!B14 -> Desde el 01 al 31 de octubre de 2015
F18: Por Transformador por MVA $ = | I18: 1.79
F19: Coeficiente de penalización por salida forzada = | I19: =30*'TOT-1015'!B13 -> 30 | K19: =IF(I19=30," ",IF(I19=60," Coeficiente duplicado por tasa de falla >4 Sal. x año/100 km.","REVISAR COEFICIENTE")) -> 
C20: 3 | D20: 4 | E20: 5 | F20: 6 | G20: 7 | H20: 8 | I20: 9 | J20: 10 | K20: 11 | L20: 12 | M20: 13 | N20: 14 | O20: 15 | P20: 16 | Q20: 17 | R20: 18 | S20: 19 | T20: 20 | U20: 21 | V20: 22 | W20: 23 | X20: 24 | Y20: 25 | Z20: 26 | AA20: 27 | AB20: 28 | AC20: 29
C21: N° | D21: INDISP | E21: ID EQUIPO | F21: ESTACIÓN TRANSFORMADORA | G21: EQUIPO | H21: POT. [MVA] | I21: U [kV] | J21: $/h | K21: Salida | L21: Entrada | M21: Hs Indisp. | N21: Mtos. Indisp. | O21: Tipo Sal.(²) | P21: AUT. | Q21: C.R. % | R21: E.N.S. | S21: K (P;ENS) | T21: PENALIZ. PROGRAM. | U21: REDUCC. PROGRAM. | V21: PENALIZAC. FORZADA Por Salida hs. Restantes | X21: REDUCC. FORZADA Por Salida hs. Restantes | Z21: RESTANTE FORZADA | AA21: REDUCC. RESTANTE | AB21: Informó en Térm. | AC21: TOTAL PENALIZAC.
C23: 32 | D23: 291078 | E23: 4228 | F23: SUNCHO CORRAL | G23: TRP2 | H23: 15 | I23: 132/33/13,2 | J23: =H23*$I$18 -> 26.85 | K23: 2015-10-01 | L23: 2015-10-31T23:59:59 | M23: =IF(F23="","",(L23-K23)*24) -> 743.9997222 | N23: =IF(F23="","",ROUND((L23-K23)*24*60,0)) -> 44640 | O23: P | P23: =IF(F23="","",IF(OR(O23="P",O23="RP"),"--","NO")) -> -- | Q23: 0,000 | R23: NO | S23: =$I$19*IF(R23="SI",1,0.1)*IF(OR(O23="P",O23="RP"),0.1,1) -> 0.3 | T23: =IF(O23="P",J23*S23*ROUND(N23/60,2),"--") -> 5992.92 | U23: =IF(O23="RP",J23*S23*Q23/100*ROUND(N23/60,2),"--") -> -- | V23: =IF(AND(O23="F",P23="NO"),J23*S23,"--") -> -- | W23: =IF(O23="F",J23*S23*ROUND(N23/60,2),"--") -> -- | X23: =IF(AND(O23="R",P23="NO"),J23*S23*Q23/100,"--") -> -- | Y23: =IF(O23="R",J23*S23*ROUND(N23/60,2)*Q23/100,"--") -> -- | Z23: =IF(O23="RF",J23*S23*ROUND(N23/60,2),"--") -> -- | AA23: =IF(O23="RR",J23*S23*ROUND(N23/60,2)*Q23/100,"--") -> -- | AB23: SI | AC23: =IF(F23="","",SUM(T23:AA23)*IF(AB23="SI",1,2)) -> 5992.92
C24: 33 | D24: 291787 | E24: 3580 | F24: ANDALGALA | G24: TRAFO 1 | H24: 15 | I24: 132/33/13,2 | J24: 26.85 | K24: 2015-10-01 | L24: 2015-10-09T16:46:00 | M24: 208.7666667 | N24: 12526 | O24: P | P24: -- | Q24: 0,000 | R24: NO | S24: 0.3 | T24: 1681.64235 | U24: -- | V24: -- | W24: -- | X24: -- | Y24: -- | Z24: -- | AA24: -- | AB24: SI | AC24: 1681.64235
C25: 34 | D25: 291878 | E25: 562 | F25: METAN | G25: TRAFO 1 | H25: 7.5 | I25: 132/33/13,2 | J25: 13.425 | K25: 2015-10-01 | L25: 2015-10-31T23:59:59 | M25: 743.9997222 | N25: 44640 | O25: P | P25: -- | Q25: 0,000 | R25: NO | S25: 0.3 | T25: 2996.46 | U25: -- | V25: -- | W25: -- | X25: -- | Y25: -- | Z25: -- | AA25: -- | AB25: SI | AC25: 2996.46
C27: 36 | D27: 292902 | E27: 556 | F27: LA BANDA | G27: TRAFO 1 | H27: 30 | I27: 132/33/13,2 | J27: 53.7 | K27: 2015-10-01T08:35:00 | L27: 2015-10-01T15:53:00 | M27: 7.3 | N27: 438 | O27: P | P27: -- | Q27: 0,000 | R27: NO | S27: 0.3 | T27: 117.603 | U27: -- | V27: -- | W27: -- | X27: -- | Y27: -- | Z27: -- | AA27: -- | AB27: SI | AC27: 117.603
C28: 37 | D28: 292903 | E28: 5567 | F28: ESTATICA | G28: TRAFO 3 | H28: 30 | I28: 132/13,2 | J28: 53.7 | K28: 2015-10-01T09:09:00 | L28: 2015-10-01T11:52:00 | M28: 2.716666667 | N28: 163 | O28: P | P28: -- | Q28: 0,000 | R28: NO | S28: 0.3 | T28: 43.8192 | U28: -- | V28: -- | W28: -- | X28: -- | Y28: -- | Z28: -- | AA28: -- | AB28: SI | AC28: 43.8192
C29: 38 | D29: 292904 | E29: 3836 | F29: HUACRA | G29: TRAFO 1 | H29: 15 | I29: 132/33/13,2 | J29: 26.85 | K29: 2015-10-01T13:51:00 | L29: 2015-10-01T17:40:00 | M29: 3.816666667 | N29: 229 | O29: R | P29: NO | Q29: 60 | R29: NO | S29: 3 | T29: -- | U29: -- | V29: -- | W29: -- | X29: 48.33 | Y29: 184.6206 | Z29: -- | AA29: -- | AB29: SI | AC29: 232.9506
C30: 39 | D30: 292906 | E30: 556 | F30: LA BANDA | G30: TRAFO 1 | H30: 30 | I30: 132/33/13,2 | J30: =H30*$I$18 -> 53.7 | K30: 2015-10-02T08:52:00 | L30: 2015-10-02T16:31:00 | M30: =IF(F30="","",(L30-K30)*24) -> 7.65 | N30: =IF(F30="","",ROUND((L30-K30)*24*60,0)) -> 459 | O30: P | P30: =IF(F30="","",IF(OR(O30="P",O30="RP"),"--","NO")) -> -- | Q30: 0,000 | R30: NO | S30: =$I$19*IF(R30="SI",1,0.1)*IF(OR(O30="P",O30="RP"),0.1,1) -> 0.3 | T30: =IF(O30="P",J30*S30*ROUND(N30/60,2),"--") -> 123.2415 | U30: =IF(O30="RP",J30*S30*Q30/100*ROUND(N30/60,2),"--") -> -- | V30: =IF(AND(O30="F",P30="NO"),J30*S30,"--") -> -- | W30: =IF(O30="F",J30*S30*ROUND(N30/60,2),"--") -> -- | X30: =IF(AND(O30="R",P30="NO"),J30*S30*Q30/100,"--") -> -- | Y30: =IF(O30="R",J30*S30*ROUND(N30/60,2)*Q30/100,"--") -> -- | Z30: =IF(O30="RF",J30*S30*ROUND(N30/60,2),"--") -> -- | AA30: =IF(O30="RR",J30*S30*ROUND(N30/60,2)*Q30/100,"--") -> -- | AB30: SI | AC30: =IF(F30="","",SUM(T30:AA30)*IF(AB30="SI",1,2)) -> 123.2415
C31: 40 | D31: 292907 | E31: 4956 | F31: LA PAZ | G31: TRAFO 1 | H31: 10 | I31: 132/33/13,2 | J31: 17.9 | K31: 2015-10-04T08:25:00 | L31: 2015-10-04T12:44:00 | M31: 4.316666667 | N31: 259 | O31: P | P31: -- | Q31: 0,000 | R31: NO | S31: 0.3 | T31: 23.1984 | U31: -- | V31: -- | W31: -- | X31: -- | Y31: -- | Z31: -- | AA31: -- | AB31: SI | AC31: 23.1984
C32: 41 | D32: 292908 | E32: 561 | F32: LIBERTADOR JUJUY | G32: TRP1 | H32: 15 | I32: 132/33/13,2 | J32: 26.85 | K32: 2015-10-04T09:28:00 | L32: 2015-10-04T12:59:00 | M32: 3.516666667 | N32: 211 | O32: P | P32: -- | Q32: 0,000 | R32: NO | S32: 0.3 | T32: 28.3536 | U32: -- | V32: -- | W32: -- | X32: -- | Y32: -- | Z32: -- | AA32: -- | AB32: SI | AC32: 28.3536
C33: 43 | D33: 292980 | E33: 2624 | F33: TUCUMAN NORTE | G33: TRAFO 1 | H33: 30 | I33: 132/33/13,2 | J33: 53.7 | K33: 2015-10-05T10:51:00 | L33: 2015-10-05T11:31:00 | M33: 0.6666666667 | N33: 40 | O33: F | P33: NO | Q33: 0,000 | R33: SI | S33: 30 | T33: -- | U33: -- | V33: 1611 | W33: 1079.37 | X33: -- | Y33: -- | Z33: -- | AA33: -- | AB33: SI | AC33: 2690.37
C34: 44 | D34: 292981 | E34: 1867 | F34: TUCUMAN NORTE | G34: TRAFO 2 | H34: 30 | I34: 132/33/13,2 | J34: 53.7 | K34: 2015-10-05T10:51:00 | L34: 2015-10-05T11:35:00 | M34: 0.7333333335 | N34: 44 | O34: F | P34: NO | Q34: 0,000 | R34: SI | S34: 30 | T34: -- | U34: -- | V34: 1611 | W34: 1176.03 | X34: -- | Y34: -- | Z34: -- | AA34: -- | AB34: SI | AC34: 2787.03
C35: 45 | D35: 292997 | E35: 5411 | F35: CAMPO GALLO | G35: TRAFO 1 | H35: 15 | I35: 132/33/13,2 | J35: 26.85 | K35: 2015-10-07T13:11:00 | L35: 2015-10-07T19:54:00 | M35: 6.716666667 | N35: 403 | O35: P | P35: -- | Q35: 0,000 | R35: SI | S35: 3 | T35: 541.296 | U35: -- | V35: -- | W35: -- | X35: -- | Y35: -- | Z35: -- | AA35: -- | AB35: SI | AC35: 541.296
C36: 46 | D36: 292998 | E36: 5416 | F36: CAMPO GALLO | G36: TRAFO 2 | H36: 15 | I36: 132/33/13,2 | J36: 26.85 | K36: 2015-10-07T13:11:00 | L36: 2015-10-07T19:54:00 | M36: 6.716666667 | N36: 403 | O36: P | P36: -- | Q36: 0,000 | R36: SI | S36: 3 | T36: 541.296 | U36: -- | V36: -- | W36: -- | X36: -- | Y36: -- | Z36: -- | AA36: -- | AB36: SI | AC36: 541.296
C37: 47 | D37: 293031 | E37: 3623 | F37: BURRUYACU | G37: TRAFO 1 | H37: 15 | I37: 132/33/13,2 | J37: 26.85 | K37: 2015-10-08T09:48:00 | L37: 2015-10-08T12:56:00 | M37: 3.133333333 | N37: 188 | O37: P | P37: -- | Q37: 0,000 | R37: NO | S37: 0.3 | T37: 25.21215 | U37: -- | V37: -- | W37: -- | X37: -- | Y37: -- | Z37: -- | AA37: -- | AB37: SI | AC37: 25.21215
C38: 48 | D38: 293032 | E38: 4867 | F38: PICHANAL | G38: TRAFO 1 (RESERV.) | H38: 30 | I38: 132/33/13,2 | J38: 53.7 | K38: 2015-10-09T07:15:00 | L38: 2015-10-09T08:16:00 | M38: 1.016666667 | N38: 61 | O38: RP | P38: -- | Q38: 40 | R38: NO | S38: 0.3 | T38: -- | U38: 6.57288 | V38: -- | W38: -- | X38: -- | Y38: -- | Z38: -- | AA38: -- | AB38: SI | AC38: 6.57288
C39: 49 | D39: 293033 | E39: 3581 | F39: ANDALGALA | G39: TRAFO 2 | H39: 15 | I39: 132/33/13,2 | J39: 26.85 | K39: 2015-10-09T16:38:00 | L39: 2015-10-09T16:55:00 | M39: 0.2833333332 | N39: 17 | O39: F | P39: NO | Q39: 0,000 | R39: SI | S39: 30 | T39: -- | U39: -- | V39: 805.5 | W39: 225.54 | X39: -- | Y39: -- | Z39: -- | AA39: -- | AB39: SI | AC39: 1031.04
C40: 50 | D40: 293039 | E40: 3581 | F40: ANDALGALA | G40: TRAFO 2 | H40: 15 | I40: 132/33/13,2 | J40: 26.85 | K40: 2015-10-09T16:55:00 | L40: 2015-10-09T17:11:00 | M40: 0.2666666667 | N40: 16 | O40: RF | P40: NO | Q40: 0,000 | R40: NO | S40: 3 | T40: -- | U40: -- | V40: -- | W40: -- | X40: -- | Y40: -- | Z40: 21.7485 | AA40: -- | AB40: SI | AC40: 21.7485
C41: 51 | D41: 293040 | E41: 5609 | F41: SALTA SUR | G41: TRAFO 6 | H41: 30 | I41: 132/33/13,2 | J41: 53.7 | K41: 2015-10-11T07:40:00 | L41: 2015-10-11T08:53:00 | M41: 1.216666667 | N41: 73 | O41: RP | P41: -- | Q41: 60 | R41: NO | S41: 0.3 | T41: -- | U41: 11.79252 | V41: -- | W41: -- | X41: -- | Y41: -- | Z41: -- | AA41: -- | AB41: SI | AC41: 11.79252
C42: 52 | D42: 293279 | E42: 5609 | F42: SALTA SUR | G42: TRAFO 6 | H42: 30 | I42: 132/33/13,2 | J42: 53.7 | K42: 2015-10-12T07:33:00 | L42: 2015-10-12T15:58:00 | M42: 8.416666667 | N42: 505 | O42: P | P42: -- | Q42: 0,000 | R42: NO | S42: 0.3 | T42: 135.6462 | U42: -- | V42: -- | W42: -- | X42: -- | Y42: -- | Z42: -- | AA42: -- | AB42: SI | AC42: 135.6462
C43: 53 | D43: 293285 | E43: 5584 | F43: FERNANDEZ | G43: TRAFO 1 | H43: 15 | I43: 132/33/13,2 | J43: 26.85 | K43: 2015-10-13T10:47:00 | L43: 2015-10-13T12:54:00 | M43: 2.116666667 | N43: 127 | O43: P | P43: -- | Q43: 0,000 | R43: NO | S43: 0.3 | T43: 17.0766 | U43: -- | V43: -- | W43: -- | X43: -- | Y43: -- | Z43: -- | AA43: -- | AB43: SI | AC43: 17.0766
C44: 54 | D44: 293287 | E44: 3580 | F44: ANDALGALA | G44: TRAFO 1 | H44: 15 | I44: 132/33/13,2 | J44: 26.85 | K44: 2015-10-13T11:09:00 | L44: 2015-10-20T14:55:00 | M44: 171.7666667 | N44: 10306 | O44: P | P44: -- | Q44: 0,000 | R44: NO | S44: 0.3 | T44: 1383.60735 | U44: -- | V44: -- | W44: -- | X44: -- | Y44: -- | Z44: -- | AA44: -- | AB44: SI | AC44: 1383.60735
C45: 55 | D45: 293290 | E45: 5003 | F45: ANATUYA | G45: TRAFO 2 | H45: 15 | I45: 132/33/13,2 | J45: 26.85 | K45: 2015-10-14T10:13:00 | L45: 2015-10-14T17:28:00 | M45: =IF(F45="","",(L45-K45)*24) -> 7.25 | N45: =IF(F45="","",ROUND((L45-K45)*24*60,0)) -> 435 | O45: P | P45: -- | Q45: 0,000 | R45: NO | S45: =$I$19*IF(R45="SI",1,0.1)*IF(OR(O45="P",O45="RP"),0.1,1) -> 0.3 | T45: =IF(O45="P",J45*S45*ROUND(N45/60,2),"--") -> 58.39875 | U45: =IF(O45="RP",J45*S45*Q45/100*ROUND(N45/60,2),"--") -> -- | V45: =IF(AND(O45="F",P45="NO"),J45*S45,"--") -> -- | W45: =IF(O45="F",J45*S45*ROUND(N45/60,2),"--") -> -- | X45: =IF(AND(O45="R",P45="NO"),J45*S45*Q45/100,"--") -> -- | Y45: =IF(O45="R",J45*S45*ROUND(N45/60,2)*Q45/100,"--") -> -- | Z45: =IF(O45="RF",J45*S45*ROUND(N45/60,2),"--") -> -- | AA45: =IF(O45="RR",J45*S45*ROUND(N45/60,2)*Q45/100,"--") -> -- | AB45: SI | AC45: =IF(F45="","",SUM(T45:AA45)*IF(AB45="SI",1,2)) -> 58.39875
C46: 56 | D46: 293298 | E46: 4689 | F46: ACONQUIJA | G46: TRAFO 1 | H46: 7.5 | I46: 132/33/13,2 | J46: 13.425 | K46: 2015-10-14T16:57:00 | L46: 2015-10-14T21:19:00 | M46: =IF(F46="","",(L46-K46)*24) -> 4.366666667 | N46: =IF(F46="","",ROUND((L46-K46)*24*60,0)) -> 262 | O46: F | P46: NO | Q46: 0,000 | R46: SI | S46: =$I$19*IF(R46="SI",1,0.1)*IF(OR(O46="P",O46="RP"),0.1,1) -> 30 | T46: =IF(O46="P",J46*S46*ROUND(N46/60,2),"--") -> -- | U46: =IF(O46="RP",J46*S46*Q46/100*ROUND(N46/60,2),"--") -> -- | V46: =IF(AND(O46="F",P46="NO"),J46*S46,"--") -> 402.75 | W46: =IF(O46="F",J46*S46*ROUND(N46/60,2),"--") -> 1760.0175 | X46: =IF(AND(O46="R",P46="NO"),J46*S46*Q46/100,"--") -> -- | Y46: =IF(O46="R",J46*S46*ROUND(N46/60,2)*Q46/100,"--") -> -- | Z46: =IF(O46="RF",J46*S46*ROUND(N46/60,2),"--") -> -- | AA46: =IF(O46="RR",J46*S46*ROUND(N46/60,2)*Q46/100,"--") -> -- | AB46: SI | AC46: =IF(F46="","",SUM(T46:AA46)*IF(AB46="SI",1,2)) -> 2162.7675
C47: 57 | D47: 293300 | E47: 5003 | F47: ANATUYA | G47: TRAFO 2 | H47: 15 | I47: 132/33/13,2 | J47: 26.85 | K47: 2015-10-15T07:55:00 | L47: 2015-10-15T16:42:00 | M47: =IF(F47="","",(L47-K47)*24) -> 8.783333333 | N47: =IF(F47="","",ROUND((L47-K47)*24*60,0)) -> 527 | O47: P | P47: -- | Q47: 0,000 | R47: NO | S47: =$I$19*IF(R47="SI",1,0.1)*IF(OR(O47="P",O47="RP"),0.1,1) -> 0.3 | T47: =IF(O47="P",J47*S47*ROUND(N47/60,2),"--") -> 70.7229 | U47: =IF(O47="RP",J47*S47*Q47/100*ROUND(N47/60,2),"--") -> -- | V47: =IF(AND(O47="F",P47="NO"),J47*S47,"--") -> -- | W47: =IF(O47="F",J47*S47*ROUND(N47/60,2),"--") -> -- | X47: =IF(AND(O47="R",P47="NO"),J47*S47*Q47/100,"--") -> -- | Y47: =IF(O47="R",J47*S47*ROUND(N47/60,2)*Q47/100,"--") -> -- | Z47: =IF(O47="RF",J47*S47*ROUND(N47/60,2),"--") -> -- | AA47: =IF(O47="RR",J47*S47*ROUND(N47/60,2)*Q47/100,"--") -> -- | AB47: SI | AC47: =IF(F47="","",SUM(T47:AA47)*IF(AB47="SI",1,2)) -> 70.7229
C49: (²) | D49: P - PROGRAMADA ; F - FORZADA ; R - REDUCCIÓN FORZADA ; RP - REDUCCIÓN PROGRAMADA | T49: =SUM(T22:T48) -> 13780.494 | U49: 18.3654 | V49: 4430.25 | W49: 4240.9575 | X49: 48.33 | Y49: 184.6206 | Z49: 21.7485 | AA49: 0 | AC49: =ROUND(SUM(AC22:AC48),2) -> 22724.77

Sheet T-10 (2)
B2: =+'TOT-1015'!B2 -> ANEXO I al Memorandum D.T.E.E. N° 356 / 2017
A4: ENTE NACIONAL REGULADOR
A5: DE LA ELECTRICIDAD
F8: SISTEMA DE TRANSPORTE DE ENERGÍA ELÉCTRICA POR DISTRIBUCIÓN TRONCAL - TRANSNOA S.A.
F10: 2.- CONEXIÓN
F12: 2.1.- Transformación
F14: 2.1.1.- Equipamiento propio
B16: ='TOT-1015'!B14 -> Desde el 01 al 31 de octubre de 2015
F18: Por Transformador por MVA $ = | I18: 1.79
F19: Coeficiente de penalización por salida forzada = | I19: =30*'TOT-1015'!B13 -> 30 | K19: =IF(I19=30," ",IF(I19=60," Coeficiente duplicado por tasa de falla >4 Sal. x año/100 km.","REVISAR COEFICIENTE")) -> 
C20: 3 | D20: 4 | E20: 5 | F20: 6 | G20: 7 | H20: 8 | I20: 9 | J20: 10 | K20: 11 | L20: 12 | M20: 13 | N20: 14 | O20: 15 | P20: 16 | Q20: 17 | R20: 18 | S20: 19 | T20: 20 | U20: 21 | V20: 22 | W20: 23 | X20: 24 | Y20: 25 | Z20: 26 | AA20: 27 | AB20: 28 | AC20: 29
C21: N° | D21: INDISP | E21: ID EQUIPO | F21: ESTACIÓN TRANSFORMADORA | G21: EQUIPO | H21: POT. [MVA] | I21: U [kV] | J21: $/h | K21: Salida | L21: Entrada | M21: Hs Indisp. | N21: Mtos. Indisp. | O21: Tipo Sal.(²) | P21: AUT. | Q21: C.R. % | R21: E.N.S. | S21: K (P;ENS) | T21: PENALIZ. PROGRAM. | U21: REDUCC. PROGRAM. | V21: PENALIZAC. FORZADA Por Salida hs. Restantes | X21: REDUCC. FORZADA Por Salida hs. Restantes | Z21: RESTANTE FORZADA | AA21: REDUCC. RESTANTE | AB21: Informó en Térm. | AC21: TOTAL PENALIZAC.
AC22: ='T-10 (1)'!AC49 -> 22724.77
C24: 58 | D24: 293302 | E24: 5062 | F24: QUIMILI | G24: TRAFO 1 | H24: 15 | I24: 132/33/13,2 | J24: =H24*$I$18 -> 26.85 | K24: 2015-10-15T10:18:00 | L24: 2015-10-15T11:12:00 | M24: =IF(F24="","",(L24-K24)*24) -> 0.9 | N24: =IF(F24="","",ROUND((L24-K24)*24*60,0)) -> 54 | O24: P | P24: =IF(F24="","",IF(OR(O24="P",O24="RP"),"--","NO")) -> -- | Q24: 0,000 | R24: NO | S24: =$I$19*IF(R24="SI",1,0.1)*IF(OR(O24="P",O24="RP"),0.1,1) -> 0.3 | T24: =IF(O24="P",J24*S24*ROUND(N24/60,2),"--") -> 7.2495 | U24: =IF(O24="RP",J24*S24*Q24/100*ROUND(N24/60,2),"--") -> -- | V24: =IF(AND(O24="F",P24="NO"),J24*S24,"--") -> -- | W24: =IF(O24="F",J24*S24*ROUND(N24/60,2),"--") -> -- | X24: =IF(AND(O24="R",P24="NO"),J24*S24*Q24/100,"--") -> -- | Y24: =IF(O24="R",J24*S24*ROUND(N24/60,2)*Q24/100,"--") -> -- | Z24: =IF(O24="RF",J24*S24*ROUND(N24/60,2),"--") -> -- | AA24: =IF(O24="RR",J24*S24*ROUND(N24/60,2)*Q24/100,"--") -> -- | AB24: SI | AC24: =IF(F24="","",SUM(T24:AA24)*IF(AB24="SI",1,2)) -> 7.2495
C25: 59 | D25: 293303 | E25: 3947 | F25: CATAMARCA | G25: TRAFO 2 | H25: 30 | I25: 132/33/13,2 | J25: =H25*$I$18 -> 53.7 | K25: 2015-10-16T08:06:00 | L25: 2015-10-16T09:25:00 | M25: =IF(F25="","",(L25-K25)*24) -> 1.316666667 | N25: =IF(F25="","",ROUND((L25-K25)*24*60,0)) -> 79 | O25: P | P25: =IF(F25="","",IF(OR(O25="P",O25="RP"),"--","NO")) -> -- | Q25: 0,000 | R25: NO | S25: =$I$19*IF(R25="SI",1,0.1)*IF(OR(O25="P",O25="RP"),0.1,1) -> 0.3 | T25: =IF(O25="P",J25*S25*ROUND(N25/60,2),"--") -> 21.2652 | U25: =IF(O25="RP",J25*S25*Q25/100*ROUND(N25/60,2),"--") -> -- | V25: =IF(AND(O25="F",P25="NO"),J25*S25,"--") -> -- | W25: =IF(O25="F",J25*S25*ROUND(N25/60,2),"--") -> -- | X25: =IF(AND(O25="R",P25="NO"),J25*S25*Q25/100,"--") -> -- | Y25: =IF(O25="R",J25*S25*ROUND(N25/60,2)*Q25/100,"--") -> -- | Z25: =IF(O25="RF",J25*S25*ROUND(N25/60,2),"--") -> -- | AA25: =IF(O25="RR",J25*S25*ROUND(N25/60,2)*Q25/100,"--") -> -- | AB25: SI | AC25: =IF(F25="","",SUM(T25:AA25)*IF(AB25="SI",1,2)) -> 21.2652
C26: 60 | D26: 293304 | E26: 3694 | F26: SANTIAGO CENTRO | G26: TRAFO 1 | H26: 30 | I26: 132/33/13,2 | J26: 53.7 | K26: 2015-10-17T06:16:00 | L26: 2015-10-17T10:26:00 | M26: 4.166666667 | N26: 250 | O26: P | P26: -- | Q26: 0,000 | R26: NO | S26: 0.3 | T26: 67.1787 | U26: -- | V26: -- | W26: -- | X26: -- | Y26: -- | Z26: -- | AA26: -- | AB26: SI | AC26: 67.1787
C27: 61 | D27: 293305 | E27: 3105 | F27: SANTIAGO CENTRO | G27: TRAFO 2 | H27: 30 | I27: 132/33/13,2 | J27: 53.7 | K27: 2015-10-17T06:17:00 | L27: 2015-10-17T10:26:00 | M27: 4.15 | N27: 249 | O27: P | P27: -- | Q27: 0,000 | R27: NO | S27: 0.3 | T27: 66.8565 | U27: -- | V27: -- | W27: -- | X27: -- | Y27: -- | Z27: -- | AA27: -- | AB27: SI | AC27: 66.8565
C28: 62 | D28: 293309 | E28: 563 | F28: METAN | G28: TRAFO 2 | H28: 7.5 | I28: 132/33/13,2 | J28: 13.425 | K28: 2015-10-17T08:33:00 | L28: 2015-10-17T08:43:00 | M28: 0.1666666667 | N28: 10 | O28: F | P28: NO | Q28: 0,000 | R28: SI | S28: 30 | T28: -- | U28: -- | V28: 402.75 | W28: 68.4675 | X28: -- | Y28: -- | Z28: -- | AA28: -- | AB28: SI | AC28: 471.2175
C29: 63 | D29: 293312 | E29: 579 | F29: SARMIENTO | G29: TRAFO 2 | H29: 30 | I29: 132/13,2 | J29: 53.7 | K29: 2015-10-17T09:26:00 | L29: 2015-10-17T14:45:00 | M29: 5.316666667 | N29: 319 | O29: F | P29: NO | Q29: 0,000 | R29: NO | S29: 3 | T29: -- | U29: -- | V29: 161.1 | W29: 857.052 | X29: -- | Y29: -- | Z29: -- | AA29: -- | AB29: SI | AC29: 1018.152
C30: 64 | D30: 293313 | E30: 5264 | F30: SARMIENTO | G30: TRAFO 3 | H30: 30 | I30: 132/33/13,2 | J30: 53.7 | K30: 2015-10-17T09:38:00 | L30: 2015-10-17T14:43:00 | M30: 5.083333333 | N30: 305 | O30: F | P30: NO | Q30: 0,000 | R30: NO | S30: 3 | T30: -- | U30: -- | V30: 161.1 | W30: 818.388 | X30: -- | Y30: -- | Z30: -- | AA30: -- | AB30: SI | AC30: 979.488
C31: 65 | D31: 293314 | E31: 2668 | F31: JUJUY ESTE | G31: TRAFO 1 | H31: 15 | I31: 132/33/13,2 | J31: 26.85 | K31: 2015-10-18T08:53:00 | L31: 2015-10-18T10:29:00 | M31: 1.6 | N31: 96 | O31: P | P31: -- | Q31: 0,000 | R31: NO | S31: 0.3 | T31: 12.888 | U31: -- | V31: -- | W31: -- | X31: -- | Y31: -- | Z31: -- | AA31: -- | AB31: SI | AC31: 12.888
C32: 66 | D32: 294360 | E32: 5691 | F32: JUJUY ESTE | G32: TRAFO 3 | H32: 30 | I32: 132/33/13,2 | J32: 53.7 | K32: 2015-10-18T08:53:00 | L32: 2015-10-18T10:29:00 | M32: 1.6 | N32: 96 | O32: P | P32: -- | Q32: 0,000 | R32: NO | S32: 0.3 | T32: 25.776 | U32: -- | V32: -- | W32: -- | X32: -- | Y32: -- | Z32: -- | AA32: -- | AB32: SI | AC32: 25.776
C33: 67 | D33: 293455 | E33: 557 | F33: LA BANDA | G33: TRAFO 2 | H33: 30 | I33: 132/33/13,2 | J33: 53.7 | K33: 2015-10-19T08:15:00 | L33: 2015-10-19T15:55:00 | M33: 7.666666667 | N33: 460 | O33: P | P33: -- | Q33: 0,000 | R33: NO | S33: 0.3 | T33: 123.5637 | U33: -- | V33: -- | W33: -- | X33: -- | Y33: -- | Z33: -- | AA33: -- | AB33: SI | AC33: 123.5637
C34: 68 | D34: 293457 | E34: 4956 | F34: LA PAZ | G34: TRAFO 1 | H34: 10 | I34: 132/33/13,2 | J34: 17.9 | K34: 2015-10-19T12:37:00 | L34: 2015-10-19T13:00:00 | M34: 0.3833333334 | N34: 23 | O34: R | P34: NO | Q34: 60 | R34: SI | S34: 30 | T34: -- | U34: -- | V34: -- | W34: -- | X34: 322.2 | Y34: 122.436 | Z34: -- | AA34: -- | AB34: SI | AC34: 444.636
C35: 69 | D35: 293461 | E35: 4896 | F35: BANDERA | G35: TRAFO 1 | H35: 15 | I35: 132/33/13,2 | J35: 26.85 | K35: 2015-10-19T14:23:00 | L35: 2015-10-19T14:40:00 | M35: 0.2833333332 | N35: 17 | O35: RP | P35: -- | Q35: 60 | R35: NO | S35: 0.3 | T35: -- | U35: 1.35324 | V35: -- | W35: -- | X35: -- | Y35: -- | Z35: -- | AA35: -- | AB35: SI | AC35: 1.35324
C36: 70 | D36: 293462 | E36: 4897 | F36: BANDERA | G36: TRAFO 2 | H36: 15 | I36: 132/33/13,2 | J36: 26.85 | K36: 2015-10-19T14:50:00 | L36: 2015-10-19T15:02:00 | M36: 0.2 | N36: 12 | O36: RP | P36: -- | Q36: 60 | R36: NO | S36: 0.3 | T36: -- | U36: 0.9666 | V36: -- | W36: -- | X36: -- | Y36: -- | Z36: -- | AA36: -- | AB36: SI | AC36: 0.9666
C37: 71 | D37: 293465 | E37: 3819 | F37: BELEN | G37: TRAFO 2 | H37: 7.5 | I37: 132/33/13,2 | J37: 13.425 | K37: 2015-10-19T16:09:00 | L37: 2015-10-19T16:11:00 | M37: 0.03333333327 | N37: 2 | O37: F | P37: NO | Q37: 0,000 | R37: SI | S37: 30 | T37: -- | U37: -- | V37: 402.75 | W37: 12.0825 | X37: -- | Y37: -- | Z37: -- | AA37: -- | AB37: SI | AC37: 414.8325
C38: 72 | D38: 293466 | E38: 557 | F38: LA BANDA | G38: TRAFO 2 | H38: 30 | I38: 132/33/13,2 | J38: 53.7 | K38: 2015-10-20T08:16:00 | L38: 2015-10-20T15:47:00 | M38: 7.516666667 | N38: 451 | O38: P | P38: -- | Q38: 0,000 | R38: NO | S38: 0.3 | T38: 121.1472 | U38: -- | V38: -- | W38: -- | X38: -- | Y38: -- | Z38: -- | AA38: -- | AB38: SI | AC38: 121.1472
C39: 73 | D39: 293467 | E39: 4768 | F39: LULES | G39: TRAFO 1 | H39: 15 | I39: 132/33/13,2 | J39: 26.85 | K39: 2015-10-20T08:30:00 | L39: 2015-10-20T11:30:00 | M39: 3 | N39: 180 | O39: P | P39: -- | Q39: 0,000 | R39: NO | S39: 0.3 | T39: 24.165 | U39: -- | V39: -- | W39: -- | X39: -- | Y39: -- | Z39: -- | AA39: -- | AB39: SI | AC39: 24.165
C40: 74 | D40: 293468 | E40: 534 | F40: AGUILARES | G40: TRAFO 2 | H40: 15 | I40: 132/33/13,2 | J40: 26.85 | K40: 2015-10-20T10:02:00 | L40: 2015-10-20T13:29:00 | M40: 3.45 | N40: 207 | O40: P | P40: -- | Q40: 0,000 | R40: NO | S40: 0.3 | T40: 27.78975 | U40: -- | V40: -- | W40: -- | X40: -- | Y40: -- | Z40: -- | AA40: -- | AB40: SI | AC40: 27.78975
C41: 75 | D41: 293470 | E41: 4484 | F41: AGUA BLANCA | G41: TRP1 | H41: 30 | I41: 132/33/13,2 | J41: 53.7 | K41: 2015-10-21T08:49:00 | L41: 2015-10-21T13:08:00 | M41: =IF(F41="","",(L41-K41)*24) -> 4.316666667 | N41: =IF(F41="","",ROUND((L41-K41)*24*60,0)) -> 259 | O41: P | P41: -- | Q41: 0,000 | R41: NO | S41: =$I$19*IF(R41="SI",1,0.1)*IF(OR(O41="P",O41="RP"),0.1,1) -> 0.3 | T41: =IF(O41="P",J41*S41*ROUND(N41/60,2),"--") -> 69.5952 | U41: =IF(O41="RP",J41*S41*Q41/100*ROUND(N41/60,2),"--") -> -- | V41: =IF(AND(O41="F",P41="NO"),J41*S41,"--") -> -- | W41: =IF(O41="F",J41*S41*ROUND(N41/60,2),"--") -> -- | X41: =IF(AND(O41="R",P41="NO"),J41*S41*Q41/100,"--") -> -- | Y41: =IF(O41="R",J41*S41*ROUND(N41/60,2)*Q41/100,"--") -> -- | Z41: =IF(O41="RF",J41*S41*ROUND(N41/60,2),"--") -> -- | AA41: =IF(O41="RR",J41*S41*ROUND(N41/60,2)*Q41/100,"--") -> -- | AB41: SI | AC41: =IF(F41="","",SUM(T41:AA41)*IF(AB41="SI",1,2)) -> 69.5952
C42: 76 | D42: 293472 | E42: 5584 | F42: FERNANDEZ | G42: TRAFO 1 | H42: 15 | I42: 132/33/13,2 | J42: 26.85 | K42: 2015-10-22T08:10:00 | L42: 2015-10-22T11:40:00 | M42: 3.5 | N42: 210 | O42: P | P42: -- | Q42: 0,000 | R42: NO | S42: 0.3 | T42: 28.1925 | U42: -- | V42: -- | W42: -- | X42: -- | Y42: -- | Z42: -- | AA42: -- | AB42: SI | AC42: 28.1925
C43: 77 | D43: 294005 | E43: 4993 | F43: PALPALA | G43: TRAFO 2 | H43: 15 | I43: 132/33/13,2 | J43: 26.85 | K43: 2015-10-28T08:25:00 | L43: 2015-10-31T23:59:59 | M43: 87.58305556 | N43: 5255 | O43: P | P43: -- | Q43: 0,000 | R43: NO | S43: 0.3 | T43: 705.4569 | U43: -- | V43: -- | W43: -- | X43: -- | Y43: -- | Z43: -- | AA43: -- | AB43: SI | AC43: 705.4569
C44: 78 | D44: 294007 | E44: 5570 | F44: SANTIAGO ESTE | G44: TRAFO 2 | H44: 30 | I44: 132/13,2 | J44: 53.7 | K44: 2015-10-29T08:18:00 | L44: 2015-10-29T11:07:00 | M44: 2.816666667 | N44: 169 | O44: P | P44: =IF(F44="","",IF(OR(O44="P",O44="RP"),"--","NO")) -> -- | Q44: 0,000 | R44: NO | S44: 0.3 | T44: 45.4302 | U44: -- | V44: -- | W44: -- | X44: -- | Y44: -- | Z44: -- | AA44: -- | AB44: SI | AC44: 45.4302
C45: 79 | D45: 294009 | E45: 4956 | F45: LA PAZ | G45: TRAFO 1 | H45: 10 | I45: 132/33/13,2 | J45: 17.9 | K45: 2015-10-29T13:38:00 | L45: 2015-10-29T13:42:00 | M45: 0.06666666653 | N45: 4 | O45: R | P45: =IF(F45="","",IF(OR(O45="P",O45="RP"),"--","NO")) -> NO | Q45: 40 | R45: SI | S45: 30 | T45: -- | U45: -- | V45: -- | W45: -- | X45: 214.8 | Y45: 15.036 | Z45: -- | AA45: -- | AB45: SI | AC45: 229.836
C46: 80 | D46: 294016 | E46: 4956 | F46: LA PAZ | G46: TRAFO 1 | H46: 10 | I46: 132/33/13,2 | J46: 17.9 | K46: 2015-10-30T08:29:00 | L46: 2015-10-30T08:37:00 | M46: 0.1333333332 | N46: 8 | O46: R | P46: =IF(F46="","",IF(OR(O46="P",O46="RP"),"--","NO")) -> NO | Q46: 60 | R46: SI | S46: 30 | T46: -- | U46: -- | V46: -- | W46: -- | X46: 322.2 | Y46: 41.886 | Z46: -- | AA46: -- | AB46: SI | AC46: 364.086
C48: (²) | D48: P - PROGRAMADA ; F - FORZADA ; R - REDUCCIÓN FORZADA ; RP - REDUCCIÓN PROGRAMADA | T48: =SUM(T22:T47) -> 1346.55435 | U48: 2.31984 | V48: 1127.7 | W48: 1755.99 | X48: 859.2 | Y48: 179.358 | Z48: 0 | AA48: 0 | AC48: =ROUND(SUM(AC22:AC47),2) -> 27995.89

Sheet SA-10 (1)
B2: =+'TOT-1015'!B2 -> ANEXO I al Memorandum D.T.E.E. N° 356 / 2017
A4: ENTE NACIONAL REGULADOR
A5: DE LA ELECTRICIDAD
F8: SISTEMA DE TRANSPORTE DE ENERGÍA ELÉCTRICA POR DISTRIBUCIÓN TRONCAL - TRANSNOA S.A.
F10: 2.2.- Salidas
F12: 2.2.1.- Equipamiento propio
B14: ='TOT-1015'!B14 -> Desde el 01 al 31 de octubre de 2015
F16: Salida en 132 kV o 66 kV = | G16: 23.905 | H16: =50*'TOT-1015'!B13 -> 50 | J16: =IF(H16=50," ",IF(H16=100," Coeficiente duplicado por tasa de falla >4 Sal. x año/100 km.","REVISAR COEFICIENTE")) -> 
F17: Salida en 33 kV | G17: 17.935 | H17: =25*'TOT-1015'!B13 -> 25 | J17: =IF(H17=25," ",IF(H17=50," Coeficiente duplicado por tasa de falla >4 Sal. x año/100 km.","REVISAR COEFICIENTE")) -> 
F18: Salida en 13,2 kV = | G18: 17.935 | H18: =20*'TOT-1015'!B13 -> 20 | J18: =IF(H18=20," ",IF(H18=40," Coeficiente duplicado por tasa de falla >4 Sal. x año/100 km.","REVISAR COEFICIENTE")) -> 
C19: 3 | D19: 4 | E19: 5 | F19: 6 | G19: 7 | H19: 8 | I19: 9 | J19: 10 | K19: 11 | L19: 12 | M19: 13 | N19: 14 | O19: 15 | P19: 16 | Q19: 17 | R19: 18 | S19: 19 | T19: 20 | U19: 21 | V19: 22
C20: N° | D20: INDISP | E20: ID EQUIPO | F20: ESTACIÓN TRANSFORMADORA | G20: EQUIPO | H20: U [kV] | I20: $/h | J20: Salida | K20: Entrada | L20: Hs. Indisp. | M20: Mtos. Indisp. | N20: Tipo Sal.(²) | O20: AUT. | P20: K | Q20: PENALIZ. PROGRAM. | R20: PENALIZAC. FORZADA Por Salida hs. Restantes | T20: RESTANTE FORZADA | U20: Informó en Térm. | V20: TOTAL PENALIZAC.
C23: 81 | D23: 292999 | E23: 5417 | F23: CAMPO GALLO | G23: SALIDA 1 | H23: 13.2 | I23: =IF(OR(H23=132,H23=66),$G$16,IF(H23=33,$G$17,$G$18)) -> 17.935 | J23: 2015-10-07T13:11:00 | K23: 2015-10-07T19:54:00 | L23: =IF(F23="","",(K23-J23)*24) -> 6.716666667 | M23: =IF(F23="","",ROUND((K23-J23)*24*60,0)) -> 403 | N23: P | O23: =IF(F23="","",IF(OR(N23="P",N23="RP"),"--","NO")) -> -- | P23: =IF(H23>33,$H$16,IF(H23=33,$H$17,$H$18)) -> 20 | Q23: =IF(N23="P",I23*P23*ROUND(M23/60,2)*0.1,"--") -> 241.0464 | R23: =IF(AND(N23="F",O23="NO"),I23*P23,"--") -> -- | S23: =IF(N23="F",I23*P23*ROUND(M23/60,2),"--") -> -- | T23: =IF(N23="RF",I23*P23*ROUND(M23/60,2),"--") -> -- | U23: SI | V23: =IF(F23="","",SUM(Q23:T23)*IF(U23="SI",1,2)*IF(H23="500/220",0,1)) -> 241.0464
C24: 82 | D24: 293000 | E24: 5418 | F24: CAMPO GALLO | G24: SALIDA 4 | H24: 13.2 | I24: 17.935 | J24: 2015-10-07T13:11:00 | K24: 2015-10-07T19:54:00 | L24: 6.716666667 | M24: 403 | N24: P | O24: -- | P24: 20 | Q24: 241.0464 | R24: -- | S24: -- | T24: -- | U24: SI | V24: 241.0464
C25: 83 | D25: 293001 | E25: 5419 | F25: CAMPO GALLO | G25: SALIDA A TINTINA | H25: 33 | I25: 17.935 | J25: 2015-10-07T13:11:00 | K25: 2015-10-07T19:54:00 | L25: 6.716666667 | M25: 403 | N25: P | O25: -- | P25: 25 | Q25: 301.308 | R25: -- | S25: -- | T25: -- | U25: SI | V25: 301.308
C26: 84 | D26: 293002 | E26: 5420 | F26: CAMPO GALLO | G26: SALIDA A SACHA | H26: 33 | I26: 17.935 | J26: 2015-10-07T13:11:00 | K26: 2015-10-07T19:54:00 | L26: 6.716666667 | M26: 403 | N26: P | O26: -- | P26: 25 | Q26: 301.308 | R26: -- | S26: -- | T26: -- | U26: SI | V26: 301.308
O27: =IF(F27="","",IF(OR(N27="P",N27="RP"),"--","NO")) ->  | P27: =IF(H27>33,$H$16,IF(H27=33,$H$17,$H$18)) -> 20 | Q27: =IF(N27="P",I27*P27*ROUND(M27/60,2)*0.1,"--") -> -- | R27: =IF(AND(N27="F",O27="NO"),I27*P27,"--") -> -- | S27: =IF(N27="F",I27*P27*ROUND(M27/60,2),"--") -> -- | T27: =IF(N27="RF",I27*P27*ROUND(M27/60,2),"--") -> -- | U27: =IF(F27="","","SI") -> 
P28: 20 | Q28: -- | R28: -- | S28: -- | T28: --
P29: 20 | Q29: -- | R29: -- | S29: -- | T29: --
P30: 20 | Q30: -- | R30: -- | S30: -- | T30: --
P31: 20 | Q31: -- | R31: -- | S31: -- | T31: --
P32: 20 | Q32: -- | R32: -- | S32: -- | T32: --
I33: 17.935 | P33: 20 | Q33: -- | R33: -- | S33: -- | T33: -- | U33: =IF(F33="","","SI") -> 
I34: 17.935 | P34: 20 | Q34: -- | R34: -- | S34: -- | T34: --
I35: 17.935 | P35: 20 | Q35: -- | R35: -- | S35: -- | T35: --
I36: 17.935 | P36: 20 | Q36: -- | R36: -- | S36: -- | T36: --
I37: 17.935 | P37: 20 | Q37: -- | R37: -- | S37: -- | T37: --
I38: 17.935 | P38: 20 | Q38: -- | R38: -- | S38: -- | T38: --
I39: 17.935 | P39: 20 | Q39: -- | R39: -- | S39: -- | T39: --
I40: 17.935 | L40: =IF(F40="","",(K40-J40)*24) ->  | M40: =IF(F40="","",ROUND((K40-J40)*24*60,0)) ->  | P40: =IF(H40>33,$H$16,IF(H40=33,$H$17,$H$18)) -> 20 | Q40: =IF(N40="P",I40*P40*ROUND(M40/60,2)*0.1,"--") -> -- | R40: =IF(AND(N40="F",O40="NO"),I40*P40,"--") -> -- | S40: =IF(N40="F",I40*P40*ROUND(M40/60,2),"--") -> -- | T40: =IF(N40="RF",I40*P40*ROUND(M40/60,2),"--") -> -- | U40: =IF(F40="","","SI") ->  | V40: =IF(F40="","",SUM(Q40:T40)*IF(U40="SI",1,2)*IF(H40="500/220",0,1)) -> 
I41: 17.935 | L41: =IF(F41="","",(K41-J41)*24) ->  | M41: =IF(F41="","",ROUND((K41-J41)*24*60,0)) ->  | P41: =IF(H41>33,$H$16,IF(H41=33,$H$17,$H$18)) -> 20 | Q41: =IF(N41="P",I41*P41*ROUND(M41/60,2)*0.1,"--") -> -- | R41: =IF(AND(N41="F",O41="NO"),I41*P41,"--") -> -- | S41: =IF(N41="F",I41*P41*ROUND(M41/60,2),"--") -> -- | T41: =IF(N41="RF",I41*P41*ROUND(M41/60,2),"--") -> -- | U41: =IF(F41="","","SI") ->  | V41: =IF(F41="","",SUM(Q41:T41)*IF(U41="SI",1,2)*IF(H41="500/220",0,1)) -> 
I42: 17.935 | L42: =IF(F42="","",(K42-J42)*24) ->  | M42: =IF(F42="","",ROUND((K42-J42)*24*60,0)) ->  | P42: =IF(H42>33,$H$16,IF(H42=33,$H$17,$H$18)) -> 20 | Q42: =IF(N42="P",I42*P42*ROUND(M42/60,2)*0.1,"--") -> -- | R42: =IF(AND(N42="F",O42="NO"),I42*P42,"--") -> -- | S42: =IF(N42="F",I42*P42*ROUND(M42/60,2),"--") -> -- | T42: =IF(N42="RF",I42*P42*ROUND(M42/60,2),"--") -> -- | U42: =IF(F42="","","SI") ->  | V42: =IF(F42="","",SUM(Q42:T42)*IF(U42="SI",1,2)*IF(H42="500/220",0,1)) -> 
C44: (²) | D44: P - PROGRAMADA | Q44: =SUM(Q21:Q43) -> 1084.7088 | R44: =SUM(R21:R43) -> 0 | S44: =SUM(S21:S43) -> 0 | T44: =SUM(T21:T43) -> 0 | V44: =ROUND(SUM(V21:V43),2) -> 1084.71

Sheet Tasa de Falla
B2: ='TOT-1015'!B2 -> ANEXO I al Memorandum D.T.E.E. N° 356 / 2017
A3: ENTE NACIONAL REGULADOR
A4: DE LA ELECTRICIDAD
B6: SISTEMA DE TRANSPORTE DE ENERGÍA ELÉCTRICA POR DISTRIBUCIÓN TRONCAL
B8: TRANSNOA S.A.
B10: INDISPONIBILIDADES FORZADAS DE LÍNEAS - TASA DE FALLA
B13: y | D13: ='TOT-1015'!B14 -> Desde el 01 al 31 de octubre de 2015
C15: N° | D15: LÍNEAS | E15: U [kV] | F15: Long. [km] | G15: 2014-10-01 | H15: 2014-11-01 | I15: 2014-12-01 | J15: 2015-01-01 | K15: 2015-02-01 | L15: 2015-03-01 | M15: 2015-04-01 | N15: 2015-05-01 | O15: 2015-06-01 | P15: 2015-07-01 | Q15: 2015-08-01 | R15: 2015-09-01 | S15: 2015-10-01
C17: ='[3]Tasa de Falla'!C17 -> 1 | D17: ='[3]Tasa de Falla'!D17 -> AGUA BLANCA - VILLA QUINTEROS | E17: ='[3]Tasa de Falla'!E17 -> 132 | F17: ='[3]Tasa de Falla'!F17 -> 23.8 | G17: =IF('[3]Tasa de Falla'!IQ17=0,"",'[3]Tasa de Falla'!IQ17) ->  | H17: =IF('[3]Tasa de Falla'!IR17=0,"",'[3]Tasa de Falla'!IR17) ->  | I17: =IF('[3]Tasa de Falla'!IS17=0,"",'[3]Tasa de Falla'!IS17) ->  | J17: =IF('[3]Tasa de Falla'!IT17=0,"",'[3]Tasa de Falla'!IT17) ->  | K17: =IF('[3]Tasa de Falla'!IU17=0,"",'[3]Tasa de Falla'!IU17) ->  | L17: =IF('[3]Tasa de Falla'!IV17=0,"",'[3]Tasa de Falla'!IV17) ->  | M17: =IF('[3]Tasa de Falla'!IW17=0,"",'[3]Tasa de Falla'!IW17) ->  | N17: =IF('[3]Tasa de Falla'!IX17=0,"",'[3]Tasa de Falla'!IX17) ->  | O17: =IF('[3]Tasa de Falla'!IY17=0,"",'[3]Tasa de Falla'!IY17) ->  | P17: =IF('[3]Tasa de Falla'!IZ17=0,"",'[3]Tasa de Falla'!IZ17) ->  | Q17: =IF('[3]Tasa de Falla'!JA17=0,"",'[3]Tasa de Falla'!JA17) ->  | R17: =IF('[3]Tasa de Falla'!JB17=0,"",'[3]Tasa de Falla'!JB17) -> 
C18: ='[3]Tasa de Falla'!C18 -> 2 | D18: ='[3]Tasa de Falla'!D18 -> AGUILARES - ESCABA | E18: ='[3]Tasa de Falla'!E18 -> 132 | F18: ='[3]Tasa de Falla'!F18 -> 27 | G18: =IF('[3]Tasa de Falla'!IQ18=0,"",'[3]Tasa de Falla'!IQ18) ->  | H18: =IF('[3]Tasa de Falla'!IR18=0,"",'[3]Tasa de Falla'!IR18) ->  | I18: =IF('[3]Tasa de Falla'!IS18=0,"",'[3]Tasa de Falla'!IS18) ->  | J18: =IF('[3]Tasa de Falla'!IT18=0,"",'[3]Tasa de Falla'!IT18) ->  | K18: =IF('[3]Tasa de Falla'!IU18=0,"",'[3]Tasa de Falla'!IU18) ->  | L18: =IF('[3]Tasa de Falla'!IV18=0,"",'[3]Tasa de Falla'!IV18) ->  | M18: =IF('[3]Tasa de Falla'!IW18=0,"",'[3]Tasa de Falla'!IW18) ->  | N18: =IF('[3]Tasa de Falla'!IX18=0,"",'[3]Tasa de Falla'!IX18) ->  | O18: =IF('[3]Tasa de Falla'!IY18=0,"",'[3]Tasa de Falla'!IY18) ->  | P18: =IF('[3]Tasa de Falla'!IZ18=0,"",'[3]Tasa de Falla'!IZ18) ->  | Q18: =IF('[3]Tasa de Falla'!JA18=0,"",'[3]Tasa de Falla'!JA18) -> 2 | R18: =IF('[3]Tasa de Falla'!JB18=0,"",'[3]Tasa de Falla'!JB18) -> 
C19: ='[3]Tasa de Falla'!C19 -> 3 | D19: ='[3]Tasa de Falla'!D19 -> CABRA CORRAL - SALTA SUR | E19: ='[3]Tasa de Falla'!E19 -> 132 | F19: ='[3]Tasa de Falla'!F19 -> 62 | G19: =IF('[3]Tasa de Falla'!IQ19=0,"",'[3]Tasa de Falla'!IQ19) -> XXXX | H19: =IF('[3]Tasa de Falla'!IR19=0,"",'[3]Tasa de Falla'!IR19) -> XXXX | I19: =IF('[3]Tasa de Falla'!IS19=0,"",'[3]Tasa de Falla'!IS19) -> XXXX | J19: =IF('[3]Tasa de Falla'!IT19=0,"",'[3]Tasa de Falla'!IT19) -> XXXX | K19: =IF('[3]Tasa de Falla'!IU19=0,"",'[3]Tasa de Falla'!IU19) -> XXXX | L19: =IF('[3]Tasa de Falla'!IV19=0,"",'[3]Tasa de Falla'!IV19) -> XXXX | M19: =IF('[3]Tasa de Falla'!IW19=0,"",'[3]Tasa de Falla'!IW19) -> XXXX | N19: =IF('[3]Tasa de Falla'!IX19=0,"",'[3]Tasa de Falla'!IX19) -> XXXX | O19: =IF('[3]Tasa de Falla'!IY19=0,"",'[3]Tasa de Falla'!IY19) -> XXXX | P19: =IF('[3]Tasa de Falla'!IZ19=0,"",'[3]Tasa de Falla'!IZ19) -> XXXX | Q19: =IF('[3]Tasa de Falla'!JA19=0,"",'[3]Tasa de Falla'!JA19) -> XXXX | R19: =IF('[3]Tasa de Falla'!JB19=0,"",'[3]Tasa de Falla'!JB19) -> XXXX
C20: ='[3]Tasa de Falla'!C20 -> 4 | D20: ='[3]Tasa de Falla'!D20 -> CEVIL POZO - TUCUMAN NORTE | E20: ='[3]Tasa de Falla'!E20 -> 132 | F20: ='[3]Tasa de Falla'!F20 -> 14.5 | G20: =IF('[3]Tasa de Falla'!IQ20=0,"",'[3]Tasa de Falla'!IQ20) ->  | H20: =IF('[3]Tasa de Falla'!IR20=0,"",'[3]Tasa de Falla'!IR20) ->  | I20: =IF('[3]Tasa de Falla'!IS20=0,"",'[3]Tasa de Falla'!IS20) ->  | J20: =IF('[3]Tasa de Falla'!IT20=0,"",'[3]Tasa de Falla'!IT20) ->  | K20: =IF('[3]Tasa de Falla'!IU20=0,"",'[3]Tasa de Falla'!IU20) ->  | L20: =IF('[3]Tasa de Falla'!IV20=0,"",'[3]Tasa de Falla'!IV20) ->  | M20: =IF('[3]Tasa de Falla'!IW20=0,"",'[3]Tasa de Falla'!IW20) ->  | N20: =IF('[3]Tasa de Falla'!IX20=0,"",'[3]Tasa de Falla'!IX20) ->  | O20: =IF('[3]Tasa de Falla'!IY20=0,"",'[3]Tasa de Falla'!IY20) ->  | P20: =IF('[3]Tasa de Falla'!IZ20=0,"",'[3]Tasa de Falla'!IZ20) ->  | Q20: =IF('[3]Tasa de Falla'!JA20=0,"",'[3]Tasa de Falla'!JA20) ->  | R20: =IF('[3]Tasa de Falla'!JB20=0,"",'[3]Tasa de Falla'!JB20) -> 
C21: ='[3]Tasa de Falla'!C21 -> 5 | D21: ='[3]Tasa de Falla'!D21 -> CAMPO SANTO - MINETTI | E21: ='[3]Tasa de Falla'!E21 -> 132 | F21: ='[3]Tasa de Falla'!F21 -> 29.9 | G21: =IF('[3]Tasa de Falla'!IQ21=0,"",'[3]Tasa de Falla'!IQ21) -> XXXX | H21: =IF('[3]Tasa de Falla'!IR21=0,"",'[3]Tasa de Falla'!IR21) -> XXXX | I21: =IF('[3]Tasa de Falla'!IS21=0,"",'[3]Tasa de Falla'!IS21) -> XXXX | J21: =IF('[3]Tasa de Falla'!IT21=0,"",'[3]Tasa de Falla'!IT21) -> XXXX | K21: =IF('[3]Tasa de Falla'!IU21=0,"",'[3]Tasa de Falla'!IU21) -> XXXX | L21: =IF('[3]Tasa de Falla'!IV21=0,"",'[3]Tasa de Falla'!IV21) -> XXXX | M21: =IF('[3]Tasa de Falla'!IW21=0,"",'[3]Tasa de Falla'!IW21) -> XXXX | N21: =IF('[3]Tasa de Falla'!IX21=0,"",'[3]Tasa de Falla'!IX21) -> XXXX | O21: =IF('[3]Tasa de Falla'!IY21=0,"",'[3]Tasa de Falla'!IY21) -> XXXX | P21: =IF('[3]Tasa de Falla'!IZ21=0,"",'[3]Tasa de Falla'!IZ21) -> XXXX | Q21: =IF('[3]Tasa de Falla'!JA21=0,"",'[3]Tasa de Falla'!JA21) -> XXXX | R21: =IF('[3]Tasa de Falla'!JB21=0,"",'[3]Tasa de Falla'!JB21) -> XXXX
C22: ='[3]Tasa de Falla'!C22 -> 6 | D22: ='[3]Tasa de Falla'!D22 -> ESCABA - HUACRA | E22: ='[3]Tasa de Falla'!E22 -> 132 | F22: ='[3]Tasa de Falla'!F22 -> 49.9 | G22: =IF('[3]Tasa de Falla'!IQ22=0,"",'[3]Tasa de Falla'!IQ22) -> XXXX | H22: =IF('[3]Tasa de Falla'!IR22=0,"",'[3]Tasa de Falla'!IR22) -> XXXX | I22: =IF('[3]Tasa de Falla'!IS22=0,"",'[3]Tasa de Falla'!IS22) -> XXXX | J22: =IF('[3]Tasa de Falla'!IT22=0,"",'[3]Tasa de Falla'!IT22) -> XXXX | K22: =IF('[3]Tasa de Falla'!IU22=0,"",'[3]Tasa de Falla'!IU22) -> XXXX | L22: =IF('[3]Tasa de Falla'!IV22=0,"",'[3]Tasa de Falla'!IV22) -> XXXX | M22: =IF('[3]Tasa de Falla'!IW22=0,"",'[3]Tasa de Falla'!IW22) -> XXXX | N22: =IF('[3]Tasa de Falla'!IX22=0,"",'[3]Tasa de Falla'!IX22) -> XXXX | O22: =IF('[3]Tasa de Falla'!IY22=0,"",'[3]Tasa de Falla'!IY22) -> XXXX | P22: =IF('[3]Tasa de Falla'!IZ22=0,"",'[3]Tasa de Falla'!IZ22) -> XXXX | Q22: =IF('[3]Tasa de Falla'!JA22=0,"",'[3]Tasa de Falla'!JA22) -> XXXX | R22: =IF('[3]Tasa de Falla'!JB22=0,"",'[3]Tasa de Falla'!JB22) -> XXXX
C23: ='[3]Tasa de Falla'!C23 -> 7 | D23: ='[3]Tasa de Falla'!D23 -> ESTATICA SUR - EL BRACHO | E23: ='[3]Tasa de Falla'!E23 -> 132 | F23: ='[3]Tasa de Falla'!F23 -> 19.6 | G23: =IF('[3]Tasa de Falla'!IQ23=0,"",'[3]Tasa de Falla'!IQ23) ->  | H23: =IF('[3]Tasa de Falla'!IR23=0,"",'[3]Tasa de Falla'!IR23) ->  | I23: =IF('[3]Tasa de Falla'!IS23=0,"",'[3]Tasa de Falla'!IS23) ->  | J23: =IF('[3]Tasa de Falla'!IT23=0,"",'[3]Tasa de Falla'!IT23) ->  | K23: =IF('[3]Tasa de Falla'!IU23=0,"",'[3]Tasa de Falla'!IU23) ->  | L23: =IF('[3]Tasa de Falla'!IV23=0,"",'[3]Tasa de Falla'!IV23) -> XXXX | M23: =IF('[3]Tasa de Falla'!IW23=0,"",'[3]Tasa de Falla'!IW23) -> XXXX | N23: =IF('[3]Tasa de Falla'!IX23=0,"",'[3]Tasa de Falla'!IX23) -> XXXX | O23: =IF('[3]Tasa de Falla'!IY23=0,"",'[3]Tasa de Falla'!IY23) -> XXXX | P23: =IF('[3]Tasa de Falla'!IZ23=0,"",'[3]Tasa de Falla'!IZ23) -> XXXX | Q23: =IF('[3]Tasa de Falla'!JA23=0,"",'[3]Tasa de Falla'!JA23) -> XXXX | R23: =IF('[3]Tasa de Falla'!JB23=0,"",'[3]Tasa de Falla'!JB23) -> XXXX
C24: ='[3]Tasa de Falla'!C24 -> 8 | D24: ='[3]Tasa de Falla'!D24 -> ESTATICA SUR - INDEPENDENCIA 1 (O.F.) | E24: ='[3]Tasa de Falla'!E24 -> 132 | F24: ='[3]Tasa de Falla'!F24 -> 2.6 | G24: =IF('[3]Tasa de Falla'!IQ24=0,"",'[3]Tasa de Falla'!IQ24) ->  | H24: =IF('[3]Tasa de Falla'!IR24=0,"",'[3]Tasa de Falla'!IR24) ->  | I24: =IF('[3]Tasa de Falla'!IS24=0,"",'[3]Tasa de Falla'!IS24) ->  | J24: =IF('[3]Tasa de Falla'!IT24=0,"",'[3]Tasa de Falla'!IT24) ->  | K24: =IF('[3]Tasa de Falla'!IU24=0,"",'[3]Tasa de Falla'!IU24) ->  | L24: =IF('[3]Tasa de Falla'!IV24=0,"",'[3]Tasa de Falla'!IV24) ->  | M24: =IF('[3]Tasa de Falla'!IW24=0,"",'[3]Tasa de Falla'!IW24) ->  | N24: =IF('[3]Tasa de Falla'!IX24=0,"",'[3]Tasa de Falla'!IX24) ->  | O24: =IF('[3]Tasa de Falla'!IY24=0,"",'[3]Tasa de Falla'!IY24) ->  | P24: =IF('[3]Tasa de Falla'!IZ24=0,"",'[3]Tasa de Falla'!IZ24) -> 1 | Q24: =IF('[3]Tasa de Falla'!JA24=0,"",'[3]Tasa de Falla'!JA24) ->  | R24: =IF('[3]Tasa de Falla'!JB24=0,"",'[3]Tasa de Falla'!JB24) -> 
C25: ='[3]Tasa de Falla'!C25 -> 9 | D25: ='[3]Tasa de Falla'!D25 -> ESTATICA SUR - SARMIENTO "TRANSNOA S.A." | E25: ='[3]Tasa de Falla'!E25 -> 132 | F25: ='[3]Tasa de Falla'!F25 -> 4.4 | G25: =IF('[3]Tasa de Falla'!IQ25=0,"",'[3]Tasa de Falla'!IQ25) ->  | H25: =IF('[3]Tasa de Falla'!IR25=0,"",'[3]Tasa de Falla'!IR25) ->  | I25: =IF('[3]Tasa de Falla'!IS25=0,"",'[3]Tasa de Falla'!IS25) ->  | J25: =IF('[3]Tasa de Falla'!IT25=0,"",'[3]Tasa de Falla'!IT25) ->  | K25: =IF('[3]Tasa de Falla'!IU25=0,"",'[3]Tasa de Falla'!IU25) ->  | L25: =IF('[3]Tasa de Falla'!IV25=0,"",'[3]Tasa de Falla'!IV25) ->  | M25: =IF('[3]Tasa de Falla'!IW25=0,"",'[3]Tasa de Falla'!IW25) ->  | N25: =IF('[3]Tasa de Falla'!IX25=0,"",'[3]Tasa de Falla'!IX25) ->  | O25: =IF('[3]Tasa de Falla'!IY25=0,"",'[3]Tasa de Falla'!IY25) ->  | P25: =IF('[3]Tasa de Falla'!IZ25=0,"",'[3]Tasa de Falla'!IZ25) ->  | Q25: =IF('[3]Tasa de Falla'!JA25=0,"",'[3]Tasa de Falla'!JA25) ->  | R25: =IF('[3]Tasa de Falla'!JB25=0,"",'[3]Tasa de Falla'!JB25) -> 
C26: ='[3]Tasa de Falla'!C26 -> 10 | D26: ='[3]Tasa de Falla'!D26 -> GÜEMES - EL BRACHO | E26: ='[3]Tasa de Falla'!E26 -> 132 | F26: ='[3]Tasa de Falla'!F26 -> 308 | G26: =IF('[3]Tasa de Falla'!IQ26=0,"",'[3]Tasa de Falla'!IQ26) -> XXXX | H26: =IF('[3]Tasa de Falla'!IR26=0,"",'[3]Tasa de Falla'!IR26) -> XXXX | I26: =IF('[3]Tasa de Falla'!IS26=0,"",'[3]Tasa de Falla'!IS26) -> XXXX | J26: =IF('[3]Tasa de Falla'!IT26=0,"",'[3]Tasa de Falla'!IT26) -> XXXX | K26: =IF('[3]Tasa de Falla'!IU26=0,"",'[3]Tasa de Falla'!IU26) -> XXXX | L26: =IF('[3]Tasa de Falla'!IV26=0,"",'[3]Tasa de Falla'!IV26) -> XXXX | M26: =IF('[3]Tasa de Falla'!IW26=0,"",'[3]Tasa de Falla'!IW26) -> XXXX | N26: =IF('[3]Tasa de Falla'!IX26=0,"",'[3]Tasa de Falla'!IX26) -> XXXX | O26: =IF('[3]Tasa de Falla'!IY26=0,"",'[3]Tasa de Falla'!IY26) -> XXXX | P26: =IF('[3]Tasa de Falla'!IZ26=0,"",'[3]Tasa de Falla'!IZ26) -> XXXX | Q26: =IF('[3]Tasa de Falla'!JA26=0,"",'[3]Tasa de Falla'!JA26) -> XXXX | R26: =IF('[3]Tasa de Falla'!JB26=0,"",'[3]Tasa de Falla'!JB26) -> XXXX
C27: ='[3]Tasa de Falla'!C27 -> 11 | D27: ='[3]Tasa de Falla'!D27 -> CAMPO SANTO - GÜEMES | E27: ='[3]Tasa de Falla'!E27 -> 132 | F27: ='[3]Tasa de Falla'!F27 -> 6.2 | G27: =IF('[3]Tasa de Falla'!IQ27=0,"",'[3]Tasa de Falla'!IQ27) -> XXXX | H27: =IF('[3]Tasa de Falla'!IR27=0,"",'[3]Tasa de Falla'!IR27) -> XXXX | I27: =IF('[3]Tasa de Falla'!IS27=0,"",'[3]Tasa de Falla'!IS27) -> XXXX | J27: =IF('[3]Tasa de Falla'!IT27=0,"",'[3]Tasa de Falla'!IT27) -> XXXX | K27: =IF('[3]Tasa de Falla'!IU27=0,"",'[3]Tasa de Falla'!IU27) -> XXXX | L27: =IF('[3]Tasa de Falla'!IV27=0,"",'[3]Tasa de Falla'!IV27) -> XXXX | M27: =IF('[3]Tasa de Falla'!IW27=0,"",'[3]Tasa de Falla'!IW27) -> XXXX | N27: =IF('[3]Tasa de Falla'!IX27=0,"",'[3]Tasa de Falla'!IX27) -> XXXX | O27: =IF('[3]Tasa de Falla'!IY27=0,"",'[3]Tasa de Falla'!IY27) -> XXXX | P27: =IF('[3]Tasa de Falla'!IZ27=0,"",'[3]Tasa de Falla'!IZ27) -> XXXX | Q27: =IF('[3]Tasa de Falla'!JA27=0,"",'[3]Tasa de Falla'!JA27) -> XXXX | R27: =IF('[3]Tasa de Falla'!JB27=0,"",'[3]Tasa de Falla'!JB27) -> XXXX
C28: ='[3]Tasa de Falla'!C28 -> 12 | D28: ='[3]Tasa de Falla'!D28 -> GÜEMES - SAN JUANCITO | E28: ='[3]Tasa de Falla'!E28 -> 132 | F28: ='[3]Tasa de Falla'!F28 -> 36.24 | G28: =IF('[3]Tasa de Falla'!IQ28=0,"",'[3]Tasa de Falla'!IQ28) ->  | H28: =IF('[3]Tasa de Falla'!IR28=0,"",'[3]Tasa de Falla'!IR28) ->  | I28: =IF('[3]Tasa de Falla'!IS28=0,"",'[3]Tasa de Falla'!IS28) ->  | J28: =IF('[3]Tasa de Falla'!IT28=0,"",'[3]Tasa de Falla'!IT28) ->  | K28: =IF('[3]Tasa de Falla'!IU28=0,"",'[3]Tasa de Falla'!IU28) ->  | L28: =IF('[3]Tasa de Falla'!IV28=0,"",'[3]Tasa de Falla'!IV28) ->  | M28: =IF('[3]Tasa de Falla'!IW28=0,"",'[3]Tasa de Falla'!IW28) -> 3 | N28: =IF('[3]Tasa de Falla'!IX28=0,"",'[3]Tasa de Falla'!IX28) -> 1 | O28: =IF('[3]Tasa de Falla'!IY28=0,"",'[3]Tasa de Falla'!IY28) ->  | P28: =IF('[3]Tasa de Falla'!IZ28=0,"",'[3]Tasa de Falla'!IZ28) ->  | Q28: =IF('[3]Tasa de Falla'!JA28=0,"",'[3]Tasa de Falla'!JA28) ->  | R28: =IF('[3]Tasa de Falla'!JB28=0,"",'[3]Tasa de Falla'!JB28) -> 
C29: ='[3]Tasa de Falla'!C29 -> 13 | D29: ='[3]Tasa de Falla'!D29 -> CATAMARCA - HUACRA | E29: ='[3]Tasa de Falla'!E29 -> 132 | F29: ='[3]Tasa de Falla'!F29 -> 67.3 | G29: =IF('[3]Tasa de Falla'!IQ29=0,"",'[3]Tasa de Falla'!IQ29) ->  | H29: =IF('[3]Tasa de Falla'!IR29=0,"",'[3]Tasa de Falla'!IR29) ->  | I29: =IF('[3]Tasa de Falla'!IS29=0,"",'[3]Tasa de Falla'!IS29) ->  | J29: =IF('[3]Tasa de Falla'!IT29=0,"",'[3]Tasa de Falla'!IT29) ->  | K29: =IF('[3]Tasa de Falla'!IU29=0,"",'[3]Tasa de Falla'!IU29) ->  | L29: =IF('[3]Tasa de Falla'!IV29=0,"",'[3]Tasa de Falla'!IV29) ->  | M29: =IF('[3]Tasa de Falla'!IW29=0,"",'[3]Tasa de Falla'!IW29) -> 1 | N29: =IF('[3]Tasa de Falla'!IX29=0,"",'[3]Tasa de Falla'!IX29) ->  | O29: =IF('[3]Tasa de Falla'!IY29=0,"",'[3]Tasa de Falla'!IY29) ->  | P29: =IF('[3]Tasa de Falla'!IZ29=0,"",'[3]Tasa de Falla'!IZ29) ->  | Q29: =IF('[3]Tasa de Falla'!JA29=0,"",'[3]Tasa de Falla'!JA29) ->  | R29: =IF('[3]Tasa de Falla'!JB29=0,"",'[3]Tasa de Falla'!JB29) -> 
C30: ='[3]Tasa de Falla'!C30 -> 14 | D30: ='[3]Tasa de Falla'!D30 -> HUACRA - LA CALERA | E30: ='[3]Tasa de Falla'!E30 -> 132 | F30: ='[3]Tasa de Falla'!F30 -> 91.2 | G30: =IF('[3]Tasa de Falla'!IQ30=0,"",'[3]Tasa de Falla'!IQ30) ->  | H30: =IF('[3]Tasa de Falla'!IR30=0,"",'[3]Tasa de Falla'!IR30) ->  | I30: =IF('[3]Tasa de Falla'!IS30=0,"",'[3]Tasa de Falla'!IS30) ->  | J30: =IF('[3]Tasa de Falla'!IT30=0,"",'[3]Tasa de Falla'!IT30) ->  | K30: =IF('[3]Tasa de Falla'!IU30=0,"",'[3]Tasa de Falla'!IU30) ->  | L30: =IF('[3]Tasa de Falla'!IV30=0,"",'[3]Tasa de Falla'!IV30) ->  | M30: =IF('[3]Tasa de Falla'!IW30=0,"",'[3]Tasa de Falla'!IW30) ->  | N30: =IF('[3]Tasa de Falla'!IX30=0,"",'[3]Tasa de Falla'!IX30) -> 1 | O30: =IF('[3]Tasa de Falla'!IY30=0,"",'[3]Tasa de Falla'!IY30) ->  | P30: =IF('[3]Tasa de Falla'!IZ30=0,"",'[3]Tasa de Falla'!IZ30) ->  | Q30: =IF('[3]Tasa de Falla'!JA30=0,"",'[3]Tasa de Falla'!JA30) ->  | R30: =IF('[3]Tasa de Falla'!JB30=0,"",'[3]Tasa de Falla'!JB30) -> 
C31: ='[3]Tasa de Falla'!C31 -> 15 | D31: ='[3]Tasa de Falla'!D31 -> AGUA BLANCA - INDEPENDENCIA | E31: ='[3]Tasa de Falla'!E31 -> 132 | F31: ='[3]Tasa de Falla'!F31 -> 34.14 | G31: =IF('[3]Tasa de Falla'!IQ31=0,"",'[3]Tasa de Falla'!IQ31) -> 1 | H31: =IF('[3]Tasa de Falla'!IR31=0,"",'[3]Tasa de Falla'!IR31) ->  | I31: =IF('[3]Tasa de Falla'!IS31=0,"",'[3]Tasa de Falla'!IS31) ->  | J31: =IF('[3]Tasa de Falla'!IT31=0,"",'[3]Tasa de Falla'!IT31) -> 1 | K31: =IF('[3]Tasa de Falla'!IU31=0,"",'[3]Tasa de Falla'!IU31) ->  | L31: =IF('[3]Tasa de Falla'!IV31=0,"",'[3]Tasa de Falla'!IV31) ->  | M31: =IF('[3]Tasa de Falla'!IW31=0,"",'[3]Tasa de Falla'!IW31) ->  | N31: =IF('[3]Tasa de Falla'!IX31=0,"",'[3]Tasa de Falla'!IX31) ->  | O31: =IF('[3]Tasa de Falla'!IY31=0,"",'[3]Tasa de Falla'!IY31) ->  | P31: =IF('[3]Tasa de Falla'!IZ31=0,"",'[3]Tasa de Falla'!IZ31) ->  | Q31: =IF('[3]Tasa de Falla'!JA31=0,"",'[3]Tasa de Falla'!JA31) ->  | R31: =IF('[3]Tasa de Falla'!JB31=0,"",'[3]Tasa de Falla'!JB31) -> 1
C32: ='[3]Tasa de Falla'!C32 -> 16 | D32: ='[3]Tasa de Falla'!D32 -> INDEPENDENCIA - EL BRACHO 1 | E32: ='[3]Tasa de Falla'!E32 -> 132 | F32: ='[3]Tasa de Falla'!F32 -> 17.1 | G32: =IF('[3]Tasa de Falla'!IQ32=0,"",'[3]Tasa de Falla'!IQ32) ->  | H32: =IF('[3]Tasa de Falla'!IR32=0,"",'[3]Tasa de Falla'!IR32) ->  | I32: =IF('[3]Tasa de Falla'!IS32=0,"",'[3]Tasa de Falla'!IS32) ->  | J32: =IF('[3]Tasa de Falla'!IT32=0,"",'[3]Tasa de Falla'!IT32) -> 1 | K32: =IF('[3]Tasa de Falla'!IU32=0,"",'[3]Tasa de Falla'!IU32) ->  | L32: =IF('[3]Tasa de Falla'!IV32=0,"",'[3]Tasa de Falla'!IV32) ->  | M32: =IF('[3]Tasa de Falla'!IW32=0,"",'[3]Tasa de Falla'!IW32) ->  | N32: =IF('[3]Tasa de Falla'!IX32=0,"",'[3]Tasa de Falla'!IX32) ->  | O32: =IF('[3]Tasa de Falla'!IY32=0,"",'[3]Tasa de Falla'!IY32) ->  | P32: =IF('[3]Tasa de Falla'!IZ32=0,"",'[3]Tasa de Falla'!IZ32) ->  | Q32: =IF('[3]Tasa de Falla'!JA32=0,"",'[3]Tasa de Falla'!JA32) -> 1 | R32: =IF('[3]Tasa de Falla'!JB32=0,"",'[3]Tasa de Falla'!JB32) -> 
C33: ='[3]Tasa de Falla'!C33 -> 17 | D33: ='[3]Tasa de Falla'!D33 -> INDEPENDENCIA - LULES - PAPEL TUCUMAN | E33: ='[3]Tasa de Falla'!E33 -> 132 | F33: ='[3]Tasa de Falla'!F33 -> 19.3 | G33: =IF('[3]Tasa de Falla'!IQ33=0,"",'[3]Tasa de Falla'!IQ33) ->  | H33: =IF('[3]Tasa de Falla'!IR33=0,"",'[3]Tasa de Falla'!IR33) ->  | I33: =IF('[3]Tasa de Falla'!IS33=0,"",'[3]Tasa de Falla'!IS33) ->  | J33: =IF('[3]Tasa de Falla'!IT33=0,"",'[3]Tasa de Falla'!IT33) ->  | K33: =IF('[3]Tasa de Falla'!IU33=0,"",'[3]Tasa de Falla'!IU33) ->  | L33: =IF('[3]Tasa de Falla'!IV33=0,"",'[3]Tasa de Falla'!IV33) ->  | M33: =IF('[3]Tasa de Falla'!IW33=0,"",'[3]Tasa de Falla'!IW33) ->  | N33: =IF('[3]Tasa de Falla'!IX33=0,"",'[3]Tasa de Falla'!IX33) ->  | O33: =IF('[3]Tasa de Falla'!IY33=0,"",'[3]Tasa de Falla'!IY33) ->  | P33: =IF('[3]Tasa de Falla'!IZ33=0,"",'[3]Tasa de Falla'!IZ33) ->  | Q33: =IF('[3]Tasa de Falla'!JA33=0,"",'[3]Tasa de Falla'!JA33) ->  | R33: =IF('[3]Tasa de Falla'!JB33=0,"",'[3]Tasa de Falla'!JB33) -> 
C34: ='[3]Tasa de Falla'!C34 -> 18 | D34: ='[3]Tasa de Falla'!D34 -> FRIAS - LA CALERA NOA. | E34: ='[3]Tasa de Falla'!E34 -> 132 | F34: ='[3]Tasa de Falla'!F34 -> 27.3 | G34: =IF('[3]Tasa de Falla'!IQ34=0,"",'[3]Tasa de Falla'!IQ34) ->  | H34: =IF('[3]Tasa de Falla'!IR34=0,"",'[3]Tasa de Falla'!IR34) ->  | I34: =IF('[3]Tasa de Falla'!IS34=0,"",'[3]Tasa de Falla'!IS34) -> 1 | J34: =IF('[3]Tasa de Falla'!IT34=0,"",'[3]Tasa de Falla'!IT34) ->  | K34: =IF('[3]Tasa de Falla'!IU34=0,"",'[3]Tasa de Falla'!IU34) ->  | L34: =IF('[3]Tasa de Falla'!IV34=0,"",'[3]Tasa de Falla'!IV34) ->  | M34: =IF('[3]Tasa de Falla'!IW34=0,"",'[3]Tasa de Falla'!IW34) ->  | N34: =IF('[3]Tasa de Falla'!IX34=0,"",'[3]Tasa de Falla'!IX34) ->  | O34: =IF('[3]Tasa de Falla'!IY34=0,"",'[3]Tasa de Falla'!IY34) ->  | P34: =IF('[3]Tasa de Falla'!IZ34=0,"",'[3]Tasa de Falla'!IZ34) ->  | Q34: =IF('[3]Tasa de Falla'!JA34=0,"",'[3]Tasa de Falla'!JA34) ->  | R34: =IF('[3]Tasa de Falla'!JB34=0,"",'[3]Tasa de Falla'!JB34) -> 
C35: ='[3]Tasa de Falla'!C35 -> 19 | D35: ='[3]Tasa de Falla'!D35 -> LA BANDA - SANTIAGO CENTRO | E35: ='[3]Tasa de Falla'!E35 -> 132 | F35: ='[3]Tasa de Falla'!F35 -> 10.91 | G35: =IF('[3]Tasa de Falla'!IQ35=0,"",'[3]Tasa de Falla'!IQ35) ->  | H35: =IF('[3]Tasa de Falla'!IR35=0,"",'[3]Tasa de Falla'!IR35) ->  | I35: =IF('[3]Tasa de Falla'!IS35=0,"",'[3]Tasa de Falla'!IS35) ->  | J35: =IF('[3]Tasa de Falla'!IT35=0,"",'[3]Tasa de Falla'!IT35) ->  | K35: =IF('[3]Tasa de Falla'!IU35=0,"",'[3]Tasa de Falla'!IU35) ->  | L35: =IF('[3]Tasa de Falla'!IV35=0,"",'[3]Tasa de Falla'!IV35) -> 1 | M35: =IF('[3]Tasa de Falla'!IW35=0,"",'[3]Tasa de Falla'!IW35) ->  | N35: =IF('[3]Tasa de Falla'!IX35=0,"",'[3]Tasa de Falla'!IX35) ->  | O35: =IF('[3]Tasa de Falla'!IY35=0,"",'[3]Tasa de Falla'!IY35) -> XXXX | P35: =IF('[3]Tasa de Falla'!IZ35=0,"",'[3]Tasa de Falla'!IZ35) -> XXXX | Q35: =IF('[3]Tasa de Falla'!JA35=0,"",'[3]Tasa de Falla'!JA35) -> XXXX | R35: =IF('[3]Tasa de Falla'!JB35=0,"",'[3]Tasa de Falla'!JB35) -> XXXX
C36: ='[3]Tasa de Falla'!C36 -> 20 | D36: ='[3]Tasa de Falla'!D36 -> LIBERTADOR NOA. - PICHANAL | E36: ='[3]Tasa de Falla'!E36 -> 132 | F36: ='[3]Tasa de Falla'!F36 -> 76 | G36: =IF('[3]Tasa de Falla'!IQ36=0,"",'[3]Tasa de Falla'!IQ36) ->  | H36: =IF('[3]Tasa de Falla'!IR36=0,"",'[3]Tasa de Falla'!IR36) -> 2 | I36: =IF('[3]Tasa de Falla'!IS36=0,"",'[3]Tasa de Falla'!IS36) ->  | J36: =IF('[3]Tasa de Falla'!IT36=0,"",'[3]Tasa de Falla'!IT36) -> 1 | K36: =IF('[3]Tasa de Falla'!IU36=0,"",'[3]Tasa de Falla'!IU36) -> 1 | L36: =IF('[3]Tasa de Falla'!IV36=0,"",'[3]Tasa de Falla'!IV36) -> 4 | M36: =IF('[3]Tasa de Falla'!IW36=0,"",'[3]Tasa de Falla'!IW36) ->  | N36: =IF('[3]Tasa de Falla'!IX36=0,"",'[3]Tasa de Falla'!IX36) ->  | O36: =IF('[3]Tasa de Falla'!IY36=0,"",'[3]Tasa de Falla'!IY36) ->  | P36: =IF('[3]Tasa de Falla'!IZ36=0,"",'[3]Tasa de Falla'!IZ36) ->  | Q36: =IF('[3]Tasa de Falla'!JA36=0,"",'[3]Tasa de Falla'!JA36) ->  | R36: =IF('[3]Tasa de Falla'!JB36=0,"",'[3]Tasa de Falla'!JB36) -> 
C37: ='[3]Tasa de Falla'!C37 -> 21 | D37: ='[3]Tasa de Falla'!D37 -> GÜEMES - METAN | E37: ='[3]Tasa de Falla'!E37 -> 132 | F37: ='[3]Tasa de Falla'!F37 -> 97.13 | G37: =IF('[3]Tasa de Falla'!IQ37=0,"",'[3]Tasa de Falla'!IQ37) -> XXXX | H37: =IF('[3]Tasa de Falla'!IR37=0,"",'[3]Tasa de Falla'!IR37) -> XXXX | I37: =IF('[3]Tasa de Falla'!IS37=0,"",'[3]Tasa de Falla'!IS37) -> XXXX | J37: =IF('[3]Tasa de Falla'!IT37=0,"",'[3]Tasa de Falla'!IT37) -> XXXX | K37: =IF('[3]Tasa de Falla'!IU37=0,"",'[3]Tasa de Falla'!IU37) -> XXXX | L37: =IF('[3]Tasa de Falla'!IV37=0,"",'[3]Tasa de Falla'!IV37) -> XXXX | M37: =IF('[3]Tasa de Falla'!IW37=0,"",'[3]Tasa de Falla'!IW37) -> XXXX | N37: =IF('[3]Tasa de Falla'!IX37=0,"",'[3]Tasa de Falla'!IX37) -> XXXX | O37: =IF('[3]Tasa de Falla'!IY37=0,"",'[3]Tasa de Falla'!IY37) -> XXXX | P37: =IF('[3]Tasa de Falla'!IZ37=0,"",'[3]Tasa de Falla'!IZ37) -> XXXX | Q37: =IF('[3]Tasa de Falla'!JA37=0,"",'[3]Tasa de Falla'!JA37) -> XXXX | R37: =IF('[3]Tasa de Falla'!JB37=0,"",'[3]Tasa de Falla'!JB37) -> XXXX
C38: ='[3]Tasa de Falla'!C38 -> 22 | D38: ='[3]Tasa de Falla'!D38 -> MINETTI - SAN JUANCITO | E38: ='[3]Tasa de Falla'!E38 -> 132 | F38: ='[3]Tasa de Falla'!F38 -> 26 | G38: =IF('[3]Tasa de Falla'!IQ38=0,"",'[3]Tasa de Falla'!IQ38) ->  | H38: =IF('[3]Tasa de Falla'!IR38=0,"",'[3]Tasa de Falla'!IR38) ->  | I38: =IF('[3]Tasa de Falla'!IS38=0,"",'[3]Tasa de Falla'!IS38) ->  | J38: =IF('[3]Tasa de Falla'!IT38=0,"",'[3]Tasa de Falla'!IT38) ->  | K38: =IF('[3]Tasa de Falla'!IU38=0,"",'[3]Tasa de Falla'!IU38) ->  | L38: =IF('[3]Tasa de Falla'!IV38=0,"",'[3]Tasa de Falla'!IV38) ->  | M38: =IF('[3]Tasa de Falla'!IW38=0,"",'[3]Tasa de Falla'!IW38) ->  | N38: =IF('[3]Tasa de Falla'!IX38=0,"",'[3]Tasa de Falla'!IX38) -> 2 | O38: =IF('[3]Tasa de Falla'!IY38=0,"",'[3]Tasa de Falla'!IY38) ->  | P38: =IF('[3]Tasa de Falla'!IZ38=0,"",'[3]Tasa de Falla'!IZ38) ->  | Q38: =IF('[3]Tasa de Falla'!JA38=0,"",'[3]Tasa de Falla'!JA38) -> 1 | R38: =IF('[3]Tasa de Falla'!JB38=0,"",'[3]Tasa de Falla'!JB38) -> 
C39: ='[3]Tasa de Falla'!C39 -> 23 | D39: ='[3]Tasa de Falla'!D39 -> PALPALA - JUJUY SUR | E39: ='[3]Tasa de Falla'!E39 -> 132 | F39: ='[3]Tasa de Falla'!F39 -> 14 | G39: =IF('[3]Tasa de Falla'!IQ39=0,"",'[3]Tasa de Falla'!IQ39) -> XXXX | H39: =IF('[3]Tasa de Falla'!IR39=0,"",'[3]Tasa de Falla'!IR39) -> XXXX | I39: =IF('[3]Tasa de Falla'!IS39=0,"",'[3]Tasa de Falla'!IS39) -> XXXX | J39: =IF('[3]Tasa de Falla'!IT39=0,"",'[3]Tasa de Falla'!IT39) -> XXXX | K39: =IF('[3]Tasa de Falla'!IU39=0,"",'[3]Tasa de Falla'!IU39) -> XXXX | L39: =IF('[3]Tasa de Falla'!IV39=0,"",'[3]Tasa de Falla'!IV39) -> XXXX | M39: =IF('[3]Tasa de Falla'!IW39=0,"",'[3]Tasa de Falla'!IW39) -> XXXX | N39: =IF('[3]Tasa de Falla'!IX39=0,"",'[3]Tasa de Falla'!IX39) -> XXXX | O39: =IF('[3]Tasa de Falla'!IY39=0,"",'[3]Tasa de Falla'!IY39) -> XXXX | P39: =IF('[3]Tasa de Falla'!IZ39=0,"",'[3]Tasa de Falla'!IZ39) -> XXXX | Q39: =IF('[3]Tasa de Falla'!JA39=0,"",'[3]Tasa de Falla'!JA39) -> XXXX | R39: =IF('[3]Tasa de Falla'!JB39=0,"",'[3]Tasa de Falla'!JB39) -> XXXX
C40: ='[3]Tasa de Falla'!C40 -> 24 | D40: ='[3]Tasa de Falla'!D40 -> ORAN - PICHANAL | E40: ='[3]Tasa de Falla'!E40 -> 132 | F40: ='[3]Tasa de Falla'!F40 -> 17 | G40: =IF('[3]Tasa de Falla'!IQ40=0,"",'[3]Tasa de Falla'!IQ40) -> XXXX | H40: =IF('[3]Tasa de Falla'!IR40=0,"",'[3]Tasa de Falla'!IR40) -> XXXX | I40: =IF('[3]Tasa de Falla'!IS40=0,"",'[3]Tasa de Falla'!IS40) -> XXXX | J40: =IF('[3]Tasa de Falla'!IT40=0,"",'[3]Tasa de Falla'!IT40) -> XXXX | K40: =IF('[3]Tasa de Falla'!IU40=0,"",'[3]Tasa de Falla'!IU40) -> XXXX | L40: =IF('[3]Tasa de Falla'!IV40=0,"",'[3]Tasa de Falla'!IV40) -> XXXX | M40: =IF('[3]Tasa de Falla'!IW40=0,"",'[3]Tasa de Falla'!IW40) -> XXXX | N40: =IF('[3]Tasa de Falla'!IX40=0,"",'[3]Tasa de Falla'!IX40) -> XXXX | O40: =IF('[3]Tasa de Falla'!IY40=0,"",'[3]Tasa de Falla'!IY40) -> XXXX | P40: =IF('[3]Tasa de Falla'!IZ40=0,"",'[3]Tasa de Falla'!IZ40) -> XXXX | Q40: =IF('[3]Tasa de Falla'!JA40=0,"",'[3]Tasa de Falla'!JA40) -> XXXX | R40: =IF('[3]Tasa de Falla'!JB40=0,"",'[3]Tasa de Falla'!JB40) -> XXXX
C41: ='[3]Tasa de Falla'!C41 -> 25 | D41: ='[3]Tasa de Falla'!D41 -> PICHANAL - TARTAGAL | E41: ='[3]Tasa de Falla'!E41 -> 132 | F41: ='[3]Tasa de Falla'!F41 -> 105 | G41: =IF('[3]Tasa de Falla'!IQ41=0,"",'[3]Tasa de Falla'!IQ41) -> 1 | H41: =IF('[3]Tasa de Falla'!IR41=0,"",'[3]Tasa de Falla'!IR41) -> 1 | I41: =IF('[3]Tasa de Falla'!IS41=0,"",'[3]Tasa de Falla'!IS41) ->  | J41: =IF('[3]Tasa de Falla'!IT41=0,"",'[3]Tasa de Falla'!IT41) ->  | K41: =IF('[3]Tasa de Falla'!IU41=0,"",'[3]Tasa de Falla'!IU41) ->  | L41: =IF('[3]Tasa de Falla'!IV41=0,"",'[3]Tasa de Falla'!IV41) -> XXXX | M41: =IF('[3]Tasa de Falla'!IW41=0,"",'[3]Tasa de Falla'!IW41) -> XXXX | N41: =IF('[3]Tasa de Falla'!IX41=0,"",'[3]Tasa de Falla'!IX41) -> XXXX | O41: =IF('[3]Tasa de Falla'!IY41=0,"",'[3]Tasa de Falla'!IY41) -> XXXX | P41: =IF('[3]Tasa de Falla'!IZ41=0,"",'[3]Tasa de Falla'!IZ41) -> XXXX | Q41: =IF('[3]Tasa de Falla'!JA41=0,"",'[3]Tasa de Falla'!JA41) -> XXXX | R41: =IF('[3]Tasa de Falla'!JB41=0,"",'[3]Tasa de Falla'!JB41) -> XXXX
C42: ='[3]Tasa de Falla'!C42 -> 26 | D42: ='[3]Tasa de Falla'!D42 -> C.H. RIO HONDO - LA BANDA | E42: ='[3]Tasa de Falla'!E42 -> 132 | F42: ='[3]Tasa de Falla'!F42 -> 76.5 | G42: =IF('[3]Tasa de Falla'!IQ42=0,"",'[3]Tasa de Falla'!IQ42) ->  | H42: =IF('[3]Tasa de Falla'!IR42=0,"",'[3]Tasa de Falla'!IR42) ->  | I42: =IF('[3]Tasa de Falla'!IS42=0,"",'[3]Tasa de Falla'!IS42) ->  | J42: =IF('[3]Tasa de Falla'!IT42=0,"",'[3]Tasa de Falla'!IT42) -> 2 | K42: =IF('[3]Tasa de Falla'!IU42=0,"",'[3]Tasa de Falla'!IU42) ->  | L42: =IF('[3]Tasa de Falla'!IV42=0,"",'[3]Tasa de Falla'!IV42) -> 1 | M42: =IF('[3]Tasa de Falla'!IW42=0,"",'[3]Tasa de Falla'!IW42) ->  | N42: =IF('[3]Tasa de Falla'!IX42=0,"",'[3]Tasa de Falla'!IX42) ->  | O42: =IF('[3]Tasa de Falla'!IY42=0,"",'[3]Tasa de Falla'!IY42) ->  | P42: =IF('[3]Tasa de Falla'!IZ42=0,"",'[3]Tasa de Falla'!IZ42) ->  | Q42: =IF('[3]Tasa de Falla'!JA42=0,"",'[3]Tasa de Falla'!JA42) ->  | R42: =IF('[3]Tasa de Falla'!JB42=0,"",'[3]Tasa de Falla'!JB42) -> 
C43: ='[3]Tasa de Falla'!C43 -> 27 | D43: ='[3]Tasa de Falla'!D43 -> LA RIOJA - RECREO 2 | E43: ='[3]Tasa de Falla'!E43 -> 132 | F43: ='[3]Tasa de Falla'!F43 -> 220 | G43: =IF('[3]Tasa de Falla'!IQ43=0,"",'[3]Tasa de Falla'!IQ43) -> XXXX | H43: =IF('[3]Tasa de Falla'!IR43=0,"",'[3]Tasa de Falla'!IR43) -> XXXX | I43: =IF('[3]Tasa de Falla'!IS43=0,"",'[3]Tasa de Falla'!IS43) -> XXXX | J43: =IF('[3]Tasa de Falla'!IT43=0,"",'[3]Tasa de Falla'!IT43) -> XXXX | K43: =IF('[3]Tasa de Falla'!IU43=0,"",'[3]Tasa de Falla'!IU43) -> XXXX | L43: =IF('[3]Tasa de Falla'!IV43=0,"",'[3]Tasa de Falla'!IV43) -> XXXX | M43: =IF('[3]Tasa de Falla'!IW43=0,"",'[3]Tasa de Falla'!IW43) -> XXXX | N43: =IF('[3]Tasa de Falla'!IX43=0,"",'[3]Tasa de Falla'!IX43) -> XXXX | O43: =IF('[3]Tasa de Falla'!IY43=0,"",'[3]Tasa de Falla'!IY43) -> XXXX | P43: =IF('[3]Tasa de Falla'!IZ43=0,"",'[3]Tasa de Falla'!IZ43) -> XXXX | Q43: =IF('[3]Tasa de Falla'!JA43=0,"",'[3]Tasa de Falla'!JA43) -> XXXX | R43: =IF('[3]Tasa de Falla'!JB43=0,"",'[3]Tasa de Falla'!JB43) -> XXXX
C44: ='[3]Tasa de Falla'!C44 -> 28 | D44: ='[3]Tasa de Falla'!D44 -> CAMPO SANTO - SALTA SUR | E44: ='[3]Tasa de Falla'!E44 -> 132 | F44: ='[3]Tasa de Falla'!F44 -> 40.92 | G44: =IF('[3]Tasa de Falla'!IQ44=0,"",'[3]Tasa de Falla'!IQ44) -> XXXX | H44: =IF('[3]Tasa de Falla'!IR44=0,"",'[3]Tasa de Falla'!IR44) -> XXXX | I44: =IF('[3]Tasa de Falla'!IS44=0,"",'[3]Tasa de Falla'!IS44) -> XXXX | J44: =IF('[3]Tasa de Falla'!IT44=0,"",'[3]Tasa de Falla'!IT44) -> XXXX | K44: =IF('[3]Tasa de Falla'!IU44=0,"",'[3]Tasa de Falla'!IU44) -> XXXX | L44: =IF('[3]Tasa de Falla'!IV44=0,"",'[3]Tasa de Falla'!IV44) -> XXXX | M44: =IF('[3]Tasa de Falla'!IW44=0,"",'[3]Tasa de Falla'!IW44) -> XXXX | N44: =IF('[3]Tasa de Falla'!IX44=0,"",'[3]Tasa de Falla'!IX44) -> XXXX | O44: =IF('[3]Tasa de Falla'!IY44=0,"",'[3]Tasa de Falla'!IY44) -> XXXX | P44: =IF('[3]Tasa de Falla'!IZ44=0,"",'[3]Tasa de Falla'!IZ44) -> XXXX | Q44: =IF('[3]Tasa de Falla'!JA44=0,"",'[3]Tasa de Falla'!JA44) -> XXXX | R44: =IF('[3]Tasa de Falla'!JB44=0,"",'[3]Tasa de Falla'!JB44) -> XXXX
C45: ='[3]Tasa de Falla'!C45 -> 29 | D45: ='[3]Tasa de Falla'!D45 -> PALPALA - SAN JUANCITO | E45: ='[3]Tasa de Falla'!E45 -> 132 | F45: ='[3]Tasa de Falla'!F45 -> 23.9 | G45: =IF('[3]Tasa de Falla'!IQ45=0,"",'[3]Tasa de Falla'!IQ45) ->  | H45: =IF('[3]Tasa de Falla'!IR45=0,"",'[3]Tasa de Falla'!IR45) ->  | I45: =IF('[3]Tasa de Falla'!IS45=0,"",'[3]Tasa de Falla'!IS45) ->  | J45: =IF('[3]Tasa de Falla'!IT45=0,"",'[3]Tasa de Falla'!IT45) -> 2 | K45: =IF('[3]Tasa de Falla'!IU45=0,"",'[3]Tasa de Falla'!IU45) ->  | L45: =IF('[3]Tasa de Falla'!IV45=0,"",'[3]Tasa de Falla'!IV45) ->  | M45: =IF('[3]Tasa de Falla'!IW45=0,"",'[3]Tasa de Falla'!IW45) -> 2 | N45: =IF('[3]Tasa de Falla'!IX45=0,"",'[3]Tasa de Falla'!IX45) -> 2 | O45: =IF('[3]Tasa de Falla'!IY45=0,"",'[3]Tasa de Falla'!IY45) ->  | P45: =IF('[3]Tasa de Falla'!IZ45=0,"",'[3]Tasa de Falla'!IZ45) ->  | Q45: =IF('[3]Tasa de Falla'!JA45=0,"",'[3]Tasa de Falla'!JA45) ->  | R45: =IF('[3]Tasa de Falla'!JB45=0,"",'[3]Tasa de Falla'!JB45) -> 
C46: ='[3]Tasa de Falla'!C46 -> 30 | D46: ='[3]Tasa de Falla'!D46 -> SAN JUANCITO - SAN PEDRO JUJUY | E46: ='[3]Tasa de Falla'!E46 -> 132 | F46: ='[3]Tasa de Falla'!F46 -> 27 | G46: =IF('[3]Tasa de Falla'!IQ46=0,"",'[3]Tasa de Falla'!IQ46) ->  | H46: =IF('[3]Tasa de Falla'!IR46=0,"",'[3]Tasa de Falla'!IR46) ->  | I46: =IF('[3]Tasa de Falla'!IS46=0,"",'[3]Tasa de Falla'!IS46) ->  | J46: =IF('[3]Tasa de Falla'!IT46=0,"",'[3]Tasa de Falla'!IT46) ->  | K46: =IF('[3]Tasa de Falla'!IU46=0,"",'[3]Tasa de Falla'!IU46) ->  | L46: =IF('[3]Tasa de Falla'!IV46=0,"",'[3]Tasa de Falla'!IV46) ->  | M46: =IF('[3]Tasa de Falla'!IW46=0,"",'[3]Tasa de Falla'!IW46) ->  | N46: =IF('[3]Tasa de Falla'!IX46=0,"",'[3]Tasa de Falla'!IX46) ->  | O46: =IF('[3]Tasa de Falla'!IY46=0,"",'[3]Tasa de Falla'!IY46) ->  | P46: =IF('[3]Tasa de Falla'!IZ46=0,"",'[3]Tasa de Falla'!IZ46) ->  | Q46: =IF('[3]Tasa de Falla'!JA46=0,"",'[3]Tasa de Falla'!JA46) ->  | R46: =IF('[3]Tasa de Falla'!JB46=0,"",'[3]Tasa de Falla'!JB46) -> 
C47: ='[3]Tasa de Falla'!C47 -> 31 | D47: ='[3]Tasa de Falla'!D47 -> SAN MARTIN - CATAMARCA | E47: ='[3]Tasa de Falla'!E47 -> 132 | F47: ='[3]Tasa de Falla'!F47 -> 88 | G47: =IF('[3]Tasa de Falla'!IQ47=0,"",'[3]Tasa de Falla'!IQ47) -> XXXX | H47: =IF('[3]Tasa de Falla'!IR47=0,"",'[3]Tasa de Falla'!IR47) -> XXXX | I47: =IF('[3]Tasa de Falla'!IS47=0,"",'[3]Tasa de Falla'!IS47) -> XXXX | J47: =IF('[3]Tasa de Falla'!IT47=0,"",'[3]Tasa de Falla'!IT47) -> XXXX | K47: =IF('[3]Tasa de Falla'!IU47=0,"",'[3]Tasa de Falla'!IU47) -> XXXX | L47: =IF('[3]Tasa de Falla'!IV47=0,"",'[3]Tasa de Falla'!IV47) -> XXXX | M47: =IF('[3]Tasa de Falla'!IW47=0,"",'[3]Tasa de Falla'!IW47) -> XXXX | N47: =IF('[3]Tasa de Falla'!IX47=0,"",'[3]Tasa de Falla'!IX47) -> XXXX | O47: =IF('[3]Tasa de Falla'!IY47=0,"",'[3]Tasa de Falla'!IY47) -> XXXX | P47: =IF('[3]Tasa de Falla'!IZ47=0,"",'[3]Tasa de Falla'!IZ47) -> XXXX | Q47: =IF('[3]Tasa de Falla'!JA47=0,"",'[3]Tasa de Falla'!JA47) -> XXXX | R47: =IF('[3]Tasa de Falla'!JB47=0,"",'[3]Tasa de Falla'!JB47) -> XXXX
C48: ='[3]Tasa de Falla'!C48 -> 32 | D48: ='[3]Tasa de Falla'!D48 -> SAN MARTIN - RECREO | E48: ='[3]Tasa de Falla'!E48 -> 132 | F48: ='[3]Tasa de Falla'!F48 -> 115 | G48: =IF('[3]Tasa de Falla'!IQ48=0,"",'[3]Tasa de Falla'!IQ48) -> XXXX | H48: =IF('[3]Tasa de Falla'!IR48=0,"",'[3]Tasa de Falla'!IR48) -> XXXX | I48: =IF('[3]Tasa de Falla'!IS48=0,"",'[3]Tasa de Falla'!IS48) -> XXXX | J48: =IF('[3]Tasa de Falla'!IT48=0,"",'[3]Tasa de Falla'!IT48) -> XXXX | K48: =IF('[3]Tasa de Falla'!IU48=0,"",'[3]Tasa de Falla'!IU48) -> XXXX | L48: =IF('[3]Tasa de Falla'!IV48=0,"",'[3]Tasa de Falla'!IV48) -> XXXX | M48: =IF('[3]Tasa de Falla'!IW48=0,"",'[3]Tasa de Falla'!IW48) -> XXXX | N48: =IF('[3]Tasa de Falla'!IX48=0,"",'[3]Tasa de Falla'!IX48) -> XXXX | O48: =IF('[3]Tasa de Falla'!IY48=0,"",'[3]Tasa de Falla'!IY48) -> XXXX | P48: =IF('[3]Tasa de Falla'!IZ48=0,"",'[3]Tasa de Falla'!IZ48) -> XXXX | Q48: =IF('[3]Tasa de Falla'!JA48=0,"",'[3]Tasa de Falla'!JA48) -> XXXX | R48: =IF('[3]Tasa de Falla'!JB48=0,"",'[3]Tasa de Falla'!JB48) -> XXXX
C49: ='[3]Tasa de Falla'!C49 -> 33 | D49: ='[3]Tasa de Falla'!D49 -> SAN MARTIN C. - LA RIOJA | E49: ='[3]Tasa de Falla'!E49 -> 132 | F49: ='[3]Tasa de Falla'!F49 -> 105 | G49: =IF('[3]Tasa de Falla'!IQ49=0,"",'[3]Tasa de Falla'!IQ49) -> XXXX | H49: =IF('[3]Tasa de Falla'!IR49=0,"",'[3]Tasa de Falla'!IR49) -> XXXX | I49: =IF('[3]Tasa de Falla'!IS49=0,"",'[3]Tasa de Falla'!IS49) -> XXXX | J49: =IF('[3]Tasa de Falla'!IT49=0,"",'[3]Tasa de Falla'!IT49) -> XXXX | K49: =IF('[3]Tasa de Falla'!IU49=0,"",'[3]Tasa de Falla'!IU49) -> XXXX | L49: =IF('[3]Tasa de Falla'!IV49=0,"",'[3]Tasa de Falla'!IV49) -> XXXX | M49: =IF('[3]Tasa de Falla'!IW49=0,"",'[3]Tasa de Falla'!IW49) -> XXXX | N49: =IF('[3]Tasa de Falla'!IX49=0,"",'[3]Tasa de Falla'!IX49) -> XXXX | O49: =IF('[3]Tasa de Falla'!IY49=0,"",'[3]Tasa de Falla'!IY49) -> XXXX | P49: =IF('[3]Tasa de Falla'!IZ49=0,"",'[3]Tasa de Falla'!IZ49) -> XXXX | Q49: =IF('[3]Tasa de Falla'!JA49=0,"",'[3]Tasa de Falla'!JA49) -> XXXX | R49: =IF('[3]Tasa de Falla'!JB49=0,"",'[3]Tasa de Falla'!JB49) -> XXXX
C50: ='[3]Tasa de Falla'!C50 -> 34 | D50: ='[3]Tasa de Falla'!D50 -> SAN PEDRO JUJUY - LIBERTADOR NOA. | E50: ='[3]Tasa de Falla'!E50 -> 132 | F50: ='[3]Tasa de Falla'!F50 -> 49 | G50: =IF('[3]Tasa de Falla'!IQ50=0,"",'[3]Tasa de Falla'!IQ50) ->  | H50: =IF('[3]Tasa de Falla'!IR50=0,"",'[3]Tasa de Falla'!IR50) -> 1 | I50: =IF('[3]Tasa de Falla'!IS50=0,"",'[3]Tasa de Falla'!IS50) ->  | J50: =IF('[3]Tasa de Falla'!IT50=0,"",'[3]Tasa de Falla'!IT50) ->  | K50: =IF('[3]Tasa de Falla'!IU50=0,"",'[3]Tasa de Falla'!IU50) ->  | L50: =IF('[3]Tasa de Falla'!IV50=0,"",'[3]Tasa de Falla'!IV50) ->  | M50: =IF('[3]Tasa de Falla'!IW50=0,"",'[3]Tasa de Falla'!IW50) ->  | N50: =IF('[3]Tasa de Falla'!IX50=0,"",'[3]Tasa de Falla'!IX50) ->  | O50: =IF('[3]Tasa de Falla'!IY50=0,"",'[3]Tasa de Falla'!IY50) ->  | P50: =IF('[3]Tasa de Falla'!IZ50=0,"",'[3]Tasa de Falla'!IZ50) ->  | Q50: =IF('[3]Tasa de Falla'!JA50=0,"",'[3]Tasa de Falla'!JA50) ->  | R50: =IF('[3]Tasa de Falla'!JB50=0,"",'[3]Tasa de Falla'!JB50) -> 
C51: ='[3]Tasa de Falla'!C51 -> 35 | D51: ='[3]Tasa de Falla'!D51 -> TUCUMAN NORTE - EL BRACHO | E51: ='[3]Tasa de Falla'!E51 -> 132 | F51: ='[3]Tasa de Falla'!F51 -> 31.5 | G51: =IF('[3]Tasa de Falla'!IQ51=0,"",'[3]Tasa de Falla'!IQ51) ->  | H51: =IF('[3]Tasa de Falla'!IR51=0,"",'[3]Tasa de Falla'!IR51) -> 1 | I51: =IF('[3]Tasa de Falla'!IS51=0,"",'[3]Tasa de Falla'!IS51) ->  | J51: =IF('[3]Tasa de Falla'!IT51=0,"",'[3]Tasa de Falla'!IT51) ->  | K51: =IF('[3]Tasa de Falla'!IU51=0,"",'[3]Tasa de Falla'!IU51) ->  | L51: =IF('[3]Tasa de Falla'!IV51=0,"",'[3]Tasa de Falla'!IV51) ->  | M51: =IF('[3]Tasa de Falla'!IW51=0,"",'[3]Tasa de Falla'!IW51) ->  | N51: =IF('[3]Tasa de Falla'!IX51=0,"",'[3]Tasa de Falla'!IX51) ->  | O51: =IF('[3]Tasa de Falla'!IY51=0,"",'[3]Tasa de Falla'!IY51) ->  | P51: =IF('[3]Tasa de Falla'!IZ51=0,"",'[3]Tasa de Falla'!IZ51) ->  | Q51: =IF('[3]Tasa de Falla'!JA51=0,"",'[3]Tasa de Falla'!JA51) -> 1 | R51: =IF('[3]Tasa de Falla'!JB51=0,"",'[3]Tasa de Falla'!JB51) -> 
C52: ='[3]Tasa de Falla'!C52 -> 36 | D52: ='[3]Tasa de Falla'!D52 -> C.H. EL CADILLAL - TUCUMAN NORTE | E52: ='[3]Tasa de Falla'!E52 -> 132 | F52: ='[3]Tasa de Falla'!F52 -> 21.8 | G52: =IF('[3]Tasa de Falla'!IQ52=0,"",'[3]Tasa de Falla'!IQ52) ->  | H52: =IF('[3]Tasa de Falla'!IR52=0,"",'[3]Tasa de Falla'!IR52) ->  | I52: =IF('[3]Tasa de Falla'!IS52=0,"",'[3]Tasa de Falla'!IS52) ->  | J52: =IF('[3]Tasa de Falla'!IT52=0,"",'[3]Tasa de Falla'!IT52) -> 1 | K52: =IF('[3]Tasa de Falla'!IU52=0,"",'[3]Tasa de Falla'!IU52) -> 2 | L52: =IF('[3]Tasa de Falla'!IV52=0,"",'[3]Tasa de Falla'!IV52) ->  | M52: =IF('[3]Tasa de Falla'!IW52=0,"",'[3]Tasa de Falla'!IW52) -> 1 | N52: =IF('[3]Tasa de Falla'!IX52=0,"",'[3]Tasa de Falla'!IX52) ->  | O52: =IF('[3]Tasa de Falla'!IY52=0,"",'[3]Tasa de Falla'!IY52) ->  | P52: =IF('[3]Tasa de Falla'!IZ52=0,"",'[3]Tasa de Falla'!IZ52) ->  | Q52: =IF('[3]Tasa de Falla'!JA52=0,"",'[3]Tasa de Falla'!JA52) ->  | R52: =IF('[3]Tasa de Falla'!JB52=0,"",'[3]Tasa de Falla'!JB52) -> 
C53: ='[3]Tasa de Falla'!C53 -> 37 | D53: ='[3]Tasa de Falla'!D53 -> TUCUMAN NORTE - CABRA CORRAL | E53: ='[3]Tasa de Falla'!E53 -> 132 | F53: ='[3]Tasa de Falla'!F53 -> 190 | G53: =IF('[3]Tasa de Falla'!IQ53=0,"",'[3]Tasa de Falla'!IQ53) -> XXXX | H53: =IF('[3]Tasa de Falla'!IR53=0,"",'[3]Tasa de Falla'!IR53) -> XXXX | I53: =IF('[3]Tasa de Falla'!IS53=0,"",'[3]Tasa de Falla'!IS53) -> XXXX | J53: =IF('[3]Tasa de Falla'!IT53=0,"",'[3]Tasa de Falla'!IT53) -> XXXX | K53: =IF('[3]Tasa de Falla'!IU53=0,"",'[3]Tasa de Falla'!IU53) -> XXXX | L53: =IF('[3]Tasa de Falla'!IV53=0,"",'[3]Tasa de Falla'!IV53) -> XXXX | M53: =IF('[3]Tasa de Falla'!IW53=0,"",'[3]Tasa de Falla'!IW53) -> XXXX | N53: =IF('[3]Tasa de Falla'!IX53=0,"",'[3]Tasa de Falla'!IX53) -> XXXX | O53: =IF('[3]Tasa de Falla'!IY53=0,"",'[3]Tasa de Falla'!IY53) -> XXXX | P53: =IF('[3]Tasa de Falla'!IZ53=0,"",'[3]Tasa de Falla'!IZ53) -> XXXX | Q53: =IF('[3]Tasa de Falla'!JA53=0,"",'[3]Tasa de Falla'!JA53) -> XXXX | R53: =IF('[3]Tasa de Falla'!JB53=0,"",'[3]Tasa de Falla'!JB53) -> XXXX
C54: ='[3]Tasa de Falla'!C54 -> 38 | D54: ='[3]Tasa de Falla'!D54 -> METAN - TUCUMAN NORTE | E54: ='[3]Tasa de Falla'!E54 -> 132 | F54: ='[3]Tasa de Falla'!F54 -> 155.6 | G54: =IF('[3]Tasa de Falla'!IQ54=0,"",'[3]Tasa de Falla'!IQ54) ->  | H54: =IF('[3]Tasa de Falla'!IR54=0,"",'[3]Tasa de Falla'!IR54) -> 1 | I54: =IF('[3]Tasa de Falla'!IS54=0,"",'[3]Tasa de Falla'!IS54) -> 1 | J54: =IF('[3]Tasa de Falla'!IT54=0,"",'[3]Tasa de Falla'!IT54) -> 1 | K54: =IF('[3]Tasa de Falla'!IU54=0,"",'[3]Tasa de Falla'!IU54) ->  | L54: =IF('[3]Tasa de Falla'!IV54=0,"",'[3]Tasa de Falla'!IV54) ->  | M54: =IF('[3]Tasa de Falla'!IW54=0,"",'[3]Tasa de Falla'!IW54) ->  | N54: =IF('[3]Tasa de Falla'!IX54=0,"",'[3]Tasa de Falla'!IX54) ->  | O54: =IF('[3]Tasa de Falla'!IY54=0,"",'[3]Tasa de Falla'!IY54) ->  | P54: =IF('[3]Tasa de Falla'!IZ54=0,"",'[3]Tasa de Falla'!IZ54) ->  | Q54: =IF('[3]Tasa de Falla'!JA54=0,"",'[3]Tasa de Falla'!JA54) ->  | R54: =IF('[3]Tasa de Falla'!JB54=0,"",'[3]Tasa de Falla'!JB54) -> 
C55: ='[3]Tasa de Falla'!C55 -> 39 | D55: ='[3]Tasa de Falla'!D55 -> SARMIENTO - TUCUMAN NORTE (O.F.) | E55: ='[3]Tasa de Falla'!E55 -> 132 | F55: ='[3]Tasa de Falla'!F55 -> 3.3 | G55: =IF('[3]Tasa de Falla'!IQ55=0,"",'[3]Tasa de Falla'!IQ55) ->  | H55: =IF('[3]Tasa de Falla'!IR55=0,"",'[3]Tasa de Falla'!IR55) ->  | I55: =IF('[3]Tasa de Falla'!IS55=0,"",'[3]Tasa de Falla'!IS55) ->  | J55: =IF('[3]Tasa de Falla'!IT55=0,"",'[3]Tasa de Falla'!IT55) ->  | K55: =IF('[3]Tasa de Falla'!IU55=0,"",'[3]Tasa de Falla'!IU55) ->  | L55: =IF('[3]Tasa de Falla'!IV55=0,"",'[3]Tasa de Falla'!IV55) ->  | M55: =IF('[3]Tasa de Falla'!IW55=0,"",'[3]Tasa de Falla'!IW55) ->  | N55: =IF('[3]Tasa de Falla'!IX55=0,"",'[3]Tasa de Falla'!IX55) ->  | O55: =IF('[3]Tasa de Falla'!IY55=0,"",'[3]Tasa de Falla'!IY55) ->  | P55: =IF('[3]Tasa de Falla'!IZ55=0,"",'[3]Tasa de Falla'!IZ55) ->  | Q55: =IF('[3]Tasa de Falla'!JA55=0,"",'[3]Tasa de Falla'!JA55) ->  | R55: =IF('[3]Tasa de Falla'!JB55=0,"",'[3]Tasa de Falla'!JB55) -> 
C56: ='[3]Tasa de Falla'!C56 -> 40 | D56: ='[3]Tasa de Falla'!D56 -> TUCUMAN OESTE - TUCUMAN NORTE | E56: ='[3]Tasa de Falla'!E56 -> 132 | F56: ='[3]Tasa de Falla'!F56 -> 7 | G56: =IF('[3]Tasa de Falla'!IQ56=0,"",'[3]Tasa de Falla'!IQ56) ->  | H56: =IF('[3]Tasa de Falla'!IR56=0,"",'[3]Tasa de Falla'!IR56) -> 1 | I56: =IF('[3]Tasa de Falla'!IS56=0,"",'[3]Tasa de Falla'!IS56) ->  | J56: =IF('[3]Tasa de Falla'!IT56=0,"",'[3]Tasa de Falla'!IT56) ->  | K56: =IF('[3]Tasa de Falla'!IU56=0,"",'[3]Tasa de Falla'!IU56) ->  | L56: =IF('[3]Tasa de Falla'!IV56=0,"",'[3]Tasa de Falla'!IV56) ->  | M56: =IF('[3]Tasa de Falla'!IW56=0,"",'[3]Tasa de Falla'!IW56) ->  | N56: =IF('[3]Tasa de Falla'!IX56=0,"",'[3]Tasa de Falla'!IX56) ->  | O56: =IF('[3]Tasa de Falla'!IY56=0,"",'[3]Tasa de Falla'!IY56) ->  | P56: =IF('[3]Tasa de Falla'!IZ56=0,"",'[3]Tasa de Falla'!IZ56) -> 1 | Q56: =IF('[3]Tasa de Falla'!JA56=0,"",'[3]Tasa de Falla'!JA56) -> 1 | R56: =IF('[3]Tasa de Falla'!JB56=0,"",'[3]Tasa de Falla'!JB56) -> 
C57: ='[3]Tasa de Falla'!C57 -> 41 | D57: ='[3]Tasa de Falla'!D57 -> AGUILARES - VILLA QUINTEROS | E57: ='[3]Tasa de Falla'!E57 -> 132 | F57: ='[3]Tasa de Falla'!F57 -> 21 | G57: =IF('[3]Tasa de Falla'!IQ57=0,"",'[3]Tasa de Falla'!IQ57) ->  | H57: =IF('[3]Tasa de Falla'!IR57=0,"",'[3]Tasa de Falla'!IR57) ->  | I57: =IF('[3]Tasa de Falla'!IS57=0,"",'[3]Tasa de Falla'!IS57) ->  | J57: =IF('[3]Tasa de Falla'!IT57=0,"",'[3]Tasa de Falla'!IT57) ->  | K57: =IF('[3]Tasa de Falla'!IU57=0,"",'[3]Tasa de Falla'!IU57) ->  | L57: =IF('[3]Tasa de Falla'!IV57=0,"",'[3]Tasa de Falla'!IV57) ->  | M57: =IF('[3]Tasa de Falla'!IW57=0,"",'[3]Tasa de Falla'!IW57) -> 1 | N57: =IF('[3]Tasa de Falla'!IX57=0,"",'[3]Tasa de Falla'!IX57) ->  | O57: =IF('[3]Tasa de Falla'!IY57=0,"",'[3]Tasa de Falla'!IY57) ->  | P57: =IF('[3]Tasa de Falla'!IZ57=0,"",'[3]Tasa de Falla'!IZ57) ->  | Q57: =IF('[3]Tasa de Falla'!JA57=0,"",'[3]Tasa de Falla'!JA57) ->  | R57: =IF('[3]Tasa de Falla'!JB57=0,"",'[3]Tasa de Falla'!JB57) -> 
C58: ='[3]Tasa de Falla'!C58 -> 42 | D58: ='[3]Tasa de Falla'!D58 -> C.H. PUEBLO VIEJO - VILLA QUINTEROS | E58: ='[3]Tasa de Falla'!E58 -> 132 | F58: ='[3]Tasa de Falla'!F58 -> 24.5 | G58: =IF('[3]Tasa de Falla'!IQ58=0,"",'[3]Tasa de Falla'!IQ58) ->  | H58: =IF('[3]Tasa de Falla'!IR58=0,"",'[3]Tasa de Falla'!IR58) -> 3 | I58: =IF('[3]Tasa de Falla'!IS58=0,"",'[3]Tasa de Falla'!IS58) ->  | J58: =IF('[3]Tasa de Falla'!IT58=0,"",'[3]Tasa de Falla'!IT58) ->  | K58: =IF('[3]Tasa de Falla'!IU58=0,"",'[3]Tasa de Falla'!IU58) ->  | L58: =IF('[3]Tasa de Falla'!IV58=0,"",'[3]Tasa de Falla'!IV58) -> 1 | M58: =IF('[3]Tasa de Falla'!IW58=0,"",'[3]Tasa de Falla'!IW58) ->  | N58: =IF('[3]Tasa de Falla'!IX58=0,"",'[3]Tasa de Falla'!IX58) ->  | O58: =IF('[3]Tasa de Falla'!IY58=0,"",'[3]Tasa de Falla'!IY58) ->  | P58: =IF('[3]Tasa de Falla'!IZ58=0,"",'[3]Tasa de Falla'!IZ58) ->  | Q58: =IF('[3]Tasa de Falla'!JA58=0,"",'[3]Tasa de Falla'!JA58) ->  | R58: =IF('[3]Tasa de Falla'!JB58=0,"",'[3]Tasa de Falla'!JB58) -> 
C59: ='[3]Tasa de Falla'!C59 -> 43 | D59: ='[3]Tasa de Falla'!D59 -> C.H. RIO HONDO - VILLA QUINTEROS | E59: ='[3]Tasa de Falla'!E59 -> 132 | F59: ='[3]Tasa de Falla'!F59 -> 75.4 | G59: =IF('[3]Tasa de Falla'!IQ59=0,"",'[3]Tasa de Falla'!IQ59) ->  | H59: =IF('[3]Tasa de Falla'!IR59=0,"",'[3]Tasa de Falla'!IR59) ->  | I59: =IF('[3]Tasa de Falla'!IS59=0,"",'[3]Tasa de Falla'!IS59) ->  | J59: =IF('[3]Tasa de Falla'!IT59=0,"",'[3]Tasa de Falla'!IT59) ->  | K59: =IF('[3]Tasa de Falla'!IU59=0,"",'[3]Tasa de Falla'!IU59) ->  | L59: =IF('[3]Tasa de Falla'!IV59=0,"",'[3]Tasa de Falla'!IV59) ->  | M59: =IF('[3]Tasa de Falla'!IW59=0,"",'[3]Tasa de Falla'!IW59) ->  | N59: =IF('[3]Tasa de Falla'!IX59=0,"",'[3]Tasa de Falla'!IX59) ->  | O59: =IF('[3]Tasa de Falla'!IY59=0,"",'[3]Tasa de Falla'!IY59) ->  | P59: =IF('[3]Tasa de Falla'!IZ59=0,"",'[3]Tasa de Falla'!IZ59) ->  | Q59: =IF('[3]Tasa de Falla'!JA59=0,"",'[3]Tasa de Falla'!JA59) ->  | R59: =IF('[3]Tasa de Falla'!JB59=0,"",'[3]Tasa de Falla'!JB59) -> 1
C60: ='[3]Tasa de Falla'!C60 -> 44 | D60: ='[3]Tasa de Falla'!D60 -> C.H. RIO HONDO - SANTIAGO CENTRO | E60: ='[3]Tasa de Falla'!E60 -> 132 | F60: ='[3]Tasa de Falla'!F60 -> 79 | G60: =IF('[3]Tasa de Falla'!IQ60=0,"",'[3]Tasa de Falla'!IQ60) -> XXXX | H60: =IF('[3]Tasa de Falla'!IR60=0,"",'[3]Tasa de Falla'!IR60) -> XXXX | I60: =IF('[3]Tasa de Falla'!IS60=0,"",'[3]Tasa de Falla'!IS60) -> XXXX | J60: =IF('[3]Tasa de Falla'!IT60=0,"",'[3]Tasa de Falla'!IT60) -> XXXX | K60: =IF('[3]Tasa de Falla'!IU60=0,"",'[3]Tasa de Falla'!IU60) -> XXXX | L60: =IF('[3]Tasa de Falla'!IV60=0,"",'[3]Tasa de Falla'!IV60) -> XXXX | M60: =IF('[3]Tasa de Falla'!IW60=0,"",'[3]Tasa de Falla'!IW60) -> XXXX | N60: =IF('[3]Tasa de Falla'!IX60=0,"",'[3]Tasa de Falla'!IX60) -> XXXX | O60: =IF('[3]Tasa de Falla'!IY60=0,"",'[3]Tasa de Falla'!IY60) -> XXXX | P60: =IF('[3]Tasa de Falla'!IZ60=0,"",'[3]Tasa de Falla'!IZ60) -> XXXX | Q60: =IF('[3]Tasa de Falla'!JA60=0,"",'[3]Tasa de Falla'!JA60) -> XXXX | R60: =IF('[3]Tasa de Falla'!JB60=0,"",'[3]Tasa de Falla'!JB60) -> XXXX
C61: ='[3]Tasa de Falla'!C61 -> 45 | D61: ='[3]Tasa de Falla'!D61 -> C.H. RIO HONDO - EL BRACHO | E61: ='[3]Tasa de Falla'!E61 -> 132 | F61: ='[3]Tasa de Falla'!F61 -> 80.66 | G61: =IF('[3]Tasa de Falla'!IQ61=0,"",'[3]Tasa de Falla'!IQ61) ->  | H61: =IF('[3]Tasa de Falla'!IR61=0,"",'[3]Tasa de Falla'!IR61) ->  | I61: =IF('[3]Tasa de Falla'!IS61=0,"",'[3]Tasa de Falla'!IS61) -> XXXX | J61: =IF('[3]Tasa de Falla'!IT61=0,"",'[3]Tasa de Falla'!IT61) -> XXXX | K61: =IF('[3]Tasa de Falla'!IU61=0,"",'[3]Tasa de Falla'!IU61) -> XXXX | L61: =IF('[3]Tasa de Falla'!IV61=0,"",'[3]Tasa de Falla'!IV61) -> XXXX | M61: =IF('[3]Tasa de Falla'!IW61=0,"",'[3]Tasa de Falla'!IW61) -> XXXX | N61: =IF('[3]Tasa de Falla'!IX61=0,"",'[3]Tasa de Falla'!IX61) -> XXXX | O61: =IF('[3]Tasa de Falla'!IY61=0,"",'[3]Tasa de Falla'!IY61) -> XXXX | P61: =IF('[3]Tasa de Falla'!IZ61=0,"",'[3]Tasa de Falla'!IZ61) -> XXXX | Q61: =IF('[3]Tasa de Falla'!JA61=0,"",'[3]Tasa de Falla'!JA61) -> XXXX | R61: =IF('[3]Tasa de Falla'!JB61=0,"",'[3]Tasa de Falla'!JB61) -> XXXX
C62: ='[3]Tasa de Falla'!C62 -> 46 | D62: ='[3]Tasa de Falla'!D62 -> SALTA SUR - SALTA NORTE | E62: ='[3]Tasa de Falla'!E62 -> 132 | F62: ='[3]Tasa de Falla'!F62 -> 10 | G62: =IF('[3]Tasa de Falla'!IQ62=0,"",'[3]Tasa de Falla'!IQ62) ->  | H62: =IF('[3]Tasa de Falla'!IR62=0,"",'[3]Tasa de Falla'!IR62) ->  | I62: =IF('[3]Tasa de Falla'!IS62=0,"",'[3]Tasa de Falla'!IS62) ->  | J62: =IF('[3]Tasa de Falla'!IT62=0,"",'[3]Tasa de Falla'!IT62) ->  | K62: =IF('[3]Tasa de Falla'!IU62=0,"",'[3]Tasa de Falla'!IU62) ->  | L62: =IF('[3]Tasa de Falla'!IV62=0,"",'[3]Tasa de Falla'!IV62) ->  | M62: =IF('[3]Tasa de Falla'!IW62=0,"",'[3]Tasa de Falla'!IW62) ->  | N62: =IF('[3]Tasa de Falla'!IX62=0,"",'[3]Tasa de Falla'!IX62) ->  | O62: =IF('[3]Tasa de Falla'!IY62=0,"",'[3]Tasa de Falla'!IY62) ->  | P62: =IF('[3]Tasa de Falla'!IZ62=0,"",'[3]Tasa de Falla'!IZ62) ->  | Q62: =IF('[3]Tasa de Falla'!JA62=0,"",'[3]Tasa de Falla'!JA62) ->  | R62: =IF('[3]Tasa de Falla'!JB62=0,"",'[3]Tasa de Falla'!JB62) -> 
C63: ='[3]Tasa de Falla'!C63 -> 47 | D63: ='[3]Tasa de Falla'!D63 -> PALPALA - JUJUY ESTE | E63: ='[3]Tasa de Falla'!E63 -> 132 | F63: ='[3]Tasa de Falla'!F63 -> 12.3 | G63: =IF('[3]Tasa de Falla'!IQ63=0,"",'[3]Tasa de Falla'!IQ63) ->  | H63: =IF('[3]Tasa de Falla'!IR63=0,"",'[3]Tasa de Falla'!IR63) ->  | I63: =IF('[3]Tasa de Falla'!IS63=0,"",'[3]Tasa de Falla'!IS63) ->  | J63: =IF('[3]Tasa de Falla'!IT63=0,"",'[3]Tasa de Falla'!IT63) -> 1 | K63: =IF('[3]Tasa de Falla'!IU63=0,"",'[3]Tasa de Falla'!IU63) ->  | L63: =IF('[3]Tasa de Falla'!IV63=0,"",'[3]Tasa de Falla'!IV63) ->  | M63: =IF('[3]Tasa de Falla'!IW63=0,"",'[3]Tasa de Falla'!IW63) -> 1 | N63: =IF('[3]Tasa de Falla'!IX63=0,"",'[3]Tasa de Falla'!IX63) ->  | O63: =IF('[3]Tasa de Falla'!IY63=0,"",'[3]Tasa de Falla'!IY63) ->  | P63: =IF('[3]Tasa de Falla'!IZ63=0,"",'[3]Tasa de Falla'!IZ63) ->  | Q63: =IF('[3]Tasa de Falla'!JA63=0,"",'[3]Tasa de Falla'!JA63) ->  | R63: =IF('[3]Tasa de Falla'!JB63=0,"",'[3]Tasa de Falla'!JB63) -> 
C64: ='[3]Tasa de Falla'!C64 -> 48 | D64: ='[3]Tasa de Falla'!D64 -> JUJUY ESTE - JUJUY SUR | E64: ='[3]Tasa de Falla'!E64 -> 132 | F64: ='[3]Tasa de Falla'!F64 -> 4.3 | G64: =IF('[3]Tasa de Falla'!IQ64=0,"",'[3]Tasa de Falla'!IQ64) ->  | H64: =IF('[3]Tasa de Falla'!IR64=0,"",'[3]Tasa de Falla'!IR64) ->  | I64: =IF('[3]Tasa de Falla'!IS64=0,"",'[3]Tasa de Falla'!IS64) ->  | J64: =IF('[3]Tasa de Falla'!IT64=0,"",'[3]Tasa de Falla'!IT64) ->  | K64: =IF('[3]Tasa de Falla'!IU64=0,"",'[3]Tasa de Falla'!IU64) ->  | L64: =IF('[3]Tasa de Falla'!IV64=0,"",'[3]Tasa de Falla'!IV64) ->  | M64: =IF('[3]Tasa de Falla'!IW64=0,"",'[3]Tasa de Falla'!IW64) ->  | N64: =IF('[3]Tasa de Falla'!IX64=0,"",'[3]Tasa de Falla'!IX64) ->  | O64: =IF('[3]Tasa de Falla'!IY64=0,"",'[3]Tasa de Falla'!IY64) ->  | P64: =IF('[3]Tasa de Falla'!IZ64=0,"",'[3]Tasa de Falla'!IZ64) ->  | Q64: =IF('[3]Tasa de Falla'!JA64=0,"",'[3]Tasa de Falla'!JA64) ->  | R64: =IF('[3]Tasa de Falla'!JB64=0,"",'[3]Tasa de Falla'!JB64) -> 
C65: ='[3]Tasa de Falla'!C65 -> 49 | D65: ='[3]Tasa de Falla'!D65 -> CEVIL POZO - GUEMES | E65: ='[3]Tasa de Falla'!E65 -> 132 | F65: ='[3]Tasa de Falla'!F65 -> 291 | G65: =IF('[3]Tasa de Falla'!IQ65=0,"",'[3]Tasa de Falla'!IQ65) -> XXXX | H65: =IF('[3]Tasa de Falla'!IR65=0,"",'[3]Tasa de Falla'!IR65) -> XXXX | I65: =IF('[3]Tasa de Falla'!IS65=0,"",'[3]Tasa de Falla'!IS65) -> XXXX | J65: =IF('[3]Tasa de Falla'!IT65=0,"",'[3]Tasa de Falla'!IT65) -> XXXX | K65: =IF('[3]Tasa de Falla'!IU65=0,"",'[3]Tasa de Falla'!IU65) -> XXXX | L65: =IF('[3]Tasa de Falla'!IV65=0,"",'[3]Tasa de Falla'!IV65) -> XXXX | M65: =IF('[3]Tasa de Falla'!IW65=0,"",'[3]Tasa de Falla'!IW65) -> XXXX | N65: =IF('[3]Tasa de Falla'!IX65=0,"",'[3]Tasa de Falla'!IX65) -> XXXX | O65: =IF('[3]Tasa de Falla'!IY65=0,"",'[3]Tasa de Falla'!IY65) -> XXXX | P65: =IF('[3]Tasa de Falla'!IZ65=0,"",'[3]Tasa de Falla'!IZ65) -> XXXX | Q65: =IF('[3]Tasa de Falla'!JA65=0,"",'[3]Tasa de Falla'!JA65) -> XXXX | R65: =IF('[3]Tasa de Falla'!JB65=0,"",'[3]Tasa de Falla'!JB65) -> XXXX
C66: ='[3]Tasa de Falla'!C66 -> 50 | D66: ='[3]Tasa de Falla'!D66 -> CEVIL POZO - EL BRACHO | E66: ='[3]Tasa de Falla'!E66 -> 132 | F66: ='[3]Tasa de Falla'!F66 -> 17 | G66: =IF('[3]Tasa de Falla'!IQ66=0,"",'[3]Tasa de Falla'!IQ66) ->  | H66: =IF('[3]Tasa de Falla'!IR66=0,"",'[3]Tasa de Falla'!IR66) ->  | I66: =IF('[3]Tasa de Falla'!IS66=0,"",'[3]Tasa de Falla'!IS66) ->  | J66: =IF('[3]Tasa de Falla'!IT66=0,"",'[3]Tasa de Falla'!IT66) ->  | K66: =IF('[3]Tasa de Falla'!IU66=0,"",'[3]Tasa de Falla'!IU66) ->  | L66: =IF('[3]Tasa de Falla'!IV66=0,"",'[3]Tasa de Falla'!IV66) ->  | M66: =IF('[3]Tasa de Falla'!IW66=0,"",'[3]Tasa de Falla'!IW66) ->  | N66: =IF('[3]Tasa de Falla'!IX66=0,"",'[3]Tasa de Falla'!IX66) ->  | O66: =IF('[3]Tasa de Falla'!IY66=0,"",'[3]Tasa de Falla'!IY66) ->  | P66: =IF('[3]Tasa de Falla'!IZ66=0,"",'[3]Tasa de Falla'!IZ66) ->  | Q66: =IF('[3]Tasa de Falla'!JA66=0,"",'[3]Tasa de Falla'!JA66) ->  | R66: =IF('[3]Tasa de Falla'!JB66=0,"",'[3]Tasa de Falla'!JB66) -> 
C67: ='[3]Tasa de Falla'!C67 -> 0 | D67: ='[3]Tasa de Falla'!D67 -> 0 | E67: ='[3]Tasa de Falla'!E67 -> 0 | F67: ='[3]Tasa de Falla'!F67 -> 0 | G67: =IF('[3]Tasa de Falla'!IQ67=0,"",'[3]Tasa de Falla'!IQ67) ->  | H67: =IF('[3]Tasa de Falla'!IR67=0,"",'[3]Tasa de Falla'!IR67) ->  | I67: =IF('[3]Tasa de Falla'!IS67=0,"",'[3]Tasa de Falla'!IS67) ->  | J67: =IF('[3]Tasa de Falla'!IT67=0,"",'[3]Tasa de Falla'!IT67) ->  | K67: =IF('[3]Tasa de Falla'!IU67=0,"",'[3]Tasa de Falla'!IU67) ->  | L67: =IF('[3]Tasa de Falla'!IV67=0,"",'[3]Tasa de Falla'!IV67) ->  | M67: =IF('[3]Tasa de Falla'!IW67=0,"",'[3]Tasa de Falla'!IW67) ->  | N67: =IF('[3]Tasa de Falla'!IX67=0,"",'[3]Tasa de Falla'!IX67) ->  | O67: =IF('[3]Tasa de Falla'!IY67=0,"",'[3]Tasa de Falla'!IY67) ->  | P67: =IF('[3]Tasa de Falla'!IZ67=0,"",'[3]Tasa de Falla'!IZ67) ->  | Q67: =IF('[3]Tasa de Falla'!JA67=0,"",'[3]Tasa de Falla'!JA67) ->  | R67: =IF('[3]Tasa de Falla'!JB67=0,"",'[3]Tasa de Falla'!JB67) -> 
C68: ='[3]Tasa de Falla'!C68 -> 51 | D68: ='[3]Tasa de Falla'!D68 -> METAN - EL TUNAL | E68: ='[3]Tasa de Falla'!E68 -> 132 | F68: ='[3]Tasa de Falla'!F68 -> 75.6 | G68: =IF('[3]Tasa de Falla'!IQ68=0,"",'[3]Tasa de Falla'!IQ68) ->  | H68: =IF('[3]Tasa de Falla'!IR68=0,"",'[3]Tasa de Falla'!IR68) ->  | I68: =IF('[3]Tasa de Falla'!IS68=0,"",'[3]Tasa de Falla'!IS68) ->  | J68: =IF('[3]Tasa de Falla'!IT68=0,"",'[3]Tasa de Falla'!IT68) ->  | K68: =IF('[3]Tasa de Falla'!IU68=0,"",'[3]Tasa de Falla'!IU68) ->  | L68: =IF('[3]Tasa de Falla'!IV68=0,"",'[3]Tasa de Falla'!IV68) ->  | M68: =IF('[3]Tasa de Falla'!IW68=0,"",'[3]Tasa de Falla'!IW68) ->  | N68: =IF('[3]Tasa de Falla'!IX68=0,"",'[3]Tasa de Falla'!IX68) ->  | O68: =IF('[3]Tasa de Falla'!IY68=0,"",'[3]Tasa de Falla'!IY68) ->  | P68: =IF('[3]Tasa de Falla'!IZ68=0,"",'[3]Tasa de Falla'!IZ68) ->  | Q68: =IF('[3]Tasa de Falla'!JA68=0,"",'[3]Tasa de Falla'!JA68) ->  | R68: =IF('[3]Tasa de Falla'!JB68=0,"",'[3]Tasa de Falla'!JB68) -> 
C69: ='[3]Tasa de Falla'!C69 -> 52 | D69: ='[3]Tasa de Falla'!D69 -> EL TUNAL - J.V. GONZALEZ | E69: ='[3]Tasa de Falla'!E69 -> 132 | F69: ='[3]Tasa de Falla'!F69 -> 41.4 | G69: =IF('[3]Tasa de Falla'!IQ69=0,"",'[3]Tasa de Falla'!IQ69) ->  | H69: =IF('[3]Tasa de Falla'!IR69=0,"",'[3]Tasa de Falla'!IR69) ->  | I69: =IF('[3]Tasa de Falla'!IS69=0,"",'[3]Tasa de Falla'!IS69) ->  | J69: =IF('[3]Tasa de Falla'!IT69=0,"",'[3]Tasa de Falla'!IT69) ->  | K69: =IF('[3]Tasa de Falla'!IU69=0,"",'[3]Tasa de Falla'!IU69) ->  | L69: =IF('[3]Tasa de Falla'!IV69=0,"",'[3]Tasa de Falla'!IV69) ->  | M69: =IF('[3]Tasa de Falla'!IW69=0,"",'[3]Tasa de Falla'!IW69) ->  | N69: =IF('[3]Tasa de Falla'!IX69=0,"",'[3]Tasa de Falla'!IX69) ->  | O69: =IF('[3]Tasa de Falla'!IY69=0,"",'[3]Tasa de Falla'!IY69) ->  | P69: =IF('[3]Tasa de Falla'!IZ69=0,"",'[3]Tasa de Falla'!IZ69) ->  | Q69: =IF('[3]Tasa de Falla'!JA69=0,"",'[3]Tasa de Falla'!JA69) ->  | R69: =IF('[3]Tasa de Falla'!JB69=0,"",'[3]Tasa de Falla'!JB69) -> 
C70: ='[3]Tasa de Falla'!C70 -> 0 | D70: ='[3]Tasa de Falla'!D70 -> 0 | E70: ='[3]Tasa de Falla'!E70 -> 0 | F70: ='[3]Tasa de Falla'!F70 -> 0 | G70: =IF('[3]Tasa de Falla'!IQ70=0,"",'[3]Tasa de Falla'!IQ70) ->  | H70: =IF('[3]Tasa de Falla'!IR70=0,"",'[3]Tasa de Falla'!IR70) ->  | I70: =IF('[3]Tasa de Falla'!IS70=0,"",'[3]Tasa de Falla'!IS70) ->  | J70: =IF('[3]Tasa de Falla'!IT70=0,"",'[3]Tasa de Falla'!IT70) ->  | K70: =IF('[3]Tasa de Falla'!IU70=0,"",'[3]Tasa de Falla'!IU70) ->  | L70: =IF('[3]Tasa de Falla'!IV70=0,"",'[3]Tasa de Falla'!IV70) ->  | M70: =IF('[3]Tasa de Falla'!IW70=0,"",'[3]Tasa de Falla'!IW70) ->  | N70: =IF('[3]Tasa de Falla'!IX70=0,"",'[3]Tasa de Falla'!IX70) ->  | O70: =IF('[3]Tasa de Falla'!IY70=0,"",'[3]Tasa de Falla'!IY70) ->  | P70: =IF('[3]Tasa de Falla'!IZ70=0,"",'[3]Tasa de Falla'!IZ70) ->  | Q70: =IF('[3]Tasa de Falla'!JA70=0,"",'[3]Tasa de Falla'!JA70) ->  | R70: =IF('[3]Tasa de Falla'!JB70=0,"",'[3]Tasa de Falla'!JB70) -> 
C71: ='[3]Tasa de Falla'!C71 -> 53 | D71: ='[3]Tasa de Falla'!D71 -> LOS PIZARROS - ESCABA | E71: ='[3]Tasa de Falla'!E71 -> 132 | F71: ='[3]Tasa de Falla'!F71 -> 21.4 | G71: =IF('[3]Tasa de Falla'!IQ71=0,"",'[3]Tasa de Falla'!IQ71) ->  | H71: =IF('[3]Tasa de Falla'!IR71=0,"",'[3]Tasa de Falla'!IR71) -> 1 | I71: =IF('[3]Tasa de Falla'!IS71=0,"",'[3]Tasa de Falla'!IS71) ->  | J71: =IF('[3]Tasa de Falla'!IT71=0,"",'[3]Tasa de Falla'!IT71) -> 1 | K71: =IF('[3]Tasa de Falla'!IU71=0,"",'[3]Tasa de Falla'!IU71) ->  | L71: =IF('[3]Tasa de Falla'!IV71=0,"",'[3]Tasa de Falla'!IV71) -> 1 | M71: =IF('[3]Tasa de Falla'!IW71=0,"",'[3]Tasa de Falla'!IW71) ->  | N71: =IF('[3]Tasa de Falla'!IX71=0,"",'[3]Tasa de Falla'!IX71) ->  | O71: =IF('[3]Tasa de Falla'!IY71=0,"",'[3]Tasa de Falla'!IY71) ->  | P71: =IF('[3]Tasa de Falla'!IZ71=0,"",'[3]Tasa de Falla'!IZ71) ->  | Q71: =IF('[3]Tasa de Falla'!JA71=0,"",'[3]Tasa de Falla'!JA71) ->  | R71: =IF('[3]Tasa de Falla'!JB71=0,"",'[3]Tasa de Falla'!JB71) -> 1
C72: ='[3]Tasa de Falla'!C72 -> 54 | D72: ='[3]Tasa de Falla'!D72 -> LOS PIZARROS - LA COCHA | E72: ='[3]Tasa de Falla'!E72 -> 132 | F72: ='[3]Tasa de Falla'!F72 -> 6.5 | G72: =IF('[3]Tasa de Falla'!IQ72=0,"",'[3]Tasa de Falla'!IQ72) ->  | H72: =IF('[3]Tasa de Falla'!IR72=0,"",'[3]Tasa de Falla'!IR72) ->  | I72: =IF('[3]Tasa de Falla'!IS72=0,"",'[3]Tasa de Falla'!IS72) ->  | J72: =IF('[3]Tasa de Falla'!IT72=0,"",'[3]Tasa de Falla'!IT72) ->  | K72: =IF('[3]Tasa de Falla'!IU72=0,"",'[3]Tasa de Falla'!IU72) ->  | L72: =IF('[3]Tasa de Falla'!IV72=0,"",'[3]Tasa de Falla'!IV72) ->  | M72: =IF('[3]Tasa de Falla'!IW72=0,"",'[3]Tasa de Falla'!IW72) ->  | N72: =IF('[3]Tasa de Falla'!IX72=0,"",'[3]Tasa de Falla'!IX72) ->  | O72: =IF('[3]Tasa de Falla'!IY72=0,"",'[3]Tasa de Falla'!IY72) ->  | P72: =IF('[3]Tasa de Falla'!IZ72=0,"",'[3]Tasa de Falla'!IZ72) ->  | Q72: =IF('[3]Tasa de Falla'!JA72=0,"",'[3]Tasa de Falla'!JA72) ->  | R72: =IF('[3]Tasa de Falla'!JB72=0,"",'[3]Tasa de Falla'!JB72) -> 
C73: ='[3]Tasa de Falla'!C73 -> 55 | D73: ='[3]Tasa de Falla'!D73 -> HUACRA - LOS PIZARROS | E73: ='[3]Tasa de Falla'!E73 -> 132 | F73: ='[3]Tasa de Falla'!F73 -> 28.5 | G73: =IF('[3]Tasa de Falla'!IQ73=0,"",'[3]Tasa de Falla'!IQ73) ->  | H73: =IF('[3]Tasa de Falla'!IR73=0,"",'[3]Tasa de Falla'!IR73) ->  | I73: =IF('[3]Tasa de Falla'!IS73=0,"",'[3]Tasa de Falla'!IS73) ->  | J73: =IF('[3]Tasa de Falla'!IT73=0,"",'[3]Tasa de Falla'!IT73) -> 1 | K73: =IF('[3]Tasa de Falla'!IU73=0,"",'[3]Tasa de Falla'!IU73) -> 1 | L73: =IF('[3]Tasa de Falla'!IV73=0,"",'[3]Tasa de Falla'!IV73) ->  | M73: =IF('[3]Tasa de Falla'!IW73=0,"",'[3]Tasa de Falla'!IW73) ->  | N73: =IF('[3]Tasa de Falla'!IX73=0,"",'[3]Tasa de Falla'!IX73) ->  | O73: =IF('[3]Tasa de Falla'!IY73=0,"",'[3]Tasa de Falla'!IY73) ->  | P73: =IF('[3]Tasa de Falla'!IZ73=0,"",'[3]Tasa de Falla'!IZ73) ->  | Q73: =IF('[3]Tasa de Falla'!JA73=0,"",'[3]Tasa de Falla'!JA73) ->  | R73: =IF('[3]Tasa de Falla'!JB73=0,"",'[3]Tasa de Falla'!JB73) -> 
C74: ='[3]Tasa de Falla'!C74 -> 56 | D74: ='[3]Tasa de Falla'!D74 -> CEVIL POZO - AVELLANEDA | E74: ='[3]Tasa de Falla'!E74 -> 132 | F74: ='[3]Tasa de Falla'!F74 -> 8 | G74: =IF('[3]Tasa de Falla'!IQ74=0,"",'[3]Tasa de Falla'!IQ74) ->  | H74: =IF('[3]Tasa de Falla'!IR74=0,"",'[3]Tasa de Falla'!IR74) ->  | I74: =IF('[3]Tasa de Falla'!IS74=0,"",'[3]Tasa de Falla'!IS74) ->  | J74: =IF('[3]Tasa de Falla'!IT74=0,"",'[3]Tasa de Falla'!IT74) ->  | K74: =IF('[3]Tasa de Falla'!IU74=0,"",'[3]Tasa de Falla'!IU74) ->  | L74: =IF('[3]Tasa de Falla'!IV74=0,"",'[3]Tasa de Falla'!IV74) ->  | M74: =IF('[3]Tasa de Falla'!IW74=0,"",'[3]Tasa de Falla'!IW74) ->  | N74: =IF('[3]Tasa de Falla'!IX74=0,"",'[3]Tasa de Falla'!IX74) ->  | O74: =IF('[3]Tasa de Falla'!IY74=0,"",'[3]Tasa de Falla'!IY74) ->  | P74: =IF('[3]Tasa de Falla'!IZ74=0,"",'[3]Tasa de Falla'!IZ74) ->  | Q74: =IF('[3]Tasa de Falla'!JA74=0,"",'[3]Tasa de Falla'!JA74) ->  | R74: =IF('[3]Tasa de Falla'!JB74=0,"",'[3]Tasa de Falla'!JB74) -> 
C75: ='[3]Tasa de Falla'!C75 -> 57 | D75: ='[3]Tasa de Falla'!D75 -> CABRA CORRAL - SALTA ESTE | E75: ='[3]Tasa de Falla'!E75 -> 132 | F75: ='[3]Tasa de Falla'!F75 -> 55 | G75: =IF('[3]Tasa de Falla'!IQ75=0,"",'[3]Tasa de Falla'!IQ75) ->  | H75: =IF('[3]Tasa de Falla'!IR75=0,"",'[3]Tasa de Falla'!IR75) -> 1 | I75: =IF('[3]Tasa de Falla'!IS75=0,"",'[3]Tasa de Falla'!IS75) ->  | J75: =IF('[3]Tasa de Falla'!IT75=0,"",'[3]Tasa de Falla'!IT75) ->  | K75: =IF('[3]Tasa de Falla'!IU75=0,"",'[3]Tasa de Falla'!IU75) -> 1 | L75: =IF('[3]Tasa de Falla'!IV75=0,"",'[3]Tasa de Falla'!IV75) ->  | M75: =IF('[3]Tasa de Falla'!IW75=0,"",'[3]Tasa de Falla'!IW75) -> 1 | N75: =IF('[3]Tasa de Falla'!IX75=0,"",'[3]Tasa de Falla'!IX75) ->  | O75: =IF('[3]Tasa de Falla'!IY75=0,"",'[3]Tasa de Falla'!IY75) ->  | P75: =IF('[3]Tasa de Falla'!IZ75=0,"",'[3]Tasa de Falla'!IZ75) -> 1 | Q75: =IF('[3]Tasa de Falla'!JA75=0,"",'[3]Tasa de Falla'!JA75) ->  | R75: =IF('[3]Tasa de Falla'!JB75=0,"",'[3]Tasa de Falla'!JB75) -> 
C76: ='[3]Tasa de Falla'!C76 -> 58 | D76: ='[3]Tasa de Falla'!D76 -> SALTA ESTE - SALTA SUR | E76: ='[3]Tasa de Falla'!E76 -> 132 | F76: ='[3]Tasa de Falla'!F76 -> 7 | G76: =IF('[3]Tasa de Falla'!IQ76=0,"",'[3]Tasa de Falla'!IQ76) ->  | H76: =IF('[3]Tasa de Falla'!IR76=0,"",'[3]Tasa de Falla'!IR76) ->  | I76: =IF('[3]Tasa de Falla'!IS76=0,"",'[3]Tasa de Falla'!IS76) ->  | J76: =IF('[3]Tasa de Falla'!IT76=0,"",'[3]Tasa de Falla'!IT76) ->  | K76: =IF('[3]Tasa de Falla'!IU76=0,"",'[3]Tasa de Falla'!IU76) ->  | L76: =IF('[3]Tasa de Falla'!IV76=0,"",'[3]Tasa de Falla'!IV76) ->  | M76: =IF('[3]Tasa de Falla'!IW76=0,"",'[3]Tasa de Falla'!IW76) ->  | N76: =IF('[3]Tasa de Falla'!IX76=0,"",'[3]Tasa de Falla'!IX76) ->  | O76: =IF('[3]Tasa de Falla'!IY76=0,"",'[3]Tasa de Falla'!IY76) ->  | P76: =IF('[3]Tasa de Falla'!IZ76=0,"",'[3]Tasa de Falla'!IZ76) ->  | Q76: =IF('[3]Tasa de Falla'!JA76=0,"",'[3]Tasa de Falla'!JA76) ->  | R76: =IF('[3]Tasa de Falla'!JB76=0,"",'[3]Tasa de Falla'!JB76) -> 
C77: ='[3]Tasa de Falla'!C77 -> 59 | D77: ='[3]Tasa de Falla'!D77 -> V. QUINTEROS - ACONQUIJA - ANDALGALA | E77: ='[3]Tasa de Falla'!E77 -> 132 | F77: ='[3]Tasa de Falla'!F77 -> 102 | G77: =IF('[3]Tasa de Falla'!IQ77=0,"",'[3]Tasa de Falla'!IQ77) -> 1 | H77: =IF('[3]Tasa de Falla'!IR77=0,"",'[3]Tasa de Falla'!IR77) ->  | I77: =IF('[3]Tasa de Falla'!IS77=0,"",'[3]Tasa de Falla'!IS77) ->  | J77: =IF('[3]Tasa de Falla'!IT77=0,"",'[3]Tasa de Falla'!IT77) ->  | K77: =IF('[3]Tasa de Falla'!IU77=0,"",'[3]Tasa de Falla'!IU77) -> 2 | L77: =IF('[3]Tasa de Falla'!IV77=0,"",'[3]Tasa de Falla'!IV77) -> 1 | M77: =IF('[3]Tasa de Falla'!IW77=0,"",'[3]Tasa de Falla'!IW77) ->  | N77: =IF('[3]Tasa de Falla'!IX77=0,"",'[3]Tasa de Falla'!IX77) ->  | O77: =IF('[3]Tasa de Falla'!IY77=0,"",'[3]Tasa de Falla'!IY77) ->  | P77: =IF('[3]Tasa de Falla'!IZ77=0,"",'[3]Tasa de Falla'!IZ77) ->  | Q77: =IF('[3]Tasa de Falla'!JA77=0,"",'[3]Tasa de Falla'!JA77) -> 1 | R77: =IF('[3]Tasa de Falla'!JB77=0,"",'[3]Tasa de Falla'!JB77) -> 
C78: ='[3]Tasa de Falla'!C78 -> 60 | D78: ='[3]Tasa de Falla'!D78 -> ANDALGALA - BELEN | E78: ='[3]Tasa de Falla'!E78 -> 132 | F78: ='[3]Tasa de Falla'!F78 -> 80.3 | G78: =IF('[3]Tasa de Falla'!IQ78=0,"",'[3]Tasa de Falla'!IQ78) ->  | H78: =IF('[3]Tasa de Falla'!IR78=0,"",'[3]Tasa de Falla'!IR78) ->  | I78: =IF('[3]Tasa de Falla'!IS78=0,"",'[3]Tasa de Falla'!IS78) ->  | J78: =IF('[3]Tasa de Falla'!IT78=0,"",'[3]Tasa de Falla'!IT78) ->  | K78: =IF('[3]Tasa de Falla'!IU78=0,"",'[3]Tasa de Falla'!IU78) -> 1 | L78: =IF('[3]Tasa de Falla'!IV78=0,"",'[3]Tasa de Falla'!IV78) ->  | M78: =IF('[3]Tasa de Falla'!IW78=0,"",'[3]Tasa de Falla'!IW78) ->  | N78: =IF('[3]Tasa de Falla'!IX78=0,"",'[3]Tasa de Falla'!IX78) ->  | O78: =IF('[3]Tasa de Falla'!IY78=0,"",'[3]Tasa de Falla'!IY78) ->  | P78: =IF('[3]Tasa de Falla'!IZ78=0,"",'[3]Tasa de Falla'!IZ78) ->  | Q78: =IF('[3]Tasa de Falla'!JA78=0,"",'[3]Tasa de Falla'!JA78) ->  | R78: =IF('[3]Tasa de Falla'!JB78=0,"",'[3]Tasa de Falla'!JB78) -> 
C79: ='[3]Tasa de Falla'!C79 -> 61 | D79: ='[3]Tasa de Falla'!D79 -> TUCUMAN NORTE - TRANCAS | E79: ='[3]Tasa de Falla'!E79 -> 132 | F79: ='[3]Tasa de Falla'!F79 -> 75 | G79: =IF('[3]Tasa de Falla'!IQ79=0,"",'[3]Tasa de Falla'!IQ79) ->  | H79: =IF('[3]Tasa de Falla'!IR79=0,"",'[3]Tasa de Falla'!IR79) ->  | I79: =IF('[3]Tasa de Falla'!IS79=0,"",'[3]Tasa de Falla'!IS79) ->  | J79: =IF('[3]Tasa de Falla'!IT79=0,"",'[3]Tasa de Falla'!IT79) ->  | K79: =IF('[3]Tasa de Falla'!IU79=0,"",'[3]Tasa de Falla'!IU79) ->  | L79: =IF('[3]Tasa de Falla'!IV79=0,"",'[3]Tasa de Falla'!IV79) ->  | M79: =IF('[3]Tasa de Falla'!IW79=0,"",'[3]Tasa de Falla'!IW79) ->  | N79: =IF('[3]Tasa de Falla'!IX79=0,"",'[3]Tasa de Falla'!IX79) ->  | O79: =IF('[3]Tasa de Falla'!IY79=0,"",'[3]Tasa de Falla'!IY79) ->  | P79: =IF('[3]Tasa de Falla'!IZ79=0,"",'[3]Tasa de Falla'!IZ79) -> 1 | Q79: =IF('[3]Tasa de Falla'!JA79=0,"",'[3]Tasa de Falla'!JA79) ->  | R79: =IF('[3]Tasa de Falla'!JB79=0,"",'[3]Tasa de Falla'!JB79) -> 
C80: ='[3]Tasa de Falla'!C80 -> 62 | D80: ='[3]Tasa de Falla'!D80 -> CABRA CORRAL - TRANCAS | E80: ='[3]Tasa de Falla'!E80 -> 132 | F80: ='[3]Tasa de Falla'!F80 -> 115 | G80: =IF('[3]Tasa de Falla'!IQ80=0,"",'[3]Tasa de Falla'!IQ80) -> XXXX | H80: =IF('[3]Tasa de Falla'!IR80=0,"",'[3]Tasa de Falla'!IR80) -> XXXX | I80: =IF('[3]Tasa de Falla'!IS80=0,"",'[3]Tasa de Falla'!IS80) -> XXXX | J80: =IF('[3]Tasa de Falla'!IT80=0,"",'[3]Tasa de Falla'!IT80) -> XXXX | K80: =IF('[3]Tasa de Falla'!IU80=0,"",'[3]Tasa de Falla'!IU80) -> XXXX | L80: =IF('[3]Tasa de Falla'!IV80=0,"",'[3]Tasa de Falla'!IV80) -> XXXX | M80: =IF('[3]Tasa de Falla'!IW80=0,"",'[3]Tasa de Falla'!IW80) -> XXXX | N80: =IF('[3]Tasa de Falla'!IX80=0,"",'[3]Tasa de Falla'!IX80) -> XXXX | O80: =IF('[3]Tasa de Falla'!IY80=0,"",'[3]Tasa de Falla'!IY80) -> XXXX | P80: =IF('[3]Tasa de Falla'!IZ80=0,"",'[3]Tasa de Falla'!IZ80) -> XXXX | Q80: =IF('[3]Tasa de Falla'!JA80=0,"",'[3]Tasa de Falla'!JA80) -> XXXX | R80: =IF('[3]Tasa de Falla'!JB80=0,"",'[3]Tasa de Falla'!JB80) -> XXXX
C81: ='[3]Tasa de Falla'!C81 -> 63 | D81: ='[3]Tasa de Falla'!D81 -> LAS MADERAS - JUJUY SUR | E81: ='[3]Tasa de Falla'!E81 -> 132 | F81: ='[3]Tasa de Falla'!F81 -> 27.6 | G81: =IF('[3]Tasa de Falla'!IQ81=0,"",'[3]Tasa de Falla'!IQ81) ->  | H81: =IF('[3]Tasa de Falla'!IR81=0,"",'[3]Tasa de Falla'!IR81) ->  | I81: =IF('[3]Tasa de Falla'!IS81=0,"",'[3]Tasa de Falla'!IS81) ->  | J81: =IF('[3]Tasa de Falla'!IT81=0,"",'[3]Tasa de Falla'!IT81) -> 1 | K81: =IF('[3]Tasa de Falla'!IU81=0,"",'[3]Tasa de Falla'!IU81) ->  | L81: =IF('[3]Tasa de Falla'!IV81=0,"",'[3]Tasa de Falla'!IV81) ->  | M81: =IF('[3]Tasa de Falla'!IW81=0,"",'[3]Tasa de Falla'!IW81) ->  | N81: =IF('[3]Tasa de Falla'!IX81=0,"",'[3]Tasa de Falla'!IX81) ->  | O81: =IF('[3]Tasa de Falla'!IY81=0,"",'[3]Tasa de Falla'!IY81) ->  | P81: =IF('[3]Tasa de Falla'!IZ81=0,"",'[3]Tasa de Falla'!IZ81) ->  | Q81: =IF('[3]Tasa de Falla'!JA81=0,"",'[3]Tasa de Falla'!JA81) ->  | R81: =IF('[3]Tasa de Falla'!JB81=0,"",'[3]Tasa de Falla'!JB81) -> 
C82: ='[3]Tasa de Falla'!C82 -> 64 | D82: ='[3]Tasa de Falla'!D82 -> BELEN - TINOGASTA | E82: ='[3]Tasa de Falla'!E82 -> 132 | F82: ='[3]Tasa de Falla'!F82 -> 72 | G82: =IF('[3]Tasa de Falla'!IQ82=0,"",'[3]Tasa de Falla'!IQ82) ->  | H82: =IF('[3]Tasa de Falla'!IR82=0,"",'[3]Tasa de Falla'!IR82) ->  | I82: =IF('[3]Tasa de Falla'!IS82=0,"",'[3]Tasa de Falla'!IS82) -> 1 | J82: =IF('[3]Tasa de Falla'!IT82=0,"",'[3]Tasa de Falla'!IT82) ->  | K82: =IF('[3]Tasa de Falla'!IU82=0,"",'[3]Tasa de Falla'!IU82) ->  | L82: =IF('[3]Tasa de Falla'!IV82=0,"",'[3]Tasa de Falla'!IV82) ->  | M82: =IF('[3]Tasa de Falla'!IW82=0,"",'[3]Tasa de Falla'!IW82) ->  | N82: =IF('[3]Tasa de Falla'!IX82=0,"",'[3]Tasa de Falla'!IX82) ->  | O82: =IF('[3]Tasa de Falla'!IY82=0,"",'[3]Tasa de Falla'!IY82) ->  | P82: =IF('[3]Tasa de Falla'!IZ82=0,"",'[3]Tasa de Falla'!IZ82) ->  | Q82: =IF('[3]Tasa de Falla'!JA82=0,"",'[3]Tasa de Falla'!JA82) ->  | R82: =IF('[3]Tasa de Falla'!JB82=0,"",'[3]Tasa de Falla'!JB82) -> 
C83: ='[3]Tasa de Falla'!C83 -> 65 | D83: ='[3]Tasa de Falla'!D83 -> BURRUYACU - CEVIL POZO | E83: ='[3]Tasa de Falla'!E83 -> 132 | F83: ='[3]Tasa de Falla'!F83 -> 56 | G83: =IF('[3]Tasa de Falla'!IQ83=0,"",'[3]Tasa de Falla'!IQ83) ->  | H83: =IF('[3]Tasa de Falla'!IR83=0,"",'[3]Tasa de Falla'!IR83) -> 1 | I83: =IF('[3]Tasa de Falla'!IS83=0,"",'[3]Tasa de Falla'!IS83) ->  | J83: =IF('[3]Tasa de Falla'!IT83=0,"",'[3]Tasa de Falla'!IT83) ->  | K83: =IF('[3]Tasa de Falla'!IU83=0,"",'[3]Tasa de Falla'!IU83) -> 1 | L83: =IF('[3]Tasa de Falla'!IV83=0,"",'[3]Tasa de Falla'!IV83) -> 1 | M83: =IF('[3]Tasa de Falla'!IW83=0,"",'[3]Tasa de Falla'!IW83) ->  | N83: =IF('[3]Tasa de Falla'!IX83=0,"",'[3]Tasa de Falla'!IX83) ->  | O83: =IF('[3]Tasa de Falla'!IY83=0,"",'[3]Tasa de Falla'!IY83) ->  | P83: =IF('[3]Tasa de Falla'!IZ83=0,"",'[3]Tasa de Falla'!IZ83) ->  | Q83: =IF('[3]Tasa de Falla'!JA83=0,"",'[3]Tasa de Falla'!JA83) ->  | R83: =IF('[3]Tasa de Falla'!JB83=0,"",'[3]Tasa de Falla'!JB83) -> 
C84: ='[3]Tasa de Falla'!C84 -> 66 | D84: ='[3]Tasa de Falla'!D84 -> GÜEMES - BURRUYACU | E84: ='[3]Tasa de Falla'!E84 -> 132 | F84: ='[3]Tasa de Falla'!F84 -> 235.1 | G84: =IF('[3]Tasa de Falla'!IQ84=0,"",'[3]Tasa de Falla'!IQ84) -> XXXX | H84: =IF('[3]Tasa de Falla'!IR84=0,"",'[3]Tasa de Falla'!IR84) -> XXXX | I84: =IF('[3]Tasa de Falla'!IS84=0,"",'[3]Tasa de Falla'!IS84) -> XXXX | J84: =IF('[3]Tasa de Falla'!IT84=0,"",'[3]Tasa de Falla'!IT84) -> XXXX | K84: =IF('[3]Tasa de Falla'!IU84=0,"",'[3]Tasa de Falla'!IU84) -> XXXX | L84: =IF('[3]Tasa de Falla'!IV84=0,"",'[3]Tasa de Falla'!IV84) -> XXXX | M84: =IF('[3]Tasa de Falla'!IW84=0,"",'[3]Tasa de Falla'!IW84) -> XXXX | N84: =IF('[3]Tasa de Falla'!IX84=0,"",'[3]Tasa de Falla'!IX84) -> XXXX | O84: =IF('[3]Tasa de Falla'!IY84=0,"",'[3]Tasa de Falla'!IY84) -> XXXX | P84: =IF('[3]Tasa de Falla'!IZ84=0,"",'[3]Tasa de Falla'!IZ84) -> XXXX | Q84: =IF('[3]Tasa de Falla'!JA84=0,"",'[3]Tasa de Falla'!JA84) -> XXXX | R84: =IF('[3]Tasa de Falla'!JB84=0,"",'[3]Tasa de Falla'!JB84) -> XXXX
C85: ='[3]Tasa de Falla'!C85 -> 67 | D85: ='[3]Tasa de Falla'!D85 -> FRIAS - RECREO | E85: ='[3]Tasa de Falla'!E85 -> 132 | F85: ='[3]Tasa de Falla'!F85 -> 74.54 | G85: =IF('[3]Tasa de Falla'!IQ85=0,"",'[3]Tasa de Falla'!IQ85) ->  | H85: =IF('[3]Tasa de Falla'!IR85=0,"",'[3]Tasa de Falla'!IR85) ->  | I85: =IF('[3]Tasa de Falla'!IS85=0,"",'[3]Tasa de Falla'!IS85) ->  | J85: =IF('[3]Tasa de Falla'!IT85=0,"",'[3]Tasa de Falla'!IT85) ->  | K85: =IF('[3]Tasa de Falla'!IU85=0,"",'[3]Tasa de Falla'!IU85) ->  | L85: =IF('[3]Tasa de Falla'!IV85=0,"",'[3]Tasa de Falla'!IV85) ->  | M85: =IF('[3]Tasa de Falla'!IW85=0,"",'[3]Tasa de Falla'!IW85) ->  | N85: =IF('[3]Tasa de Falla'!IX85=0,"",'[3]Tasa de Falla'!IX85) ->  | O85: =IF('[3]Tasa de Falla'!IY85=0,"",'[3]Tasa de Falla'!IY85) ->  | P85: =IF('[3]Tasa de Falla'!IZ85=0,"",'[3]Tasa de Falla'!IZ85) ->  | Q85: =IF('[3]Tasa de Falla'!JA85=0,"",'[3]Tasa de Falla'!JA85) ->  | R85: =IF('[3]Tasa de Falla'!JB85=0,"",'[3]Tasa de Falla'!JB85) -> 
C86: ='[3]Tasa de Falla'!C86 -> 68 | D86: ='[3]Tasa de Falla'!D86 -> RECREO - LA RIOJA 1 | E86: ='[3]Tasa de Falla'!E86 -> 132 | F86: ='[3]Tasa de Falla'!F86 -> 221 | G86: =IF('[3]Tasa de Falla'!IQ86=0,"",'[3]Tasa de Falla'!IQ86) ->  | H86: =IF('[3]Tasa de Falla'!IR86=0,"",'[3]Tasa de Falla'!IR86) ->  | I86: =IF('[3]Tasa de Falla'!IS86=0,"",'[3]Tasa de Falla'!IS86) ->  | J86: =IF('[3]Tasa de Falla'!IT86=0,"",'[3]Tasa de Falla'!IT86) -> 1 | K86: =IF('[3]Tasa de Falla'!IU86=0,"",'[3]Tasa de Falla'!IU86) -> 1 | L86: =IF('[3]Tasa de Falla'!IV86=0,"",'[3]Tasa de Falla'!IV86) ->  | M86: =IF('[3]Tasa de Falla'!IW86=0,"",'[3]Tasa de Falla'!IW86) ->  | N86: =IF('[3]Tasa de Falla'!IX86=0,"",'[3]Tasa de Falla'!IX86) ->  | O86: =IF('[3]Tasa de Falla'!IY86=0,"",'[3]Tasa de Falla'!IY86) -> 1 | P86: =IF('[3]Tasa de Falla'!IZ86=0,"",'[3]Tasa de Falla'!IZ86) -> 1 | Q86: =IF('[3]Tasa de Falla'!JA86=0,"",'[3]Tasa de Falla'!JA86) ->  | R86: =IF('[3]Tasa de Falla'!JB86=0,"",'[3]Tasa de Falla'!JB86) -> 
C87: ='[3]Tasa de Falla'!C87 -> 69 | D87: ='[3]Tasa de Falla'!D87 -> RECREO - LA RIOJA 2 | E87: ='[3]Tasa de Falla'!E87 -> 132 | F87: ='[3]Tasa de Falla'!F87 -> 220 | G87: =IF('[3]Tasa de Falla'!IQ87=0,"",'[3]Tasa de Falla'!IQ87) ->  | H87: =IF('[3]Tasa de Falla'!IR87=0,"",'[3]Tasa de Falla'!IR87) ->  | I87: =IF('[3]Tasa de Falla'!IS87=0,"",'[3]Tasa de Falla'!IS87) -> 1 | J87: =IF('[3]Tasa de Falla'!IT87=0,"",'[3]Tasa de Falla'!IT87) ->  | K87: =IF('[3]Tasa de Falla'!IU87=0,"",'[3]Tasa de Falla'!IU87) -> 1 | L87: =IF('[3]Tasa de Falla'!IV87=0,"",'[3]Tasa de Falla'!IV87) ->  | M87: =IF('[3]Tasa de Falla'!IW87=0,"",'[3]Tasa de Falla'!IW87) ->  | N87: =IF('[3]Tasa de Falla'!IX87=0,"",'[3]Tasa de Falla'!IX87) -> 1 | O87: =IF('[3]Tasa de Falla'!IY87=0,"",'[3]Tasa de Falla'!IY87) -> 1 | P87: =IF('[3]Tasa de Falla'!IZ87=0,"",'[3]Tasa de Falla'!IZ87) ->  | Q87: =IF('[3]Tasa de Falla'!JA87=0,"",'[3]Tasa de Falla'!JA87) ->  | R87: =IF('[3]Tasa de Falla'!JB87=0,"",'[3]Tasa de Falla'!JB87) -> 
C88: ='[3]Tasa de Falla'!C88 -> 70 | D88: ='[3]Tasa de Falla'!D88 -> RECREO - CATAMARCA | E88: ='[3]Tasa de Falla'!E88 -> 132 | F88: ='[3]Tasa de Falla'!F88 -> 203 | G88: =IF('[3]Tasa de Falla'!IQ88=0,"",'[3]Tasa de Falla'!IQ88) ->  | H88: =IF('[3]Tasa de Falla'!IR88=0,"",'[3]Tasa de Falla'!IR88) ->  | I88: =IF('[3]Tasa de Falla'!IS88=0,"",'[3]Tasa de Falla'!IS88) ->  | J88: =IF('[3]Tasa de Falla'!IT88=0,"",'[3]Tasa de Falla'!IT88) -> 2 | K88: =IF('[3]Tasa de Falla'!IU88=0,"",'[3]Tasa de Falla'!IU88) ->  | L88: =IF('[3]Tasa de Falla'!IV88=0,"",'[3]Tasa de Falla'!IV88) ->  | M88: =IF('[3]Tasa de Falla'!IW88=0,"",'[3]Tasa de Falla'!IW88) -> 1 | N88: =IF('[3]Tasa de Falla'!IX88=0,"",'[3]Tasa de Falla'!IX88) ->  | O88: =IF('[3]Tasa de Falla'!IY88=0,"",'[3]Tasa de Falla'!IY88) ->  | P88: =IF('[3]Tasa de Falla'!IZ88=0,"",'[3]Tasa de Falla'!IZ88) ->  | Q88: =IF('[3]Tasa de Falla'!JA88=0,"",'[3]Tasa de Falla'!JA88) ->  | R88: =IF('[3]Tasa de Falla'!JB88=0,"",'[3]Tasa de Falla'!JB88) -> 
C89: ='[3]Tasa de Falla'!C89 -> 71 | D89: ='[3]Tasa de Falla'!D89 -> CABRA CORRAL - EL CARRIL | E89: ='[3]Tasa de Falla'!E89 -> 132 | F89: ='[3]Tasa de Falla'!F89 -> 33.75 | G89: =IF('[3]Tasa de Falla'!IQ89=0,"",'[3]Tasa de Falla'!IQ89) ->  | H89: =IF('[3]Tasa de Falla'!IR89=0,"",'[3]Tasa de Falla'!IR89) -> 1 | I89: =IF('[3]Tasa de Falla'!IS89=0,"",'[3]Tasa de Falla'!IS89) ->  | J89: =IF('[3]Tasa de Falla'!IT89=0,"",'[3]Tasa de Falla'!IT89) ->  | K89: =IF('[3]Tasa de Falla'!IU89=0,"",'[3]Tasa de Falla'!IU89) ->  | L89: =IF('[3]Tasa de Falla'!IV89=0,"",'[3]Tasa de Falla'!IV89) ->  | M89: =IF('[3]Tasa de Falla'!IW89=0,"",'[3]Tasa de Falla'!IW89) ->  | N89: =IF('[3]Tasa de Falla'!IX89=0,"",'[3]Tasa de Falla'!IX89) ->  | O89: =IF('[3]Tasa de Falla'!IY89=0,"",'[3]Tasa de Falla'!IY89) ->  | P89: =IF('[3]Tasa de Falla'!IZ89=0,"",'[3]Tasa de Falla'!IZ89) -> 1 | Q89: =IF('[3]Tasa de Falla'!JA89=0,"",'[3]Tasa de Falla'!JA89) ->  | R89: =IF('[3]Tasa de Falla'!JB89=0,"",'[3]Tasa de Falla'!JB89) -> 
C90: ='[3]Tasa de Falla'!C90 -> 72 | D90: ='[3]Tasa de Falla'!D90 -> PAMPA GRANDE - CABRA CORRAL | E90: ='[3]Tasa de Falla'!E90 -> 132 | F90: ='[3]Tasa de Falla'!F90 -> 60 | G90: =IF('[3]Tasa de Falla'!IQ90=0,"",'[3]Tasa de Falla'!IQ90) ->  | H90: =IF('[3]Tasa de Falla'!IR90=0,"",'[3]Tasa de Falla'!IR90) ->  | I90: =IF('[3]Tasa de Falla'!IS90=0,"",'[3]Tasa de Falla'!IS90) ->  | J90: =IF('[3]Tasa de Falla'!IT90=0,"",'[3]Tasa de Falla'!IT90) ->  | K90: =IF('[3]Tasa de Falla'!IU90=0,"",'[3]Tasa de Falla'!IU90) -> 1 | L90: =IF('[3]Tasa de Falla'!IV90=0,"",'[3]Tasa de Falla'!IV90) -> 1 | M90: =IF('[3]Tasa de Falla'!IW90=0,"",'[3]Tasa de Falla'!IW90) -> 1 | N90: =IF('[3]Tasa de Falla'!IX90=0,"",'[3]Tasa de Falla'!IX90) ->  | O90: =IF('[3]Tasa de Falla'!IY90=0,"",'[3]Tasa de Falla'!IY90) ->  | P90: =IF('[3]Tasa de Falla'!IZ90=0,"",'[3]Tasa de Falla'!IZ90) -> 1 | Q90: =IF('[3]Tasa de Falla'!JA90=0,"",'[3]Tasa de Falla'!JA90) ->  | R90: =IF('[3]Tasa de Falla'!JB90=0,"",'[3]Tasa de Falla'!JB90) -> 
C91: ='[3]Tasa de Falla'!C91 -> 73 | D91: ='[3]Tasa de Falla'!D91 -> PAMPA GRANDE - CAFAYATE | E91: ='[3]Tasa de Falla'!E91 -> 132 | F91: ='[3]Tasa de Falla'!F91 -> 63 | G91: =IF('[3]Tasa de Falla'!IQ91=0,"",'[3]Tasa de Falla'!IQ91) ->  | H91: =IF('[3]Tasa de Falla'!IR91=0,"",'[3]Tasa de Falla'!IR91) ->  | I91: =IF('[3]Tasa de Falla'!IS91=0,"",'[3]Tasa de Falla'!IS91) ->  | J91: =IF('[3]Tasa de Falla'!IT91=0,"",'[3]Tasa de Falla'!IT91) ->  | K91: =IF('[3]Tasa de Falla'!IU91=0,"",'[3]Tasa de Falla'!IU91) ->  | L91: =IF('[3]Tasa de Falla'!IV91=0,"",'[3]Tasa de Falla'!IV91) ->  | M91: =IF('[3]Tasa de Falla'!IW91=0,"",'[3]Tasa de Falla'!IW91) ->  | N91: =IF('[3]Tasa de Falla'!IX91=0,"",'[3]Tasa de Falla'!IX91) ->  | O91: =IF('[3]Tasa de Falla'!IY91=0,"",'[3]Tasa de Falla'!IY91) ->  | P91: =IF('[3]Tasa de Falla'!IZ91=0,"",'[3]Tasa de Falla'!IZ91) ->  | Q91: =IF('[3]Tasa de Falla'!JA91=0,"",'[3]Tasa de Falla'!JA91) ->  | R91: =IF('[3]Tasa de Falla'!JB91=0,"",'[3]Tasa de Falla'!JB91) -> 
C92: ='[3]Tasa de Falla'!C92 -> 74 | D92: ='[3]Tasa de Falla'!D92 -> PAMPA GRANDE - TRANCAS | E92: ='[3]Tasa de Falla'!E92 -> 132 | F92: ='[3]Tasa de Falla'!F92 -> 55 | G92: =IF('[3]Tasa de Falla'!IQ92=0,"",'[3]Tasa de Falla'!IQ92) ->  | H92: =IF('[3]Tasa de Falla'!IR92=0,"",'[3]Tasa de Falla'!IR92) ->  | I92: =IF('[3]Tasa de Falla'!IS92=0,"",'[3]Tasa de Falla'!IS92) ->  | J92: =IF('[3]Tasa de Falla'!IT92=0,"",'[3]Tasa de Falla'!IT92) ->  | K92: =IF('[3]Tasa de Falla'!IU92=0,"",'[3]Tasa de Falla'!IU92) ->  | L92: =IF('[3]Tasa de Falla'!IV92=0,"",'[3]Tasa de Falla'!IV92) ->  | M92: =IF('[3]Tasa de Falla'!IW92=0,"",'[3]Tasa de Falla'!IW92) ->  | N92: =IF('[3]Tasa de Falla'!IX92=0,"",'[3]Tasa de Falla'!IX92) ->  | O92: =IF('[3]Tasa de Falla'!IY92=0,"",'[3]Tasa de Falla'!IY92) ->  | P92: =IF('[3]Tasa de Falla'!IZ92=0,"",'[3]Tasa de Falla'!IZ92) ->  | Q92: =IF('[3]Tasa de Falla'!JA92=0,"",'[3]Tasa de Falla'!JA92) -> 2 | R92: =IF('[3]Tasa de Falla'!JB92=0,"",'[3]Tasa de Falla'!JB92) -> 
C93: ='[3]Tasa de Falla'!C93 -> 75 | D93: ='[3]Tasa de Falla'!D93 -> SANTIAGO CENTRO - FERNANDEZ - SUNCHO CORRAL | E93: ='[3]Tasa de Falla'!E93 -> 132 | F93: ='[3]Tasa de Falla'!F93 -> 103 | G93: =IF('[3]Tasa de Falla'!IQ93=0,"",'[3]Tasa de Falla'!IQ93) ->  | H93: =IF('[3]Tasa de Falla'!IR93=0,"",'[3]Tasa de Falla'!IR93) ->  | I93: =IF('[3]Tasa de Falla'!IS93=0,"",'[3]Tasa de Falla'!IS93) ->  | J93: =IF('[3]Tasa de Falla'!IT93=0,"",'[3]Tasa de Falla'!IT93) ->  | K93: =IF('[3]Tasa de Falla'!IU93=0,"",'[3]Tasa de Falla'!IU93) ->  | L93: =IF('[3]Tasa de Falla'!IV93=0,"",'[3]Tasa de Falla'!IV93) ->  | M93: =IF('[3]Tasa de Falla'!IW93=0,"",'[3]Tasa de Falla'!IW93) ->  | N93: =IF('[3]Tasa de Falla'!IX93=0,"",'[3]Tasa de Falla'!IX93) ->  | O93: =IF('[3]Tasa de Falla'!IY93=0,"",'[3]Tasa de Falla'!IY93) ->  | P93: =IF('[3]Tasa de Falla'!IZ93=0,"",'[3]Tasa de Falla'!IZ93) ->  | Q93: =IF('[3]Tasa de Falla'!JA93=0,"",'[3]Tasa de Falla'!JA93) ->  | R93: =IF('[3]Tasa de Falla'!JB93=0,"",'[3]Tasa de Falla'!JB93) -> 1
C94: ='[3]Tasa de Falla'!C94 -> 76 | D94: ='[3]Tasa de Falla'!D94 -> SUNCHO CORRAL - ANATUYA | E94: ='[3]Tasa de Falla'!E94 -> 132 | F94: ='[3]Tasa de Falla'!F94 -> 81 | G94: =IF('[3]Tasa de Falla'!IQ94=0,"",'[3]Tasa de Falla'!IQ94) ->  | H94: =IF('[3]Tasa de Falla'!IR94=0,"",'[3]Tasa de Falla'!IR94) -> 2 | I94: =IF('[3]Tasa de Falla'!IS94=0,"",'[3]Tasa de Falla'!IS94) -> 1 | J94: =IF('[3]Tasa de Falla'!IT94=0,"",'[3]Tasa de Falla'!IT94) ->  | K94: =IF('[3]Tasa de Falla'!IU94=0,"",'[3]Tasa de Falla'!IU94) ->  | L94: =IF('[3]Tasa de Falla'!IV94=0,"",'[3]Tasa de Falla'!IV94) ->  | M94: =IF('[3]Tasa de Falla'!IW94=0,"",'[3]Tasa de Falla'!IW94) ->  | N94: =IF('[3]Tasa de Falla'!IX94=0,"",'[3]Tasa de Falla'!IX94) ->  | O94: =IF('[3]Tasa de Falla'!IY94=0,"",'[3]Tasa de Falla'!IY94) ->  | P94: =IF('[3]Tasa de Falla'!IZ94=0,"",'[3]Tasa de Falla'!IZ94) ->  | Q94: =IF('[3]Tasa de Falla'!JA94=0,"",'[3]Tasa de Falla'!JA94) ->  | R94: =IF('[3]Tasa de Falla'!JB94=0,"",'[3]Tasa de Falla'!JB94) -> 
C95: ='[3]Tasa de Falla'!C95 -> 77 | D95: ='[3]Tasa de Falla'!D95 -> LAS MADERAS - GÜEMES SALTA | E95: ='[3]Tasa de Falla'!E95 -> 132 | F95: ='[3]Tasa de Falla'!F95 -> 42 | G95: =IF('[3]Tasa de Falla'!IQ95=0,"",'[3]Tasa de Falla'!IQ95) ->  | H95: =IF('[3]Tasa de Falla'!IR95=0,"",'[3]Tasa de Falla'!IR95) -> 1 | I95: =IF('[3]Tasa de Falla'!IS95=0,"",'[3]Tasa de Falla'!IS95) ->  | J95: =IF('[3]Tasa de Falla'!IT95=0,"",'[3]Tasa de Falla'!IT95) ->  | K95: =IF('[3]Tasa de Falla'!IU95=0,"",'[3]Tasa de Falla'!IU95) ->  | L95: =IF('[3]Tasa de Falla'!IV95=0,"",'[3]Tasa de Falla'!IV95) ->  | M95: =IF('[3]Tasa de Falla'!IW95=0,"",'[3]Tasa de Falla'!IW95) ->  | N95: =IF('[3]Tasa de Falla'!IX95=0,"",'[3]Tasa de Falla'!IX95) ->  | O95: =IF('[3]Tasa de Falla'!IY95=0,"",'[3]Tasa de Falla'!IY95) ->  | P95: =IF('[3]Tasa de Falla'!IZ95=0,"",'[3]Tasa de Falla'!IZ95) ->  | Q95: =IF('[3]Tasa de Falla'!JA95=0,"",'[3]Tasa de Falla'!JA95) ->  | R95: =IF('[3]Tasa de Falla'!JB95=0,"",'[3]Tasa de Falla'!JB95) -> 
C96: ='[3]Tasa de Falla'!C96 -> 78 | D96: ='[3]Tasa de Falla'!D96 -> INDEPENDENCIA - EL BRACHO 2 | E96: ='[3]Tasa de Falla'!E96 -> 132 | F96: ='[3]Tasa de Falla'!F96 -> 17.1 | G96: =IF('[3]Tasa de Falla'!IQ96=0,"",'[3]Tasa de Falla'!IQ96) ->  | H96: =IF('[3]Tasa de Falla'!IR96=0,"",'[3]Tasa de Falla'!IR96) ->  | I96: =IF('[3]Tasa de Falla'!IS96=0,"",'[3]Tasa de Falla'!IS96) ->  | J96: =IF('[3]Tasa de Falla'!IT96=0,"",'[3]Tasa de Falla'!IT96) ->  | K96: =IF('[3]Tasa de Falla'!IU96=0,"",'[3]Tasa de Falla'!IU96) ->  | L96: =IF('[3]Tasa de Falla'!IV96=0,"",'[3]Tasa de Falla'!IV96) -> 1 | M96: =IF('[3]Tasa de Falla'!IW96=0,"",'[3]Tasa de Falla'!IW96) ->  | N96: =IF('[3]Tasa de Falla'!IX96=0,"",'[3]Tasa de Falla'!IX96) ->  | O96: =IF('[3]Tasa de Falla'!IY96=0,"",'[3]Tasa de Falla'!IY96) ->  | P96: =IF('[3]Tasa de Falla'!IZ96=0,"",'[3]Tasa de Falla'!IZ96) -> 1 | Q96: =IF('[3]Tasa de Falla'!JA96=0,"",'[3]Tasa de Falla'!JA96) -> 2 | R96: =IF('[3]Tasa de Falla'!JB96=0,"",'[3]Tasa de Falla'!JB96) -> 
C97: ='[3]Tasa de Falla'!C97 -> 79 | D97: ='[3]Tasa de Falla'!D97 -> GÜEMES - SALTA NORTE | E97: ='[3]Tasa de Falla'!E97 -> 132 | F97: ='[3]Tasa de Falla'!F97 -> 39 | G97: =IF('[3]Tasa de Falla'!IQ97=0,"",'[3]Tasa de Falla'!IQ97) -> XXXX | H97: =IF('[3]Tasa de Falla'!IR97=0,"",'[3]Tasa de Falla'!IR97) -> XXXX | I97: =IF('[3]Tasa de Falla'!IS97=0,"",'[3]Tasa de Falla'!IS97) -> XXXX | J97: =IF('[3]Tasa de Falla'!IT97=0,"",'[3]Tasa de Falla'!IT97) -> XXXX | K97: =IF('[3]Tasa de Falla'!IU97=0,"",'[3]Tasa de Falla'!IU97) -> XXXX | L97: =IF('[3]Tasa de Falla'!IV97=0,"",'[3]Tasa de Falla'!IV97) -> XXXX | M97: =IF('[3]Tasa de Falla'!IW97=0,"",'[3]Tasa de Falla'!IW97) -> XXXX | N97: =IF('[3]Tasa de Falla'!IX97=0,"",'[3]Tasa de Falla'!IX97) -> XXXX | O97: =IF('[3]Tasa de Falla'!IY97=0,"",'[3]Tasa de Falla'!IY97) -> XXXX | P97: =IF('[3]Tasa de Falla'!IZ97=0,"",'[3]Tasa de Falla'!IZ97) -> XXXX | Q97: =IF('[3]Tasa de Falla'!JA97=0,"",'[3]Tasa de Falla'!JA97) -> XXXX | R97: =IF('[3]Tasa de Falla'!JB97=0,"",'[3]Tasa de Falla'!JB97) -> XXXX
C98: ='[3]Tasa de Falla'!C98 -> 80 | D98: ='[3]Tasa de Falla'!D98 -> BURRUYACU - COBOS | E98: ='[3]Tasa de Falla'!E98 -> 132 | F98: ='[3]Tasa de Falla'!F98 -> 229.5 | G98: =IF('[3]Tasa de Falla'!IQ98=0,"",'[3]Tasa de Falla'!IQ98) -> XXXX | H98: =IF('[3]Tasa de Falla'!IR98=0,"",'[3]Tasa de Falla'!IR98) -> XXXX | I98: =IF('[3]Tasa de Falla'!IS98=0,"",'[3]Tasa de Falla'!IS98) -> XXXX | J98: =IF('[3]Tasa de Falla'!IT98=0,"",'[3]Tasa de Falla'!IT98) -> XXXX | K98: =IF('[3]Tasa de Falla'!IU98=0,"",'[3]Tasa de Falla'!IU98) -> XXXX | L98: =IF('[3]Tasa de Falla'!IV98=0,"",'[3]Tasa de Falla'!IV98) -> XXXX | M98: =IF('[3]Tasa de Falla'!IW98=0,"",'[3]Tasa de Falla'!IW98) -> XXXX | N98: =IF('[3]Tasa de Falla'!IX98=0,"",'[3]Tasa de Falla'!IX98) -> XXXX | O98: =IF('[3]Tasa de Falla'!IY98=0,"",'[3]Tasa de Falla'!IY98) -> XXXX | P98: =IF('[3]Tasa de Falla'!IZ98=0,"",'[3]Tasa de Falla'!IZ98) -> XXXX | Q98: =IF('[3]Tasa de Falla'!JA98=0,"",'[3]Tasa de Falla'!JA98) -> XXXX | R98: =IF('[3]Tasa de Falla'!JB98=0,"",'[3]Tasa de Falla'!JB98) -> XXXX
C99: ='[3]Tasa de Falla'!C99 -> 81 | D99: ='[3]Tasa de Falla'!D99 -> METAN - COBOS | E99: ='[3]Tasa de Falla'!E99 -> 132 | F99: ='[3]Tasa de Falla'!F99 -> 89.2 | G99: =IF('[3]Tasa de Falla'!IQ99=0,"",'[3]Tasa de Falla'!IQ99) ->  | H99: =IF('[3]Tasa de Falla'!IR99=0,"",'[3]Tasa de Falla'!IR99) ->  | I99: =IF('[3]Tasa de Falla'!IS99=0,"",'[3]Tasa de Falla'!IS99) ->  | J99: =IF('[3]Tasa de Falla'!IT99=0,"",'[3]Tasa de Falla'!IT99) ->  | K99: =IF('[3]Tasa de Falla'!IU99=0,"",'[3]Tasa de Falla'!IU99) ->  | L99: =IF('[3]Tasa de Falla'!IV99=0,"",'[3]Tasa de Falla'!IV99) ->  | M99: =IF('[3]Tasa de Falla'!IW99=0,"",'[3]Tasa de Falla'!IW99) ->  | N99: =IF('[3]Tasa de Falla'!IX99=0,"",'[3]Tasa de Falla'!IX99) ->  | O99: =IF('[3]Tasa de Falla'!IY99=0,"",'[3]Tasa de Falla'!IY99) ->  | P99: =IF('[3]Tasa de Falla'!IZ99=0,"",'[3]Tasa de Falla'!IZ99) ->  | Q99: =IF('[3]Tasa de Falla'!JA99=0,"",'[3]Tasa de Falla'!JA99) ->  | R99: =IF('[3]Tasa de Falla'!JB99=0,"",'[3]Tasa de Falla'!JB99) -> 
C100: ='[3]Tasa de Falla'!C100 -> 82 | D100: ='[3]Tasa de Falla'!D100 -> AÑATUYA - BANDERA | E100: ='[3]Tasa de Falla'!E100 -> 132 | F100: ='[3]Tasa de Falla'!F100 -> 76 | G100: =IF('[3]Tasa de Falla'!IQ100=0,"",'[3]Tasa de Falla'!IQ100) ->  | H100: =IF('[3]Tasa de Falla'!IR100=0,"",'[3]Tasa de Falla'!IR100) ->  | I100: =IF('[3]Tasa de Falla'!IS100=0,"",'[3]Tasa de Falla'!IS100) -> 2 | J100: =IF('[3]Tasa de Falla'!IT100=0,"",'[3]Tasa de Falla'!IT100) ->  | K100: =IF('[3]Tasa de Falla'!IU100=0,"",'[3]Tasa de Falla'!IU100) ->  | L100: =IF('[3]Tasa de Falla'!IV100=0,"",'[3]Tasa de Falla'!IV100) -> 1 | M100: =IF('[3]Tasa de Falla'!IW100=0,"",'[3]Tasa de Falla'!IW100) ->  | N100: =IF('[3]Tasa de Falla'!IX100=0,"",'[3]Tasa de Falla'!IX100) ->  | O100: =IF('[3]Tasa de Falla'!IY100=0,"",'[3]Tasa de Falla'!IY100) ->  | P100: =IF('[3]Tasa de Falla'!IZ100=0,"",'[3]Tasa de Falla'!IZ100) ->  | Q100: =IF('[3]Tasa de Falla'!JA100=0,"",'[3]Tasa de Falla'!JA100) ->  | R100: =IF('[3]Tasa de Falla'!JB100=0,"",'[3]Tasa de Falla'!JB100) -> 
C101: ='[3]Tasa de Falla'!C101 -> 84 | D101: ='[3]Tasa de Falla'!D101 -> GÜEMES SALTA - COBOS 1 | E101: ='[3]Tasa de Falla'!E101 -> 132 | F101: ='[3]Tasa de Falla'!F101 -> 12.1 | G101: =IF('[3]Tasa de Falla'!IQ101=0,"",'[3]Tasa de Falla'!IQ101) ->  | H101: =IF('[3]Tasa de Falla'!IR101=0,"",'[3]Tasa de Falla'!IR101) ->  | I101: =IF('[3]Tasa de Falla'!IS101=0,"",'[3]Tasa de Falla'!IS101) ->  | J101: =IF('[3]Tasa de Falla'!IT101=0,"",'[3]Tasa de Falla'!IT101) ->  | K101: =IF('[3]Tasa de Falla'!IU101=0,"",'[3]Tasa de Falla'!IU101) ->  | L101: =IF('[3]Tasa de Falla'!IV101=0,"",'[3]Tasa de Falla'!IV101) ->  | M101: =IF('[3]Tasa de Falla'!IW101=0,"",'[3]Tasa de Falla'!IW101) ->  | N101: =IF('[3]Tasa de Falla'!IX101=0,"",'[3]Tasa de Falla'!IX101) ->  | O101: =IF('[3]Tasa de Falla'!IY101=0,"",'[3]Tasa de Falla'!IY101) ->  | P101: =IF('[3]Tasa de Falla'!IZ101=0,"",'[3]Tasa de Falla'!IZ101) ->  | Q101: =IF('[3]Tasa de Falla'!JA101=0,"",'[3]Tasa de Falla'!JA101) ->  | R101: =IF('[3]Tasa de Falla'!JB101=0,"",'[3]Tasa de Falla'!JB101) -> 
C102: ='[3]Tasa de Falla'!C102 -> 85 | D102: ='[3]Tasa de Falla'!D102 -> GÜEMES SALTA - COBOS 2 | E102: ='[3]Tasa de Falla'!E102 -> 132 | F102: ='[3]Tasa de Falla'!F102 -> 12.1 | G102: =IF('[3]Tasa de Falla'!IQ102=0,"",'[3]Tasa de Falla'!IQ102) ->  | H102: =IF('[3]Tasa de Falla'!IR102=0,"",'[3]Tasa de Falla'!IR102) ->  | I102: =IF('[3]Tasa de Falla'!IS102=0,"",'[3]Tasa de Falla'!IS102) ->  | J102: =IF('[3]Tasa de Falla'!IT102=0,"",'[3]Tasa de Falla'!IT102) ->  | K102: =IF('[3]Tasa de Falla'!IU102=0,"",'[3]Tasa de Falla'!IU102) ->  | L102: =IF('[3]Tasa de Falla'!IV102=0,"",'[3]Tasa de Falla'!IV102) ->  | M102: =IF('[3]Tasa de Falla'!IW102=0,"",'[3]Tasa de Falla'!IW102) ->  | N102: =IF('[3]Tasa de Falla'!IX102=0,"",'[3]Tasa de Falla'!IX102) ->  | O102: =IF('[3]Tasa de Falla'!IY102=0,"",'[3]Tasa de Falla'!IY102) ->  | P102: =IF('[3]Tasa de Falla'!IZ102=0,"",'[3]Tasa de Falla'!IZ102) -> 1 | Q102: =IF('[3]Tasa de Falla'!JA102=0,"",'[3]Tasa de Falla'!JA102) ->  | R102: =IF('[3]Tasa de Falla'!JB102=0,"",'[3]Tasa de Falla'!JB102) -> 
C103: ='[3]Tasa de Falla'!C103 -> 86 | D103: ='[3]Tasa de Falla'!D103 -> EL BRACHO - LA BANDA | E103: ='[3]Tasa de Falla'!E103 -> 132 | F103: ='[3]Tasa de Falla'!F103 -> 133.5 | G103: =IF('[3]Tasa de Falla'!IQ103=0,"",'[3]Tasa de Falla'!IQ103) -> XXXX | H103: =IF('[3]Tasa de Falla'!IR103=0,"",'[3]Tasa de Falla'!IR103) -> XXXX | I103: =IF('[3]Tasa de Falla'!IS103=0,"",'[3]Tasa de Falla'!IS103) -> XXXX | J103: =IF('[3]Tasa de Falla'!IT103=0,"",'[3]Tasa de Falla'!IT103) -> XXXX | K103: =IF('[3]Tasa de Falla'!IU103=0,"",'[3]Tasa de Falla'!IU103) -> XXXX | L103: =IF('[3]Tasa de Falla'!IV103=0,"",'[3]Tasa de Falla'!IV103) -> XXXX | M103: =IF('[3]Tasa de Falla'!IW103=0,"",'[3]Tasa de Falla'!IW103) -> XXXX | N103: =IF('[3]Tasa de Falla'!IX103=0,"",'[3]Tasa de Falla'!IX103) -> XXXX | O103: =IF('[3]Tasa de Falla'!IY103=0,"",'[3]Tasa de Falla'!IY103) -> XXXX | P103: =IF('[3]Tasa de Falla'!IZ103=0,"",'[3]Tasa de Falla'!IZ103) -> XXXX | Q103: =IF('[3]Tasa de Falla'!JA103=0,"",'[3]Tasa de Falla'!JA103) -> XXXX | R103: =IF('[3]Tasa de Falla'!JB103=0,"",'[3]Tasa de Falla'!JB103) -> XXXX
C104: ='[3]Tasa de Falla'!C104 -> 87 | D104: ='[3]Tasa de Falla'!D104 -> SANTIAGO OESTE - SANTIAGO SUR | E104: ='[3]Tasa de Falla'!E104 -> 132 | F104: ='[3]Tasa de Falla'!F104 -> 10.6 | G104: =IF('[3]Tasa de Falla'!IQ104=0,"",'[3]Tasa de Falla'!IQ104) ->  | H104: =IF('[3]Tasa de Falla'!IR104=0,"",'[3]Tasa de Falla'!IR104) ->  | I104: =IF('[3]Tasa de Falla'!IS104=0,"",'[3]Tasa de Falla'!IS104) -> 1 | J104: =IF('[3]Tasa de Falla'!IT104=0,"",'[3]Tasa de Falla'!IT104) ->  | K104: =IF('[3]Tasa de Falla'!IU104=0,"",'[3]Tasa de Falla'!IU104) ->  | L104: =IF('[3]Tasa de Falla'!IV104=0,"",'[3]Tasa de Falla'!IV104) ->  | M104: =IF('[3]Tasa de Falla'!IW104=0,"",'[3]Tasa de Falla'!IW104) ->  | N104: =IF('[3]Tasa de Falla'!IX104=0,"",'[3]Tasa de Falla'!IX104) ->  | O104: =IF('[3]Tasa de Falla'!IY104=0,"",'[3]Tasa de Falla'!IY104) ->  | P104: =IF('[3]Tasa de Falla'!IZ104=0,"",'[3]Tasa de Falla'!IZ104) ->  | Q104: =IF('[3]Tasa de Falla'!JA104=0,"",'[3]Tasa de Falla'!JA104) ->  | R104: =IF('[3]Tasa de Falla'!JB104=0,"",'[3]Tasa de Falla'!JB104) -> 
C105: ='[3]Tasa de Falla'!C105 -> 88 | D105: ='[3]Tasa de Falla'!D105 -> SANTIAGO SUR - SANTIAGO CENTRO | E105: ='[3]Tasa de Falla'!E105 -> 132 | F105: ='[3]Tasa de Falla'!F105 -> 4 | G105: =IF('[3]Tasa de Falla'!IQ105=0,"",'[3]Tasa de Falla'!IQ105) ->  | H105: =IF('[3]Tasa de Falla'!IR105=0,"",'[3]Tasa de Falla'!IR105) ->  | I105: =IF('[3]Tasa de Falla'!IS105=0,"",'[3]Tasa de Falla'!IS105) ->  | J105: =IF('[3]Tasa de Falla'!IT105=0,"",'[3]Tasa de Falla'!IT105) ->  | K105: =IF('[3]Tasa de Falla'!IU105=0,"",'[3]Tasa de Falla'!IU105) ->  | L105: =IF('[3]Tasa de Falla'!IV105=0,"",'[3]Tasa de Falla'!IV105) ->  | M105: =IF('[3]Tasa de Falla'!IW105=0,"",'[3]Tasa de Falla'!IW105) ->  | N105: =IF('[3]Tasa de Falla'!IX105=0,"",'[3]Tasa de Falla'!IX105) ->  | O105: =IF('[3]Tasa de Falla'!IY105=0,"",'[3]Tasa de Falla'!IY105) ->  | P105: =IF('[3]Tasa de Falla'!IZ105=0,"",'[3]Tasa de Falla'!IZ105) ->  | Q105: =IF('[3]Tasa de Falla'!JA105=0,"",'[3]Tasa de Falla'!JA105) ->  | R105: =IF('[3]Tasa de Falla'!JB105=0,"",'[3]Tasa de Falla'!JB105) -> 
C106: ='[3]Tasa de Falla'!C106 -> 89 | D106: ='[3]Tasa de Falla'!D106 -> C.H. RIO HONDO - SANTIAGO OESTE | E106: ='[3]Tasa de Falla'!E106 -> 132 | F106: ='[3]Tasa de Falla'!F106 -> 69.8 | G106: =IF('[3]Tasa de Falla'!IQ106=0,"",'[3]Tasa de Falla'!IQ106) ->  | H106: =IF('[3]Tasa de Falla'!IR106=0,"",'[3]Tasa de Falla'!IR106) ->  | I106: =IF('[3]Tasa de Falla'!IS106=0,"",'[3]Tasa de Falla'!IS106) -> 1 | J106: =IF('[3]Tasa de Falla'!IT106=0,"",'[3]Tasa de Falla'!IT106) ->  | K106: =IF('[3]Tasa de Falla'!IU106=0,"",'[3]Tasa de Falla'!IU106) ->  | L106: =IF('[3]Tasa de Falla'!IV106=0,"",'[3]Tasa de Falla'!IV106) ->  | M106: =IF('[3]Tasa de Falla'!IW106=0,"",'[3]Tasa de Falla'!IW106) ->  | N106: =IF('[3]Tasa de Falla'!IX106=0,"",'[3]Tasa de Falla'!IX106) ->  | O106: =IF('[3]Tasa de Falla'!IY106=0,"",'[3]Tasa de Falla'!IY106) ->  | P106: =IF('[3]Tasa de Falla'!IZ106=0,"",'[3]Tasa de Falla'!IZ106) ->  | Q106: =IF('[3]Tasa de Falla'!JA106=0,"",'[3]Tasa de Falla'!JA106) ->  | R106: =IF('[3]Tasa de Falla'!JB106=0,"",'[3]Tasa de Falla'!JB106) -> 
C107: ='[3]Tasa de Falla'!C107 -> 90 | D107: ='[3]Tasa de Falla'!D107 -> GÜEMES - MINETTI | E107: ='[3]Tasa de Falla'!E107 -> 132 | F107: ='[3]Tasa de Falla'!F107 -> 36.1 | G107: =IF('[3]Tasa de Falla'!IQ107=0,"",'[3]Tasa de Falla'!IQ107) -> XXXX | H107: =IF('[3]Tasa de Falla'!IR107=0,"",'[3]Tasa de Falla'!IR107) -> XXXX | I107: =IF('[3]Tasa de Falla'!IS107=0,"",'[3]Tasa de Falla'!IS107) -> XXXX | J107: =IF('[3]Tasa de Falla'!IT107=0,"",'[3]Tasa de Falla'!IT107) -> XXXX | K107: =IF('[3]Tasa de Falla'!IU107=0,"",'[3]Tasa de Falla'!IU107) -> XXXX | L107: =IF('[3]Tasa de Falla'!IV107=0,"",'[3]Tasa de Falla'!IV107) -> XXXX | M107: =IF('[3]Tasa de Falla'!IW107=0,"",'[3]Tasa de Falla'!IW107) -> XXXX | N107: =IF('[3]Tasa de Falla'!IX107=0,"",'[3]Tasa de Falla'!IX107) -> XXXX | O107: =IF('[3]Tasa de Falla'!IY107=0,"",'[3]Tasa de Falla'!IY107) -> XXXX | P107: =IF('[3]Tasa de Falla'!IZ107=0,"",'[3]Tasa de Falla'!IZ107) -> XXXX | Q107: =IF('[3]Tasa de Falla'!JA107=0,"",'[3]Tasa de Falla'!JA107) -> XXXX | R107: =IF('[3]Tasa de Falla'!JB107=0,"",'[3]Tasa de Falla'!JB107) -> XXXX
C108: ='[3]Tasa de Falla'!C108 -> 91 | D108: ='[3]Tasa de Falla'!D108 -> GÜEMES - SALTA NORTE | E108: ='[3]Tasa de Falla'!E108 -> 132 | F108: ='[3]Tasa de Falla'!F108 -> 38.97 | G108: =IF('[3]Tasa de Falla'!IQ108=0,"",'[3]Tasa de Falla'!IQ108) -> 1 | H108: =IF('[3]Tasa de Falla'!IR108=0,"",'[3]Tasa de Falla'!IR108) ->  | I108: =IF('[3]Tasa de Falla'!IS108=0,"",'[3]Tasa de Falla'!IS108) ->  | J108: =IF('[3]Tasa de Falla'!IT108=0,"",'[3]Tasa de Falla'!IT108) ->  | K108: =IF('[3]Tasa de Falla'!IU108=0,"",'[3]Tasa de Falla'!IU108) ->  | L108: =IF('[3]Tasa de Falla'!IV108=0,"",'[3]Tasa de Falla'!IV108) ->  | M108: =IF('[3]Tasa de Falla'!IW108=0,"",'[3]Tasa de Falla'!IW108) ->  | N108: =IF('[3]Tasa de Falla'!IX108=0,"",'[3]Tasa de Falla'!IX108) ->  | O108: =IF('[3]Tasa de Falla'!IY108=0,"",'[3]Tasa de Falla'!IY108) ->  | P108: =IF('[3]Tasa de Falla'!IZ108=0,"",'[3]Tasa de Falla'!IZ108) ->  | Q108: =IF('[3]Tasa de Falla'!JA108=0,"",'[3]Tasa de Falla'!JA108) ->  | R108: =IF('[3]Tasa de Falla'!JB108=0,"",'[3]Tasa de Falla'!JB108) -> 
C109: ='[3]Tasa de Falla'!C109 -> 92 | D109: ='[3]Tasa de Falla'!D109 -> BURRUYACU - R. DE LA FRONTERA | E109: ='[3]Tasa de Falla'!E109 -> 132 | F109: ='[3]Tasa de Falla'!F109 -> 99.1 | G109: =IF('[3]Tasa de Falla'!IQ109=0,"",'[3]Tasa de Falla'!IQ109) ->  | H109: =IF('[3]Tasa de Falla'!IR109=0,"",'[3]Tasa de Falla'!IR109) ->  | I109: =IF('[3]Tasa de Falla'!IS109=0,"",'[3]Tasa de Falla'!IS109) ->  | J109: =IF('[3]Tasa de Falla'!IT109=0,"",'[3]Tasa de Falla'!IT109) ->  | K109: =IF('[3]Tasa de Falla'!IU109=0,"",'[3]Tasa de Falla'!IU109) ->  | L109: =IF('[3]Tasa de Falla'!IV109=0,"",'[3]Tasa de Falla'!IV109) ->  | M109: =IF('[3]Tasa de Falla'!IW109=0,"",'[3]Tasa de Falla'!IW109) ->  | N109: =IF('[3]Tasa de Falla'!IX109=0,"",'[3]Tasa de Falla'!IX109) ->  | O109: =IF('[3]Tasa de Falla'!IY109=0,"",'[3]Tasa de Falla'!IY109) ->  | P109: =IF('[3]Tasa de Falla'!IZ109=0,"",'[3]Tasa de Falla'!IZ109) ->  | Q109: =IF('[3]Tasa de Falla'!JA109=0,"",'[3]Tasa de Falla'!JA109) -> 1 | R109: =IF('[3]Tasa de Falla'!JB109=0,"",'[3]Tasa de Falla'!JB109) -> 
C110: ='[3]Tasa de Falla'!C110 -> 93 | D110: ='[3]Tasa de Falla'!D110 -> R. DE LA FRONTERA - COBOS | E110: ='[3]Tasa de Falla'!E110 -> 132 | F110: ='[3]Tasa de Falla'!F110 -> 130.4 | G110: =IF('[3]Tasa de Falla'!IQ110=0,"",'[3]Tasa de Falla'!IQ110) ->  | H110: =IF('[3]Tasa de Falla'!IR110=0,"",'[3]Tasa de Falla'!IR110) ->  | I110: =IF('[3]Tasa de Falla'!IS110=0,"",'[3]Tasa de Falla'!IS110) ->  | J110: =IF('[3]Tasa de Falla'!IT110=0,"",'[3]Tasa de Falla'!IT110) -> 1 | K110: =IF('[3]Tasa de Falla'!IU110=0,"",'[3]Tasa de Falla'!IU110) ->  | L110: =IF('[3]Tasa de Falla'!IV110=0,"",'[3]Tasa de Falla'!IV110) ->  | M110: =IF('[3]Tasa de Falla'!IW110=0,"",'[3]Tasa de Falla'!IW110) ->  | N110: =IF('[3]Tasa de Falla'!IX110=0,"",'[3]Tasa de Falla'!IX110) ->  | O110: =IF('[3]Tasa de Falla'!IY110=0,"",'[3]Tasa de Falla'!IY110) ->  | P110: =IF('[3]Tasa de Falla'!IZ110=0,"",'[3]Tasa de Falla'!IZ110) ->  | Q110: =IF('[3]Tasa de Falla'!JA110=0,"",'[3]Tasa de Falla'!JA110) -> 1 | R110: =IF('[3]Tasa de Falla'!JB110=0,"",'[3]Tasa de Falla'!JB110) -> 
C111: ='[3]Tasa de Falla'!C111 -> 94 | D111: ='[3]Tasa de Falla'!D111 -> J.V. GONZALEZ - APOLINARIO SARAVIA | E111: ='[3]Tasa de Falla'!E111 -> 132 | F111: ='[3]Tasa de Falla'!F111 -> 94 | G111: =IF('[3]Tasa de Falla'!IQ111=0,"",'[3]Tasa de Falla'!IQ111) ->  | H111: =IF('[3]Tasa de Falla'!IR111=0,"",'[3]Tasa de Falla'!IR111) ->  | I111: =IF('[3]Tasa de Falla'!IS111=0,"",'[3]Tasa de Falla'!IS111) ->  | J111: =IF('[3]Tasa de Falla'!IT111=0,"",'[3]Tasa de Falla'!IT111) ->  | K111: =IF('[3]Tasa de Falla'!IU111=0,"",'[3]Tasa de Falla'!IU111) ->  | L111: =IF('[3]Tasa de Falla'!IV111=0,"",'[3]Tasa de Falla'!IV111) ->  | M111: =IF('[3]Tasa de Falla'!IW111=0,"",'[3]Tasa de Falla'!IW111) ->  | N111: =IF('[3]Tasa de Falla'!IX111=0,"",'[3]Tasa de Falla'!IX111) ->  | O111: =IF('[3]Tasa de Falla'!IY111=0,"",'[3]Tasa de Falla'!IY111) ->  | P111: =IF('[3]Tasa de Falla'!IZ111=0,"",'[3]Tasa de Falla'!IZ111) ->  | Q111: =IF('[3]Tasa de Falla'!JA111=0,"",'[3]Tasa de Falla'!JA111) ->  | R111: =IF('[3]Tasa de Falla'!JB111=0,"",'[3]Tasa de Falla'!JB111) -> 
C112: ='[3]Tasa de Falla'!C112 -> 95 | D112: ='[3]Tasa de Falla'!D112 -> ANDALGALA - SAULIL | E112: ='[3]Tasa de Falla'!E112 -> 132 | F112: ='[3]Tasa de Falla'!F112 -> 76 | G112: =IF('[3]Tasa de Falla'!IQ112=0,"",'[3]Tasa de Falla'!IQ112) -> 1 | H112: =IF('[3]Tasa de Falla'!IR112=0,"",'[3]Tasa de Falla'!IR112) ->  | I112: =IF('[3]Tasa de Falla'!IS112=0,"",'[3]Tasa de Falla'!IS112) ->  | J112: =IF('[3]Tasa de Falla'!IT112=0,"",'[3]Tasa de Falla'!IT112) ->  | K112: =IF('[3]Tasa de Falla'!IU112=0,"",'[3]Tasa de Falla'!IU112) ->  | L112: =IF('[3]Tasa de Falla'!IV112=0,"",'[3]Tasa de Falla'!IV112) ->  | M112: =IF('[3]Tasa de Falla'!IW112=0,"",'[3]Tasa de Falla'!IW112) ->  | N112: =IF('[3]Tasa de Falla'!IX112=0,"",'[3]Tasa de Falla'!IX112) ->  | O112: =IF('[3]Tasa de Falla'!IY112=0,"",'[3]Tasa de Falla'!IY112) ->  | P112: =IF('[3]Tasa de Falla'!IZ112=0,"",'[3]Tasa de Falla'!IZ112) ->  | Q112: =IF('[3]Tasa de Falla'!JA112=0,"",'[3]Tasa de Falla'!JA112) ->  | R112: =IF('[3]Tasa de Falla'!JB112=0,"",'[3]Tasa de Falla'!JB112) -> 
C113: ='[3]Tasa de Falla'!C113 -> 96 | D113: ='[3]Tasa de Falla'!D113 -> SANTIAGO OESTE - SANT. SUR - SANT. CENTRO | E113: ='[3]Tasa de Falla'!E113 -> 132 | F113: ='[3]Tasa de Falla'!F113 -> 14.6 | G113: =IF('[3]Tasa de Falla'!IQ113=0,"",'[3]Tasa de Falla'!IQ113) -> XXXX | H113: =IF('[3]Tasa de Falla'!IR113=0,"",'[3]Tasa de Falla'!IR113) -> XXXX | I113: =IF('[3]Tasa de Falla'!IS113=0,"",'[3]Tasa de Falla'!IS113) -> XXXX | J113: =IF('[3]Tasa de Falla'!IT113=0,"",'[3]Tasa de Falla'!IT113) -> XXXX | K113: =IF('[3]Tasa de Falla'!IU113=0,"",'[3]Tasa de Falla'!IU113) -> XXXX | L113: =IF('[3]Tasa de Falla'!IV113=0,"",'[3]Tasa de Falla'!IV113) -> XXXX | M113: =IF('[3]Tasa de Falla'!IW113=0,"",'[3]Tasa de Falla'!IW113) -> XXXX | N113: =IF('[3]Tasa de Falla'!IX113=0,"",'[3]Tasa de Falla'!IX113) -> XXXX | O113: =IF('[3]Tasa de Falla'!IY113=0,"",'[3]Tasa de Falla'!IY113) -> XXXX | P113: =IF('[3]Tasa de Falla'!IZ113=0,"",'[3]Tasa de Falla'!IZ113) -> XXXX | Q113: =IF('[3]Tasa de Falla'!JA113=0,"",'[3]Tasa de Falla'!JA113) -> XXXX | R113: =IF('[3]Tasa de Falla'!JB113=0,"",'[3]Tasa de Falla'!JB113) -> XXXX
C114: ='[3]Tasa de Falla'!C114 -> 97 | D114: ='[3]Tasa de Falla'!D114 -> SUNCHO CORRAL - QUIMILI | E114: ='[3]Tasa de Falla'!E114 -> 132 | F114: ='[3]Tasa de Falla'!F114 -> 108 | G114: =IF('[3]Tasa de Falla'!IQ114=0,"",'[3]Tasa de Falla'!IQ114) ->  | H114: =IF('[3]Tasa de Falla'!IR114=0,"",'[3]Tasa de Falla'!IR114) ->  | I114: =IF('[3]Tasa de Falla'!IS114=0,"",'[3]Tasa de Falla'!IS114) ->  | J114: =IF('[3]Tasa de Falla'!IT114=0,"",'[3]Tasa de Falla'!IT114) ->  | K114: =IF('[3]Tasa de Falla'!IU114=0,"",'[3]Tasa de Falla'!IU114) ->  | L114: =IF('[3]Tasa de Falla'!IV114=0,"",'[3]Tasa de Falla'!IV114) ->  | M114: =IF('[3]Tasa de Falla'!IW114=0,"",'[3]Tasa de Falla'!IW114) ->  | N114: =IF('[3]Tasa de Falla'!IX114=0,"",'[3]Tasa de Falla'!IX114) ->  | O114: =IF('[3]Tasa de Falla'!IY114=0,"",'[3]Tasa de Falla'!IY114) ->  | P114: =IF('[3]Tasa de Falla'!IZ114=0,"",'[3]Tasa de Falla'!IZ114) ->  | Q114: =IF('[3]Tasa de Falla'!JA114=0,"",'[3]Tasa de Falla'!JA114) ->  | R114: =IF('[3]Tasa de Falla'!JB114=0,"",'[3]Tasa de Falla'!JB114) -> 
C115: ='[3]Tasa de Falla'!C115 -> 98 | D115: ='[3]Tasa de Falla'!D115 -> EL BRACHO - LA BANDA ESTE | E115: ='[3]Tasa de Falla'!E115 -> 132 | F115: ='[3]Tasa de Falla'!F115 -> 140.9 | G115: =IF('[3]Tasa de Falla'!IQ115=0,"",'[3]Tasa de Falla'!IQ115) ->  | H115: =IF('[3]Tasa de Falla'!IR115=0,"",'[3]Tasa de Falla'!IR115) ->  | I115: =IF('[3]Tasa de Falla'!IS115=0,"",'[3]Tasa de Falla'!IS115) ->  | J115: =IF('[3]Tasa de Falla'!IT115=0,"",'[3]Tasa de Falla'!IT115) -> 1 | K115: =IF('[3]Tasa de Falla'!IU115=0,"",'[3]Tasa de Falla'!IU115) ->  | L115: =IF('[3]Tasa de Falla'!IV115=0,"",'[3]Tasa de Falla'!IV115) -> 1 | M115: =IF('[3]Tasa de Falla'!IW115=0,"",'[3]Tasa de Falla'!IW115) ->  | N115: =IF('[3]Tasa de Falla'!IX115=0,"",'[3]Tasa de Falla'!IX115) ->  | O115: =IF('[3]Tasa de Falla'!IY115=0,"",'[3]Tasa de Falla'!IY115) ->  | P115: =IF('[3]Tasa de Falla'!IZ115=0,"",'[3]Tasa de Falla'!IZ115) ->  | Q115: =IF('[3]Tasa de Falla'!JA115=0,"",'[3]Tasa de Falla'!JA115) ->  | R115: =IF('[3]Tasa de Falla'!JB115=0,"",'[3]Tasa de Falla'!JB115) -> 
C116: ='[3]Tasa de Falla'!C116 -> 99 | D116: ='[3]Tasa de Falla'!D116 -> LA BANDA ESTE - LA BANDA | E116: ='[3]Tasa de Falla'!E116 -> 132 | F116: ='[3]Tasa de Falla'!F116 -> 16.2 | G116: =IF('[3]Tasa de Falla'!IQ116=0,"",'[3]Tasa de Falla'!IQ116) ->  | H116: =IF('[3]Tasa de Falla'!IR116=0,"",'[3]Tasa de Falla'!IR116) ->  | I116: =IF('[3]Tasa de Falla'!IS116=0,"",'[3]Tasa de Falla'!IS116) ->  | J116: =IF('[3]Tasa de Falla'!IT116=0,"",'[3]Tasa de Falla'!IT116) ->  | K116: =IF('[3]Tasa de Falla'!IU116=0,"",'[3]Tasa de Falla'!IU116) ->  | L116: =IF('[3]Tasa de Falla'!IV116=0,"",'[3]Tasa de Falla'!IV116) ->  | M116: =IF('[3]Tasa de Falla'!IW116=0,"",'[3]Tasa de Falla'!IW116) ->  | N116: =IF('[3]Tasa de Falla'!IX116=0,"",'[3]Tasa de Falla'!IX116) ->  | O116: =IF('[3]Tasa de Falla'!IY116=0,"",'[3]Tasa de Falla'!IY116) ->  | P116: =IF('[3]Tasa de Falla'!IZ116=0,"",'[3]Tasa de Falla'!IZ116) ->  | Q116: =IF('[3]Tasa de Falla'!JA116=0,"",'[3]Tasa de Falla'!JA116) ->  | R116: =IF('[3]Tasa de Falla'!JB116=0,"",'[3]Tasa de Falla'!JB116) -> 
C117: ='[3]Tasa de Falla'!C117 -> 100 | D117: ='[3]Tasa de Falla'!D117 -> TABACAL - PICHANAL | E117: ='[3]Tasa de Falla'!E117 -> 132 | F117: ='[3]Tasa de Falla'!F117 -> 9.04 | G117: =IF('[3]Tasa de Falla'!IQ117=0,"",'[3]Tasa de Falla'!IQ117) ->  | H117: =IF('[3]Tasa de Falla'!IR117=0,"",'[3]Tasa de Falla'!IR117) ->  | I117: =IF('[3]Tasa de Falla'!IS117=0,"",'[3]Tasa de Falla'!IS117) ->  | J117: =IF('[3]Tasa de Falla'!IT117=0,"",'[3]Tasa de Falla'!IT117) ->  | K117: =IF('[3]Tasa de Falla'!IU117=0,"",'[3]Tasa de Falla'!IU117) ->  | L117: =IF('[3]Tasa de Falla'!IV117=0,"",'[3]Tasa de Falla'!IV117) ->  | M117: =IF('[3]Tasa de Falla'!IW117=0,"",'[3]Tasa de Falla'!IW117) ->  | N117: =IF('[3]Tasa de Falla'!IX117=0,"",'[3]Tasa de Falla'!IX117) ->  | O117: =IF('[3]Tasa de Falla'!IY117=0,"",'[3]Tasa de Falla'!IY117) ->  | P117: =IF('[3]Tasa de Falla'!IZ117=0,"",'[3]Tasa de Falla'!IZ117) ->  | Q117: =IF('[3]Tasa de Falla'!JA117=0,"",'[3]Tasa de Falla'!JA117) ->  | R117: =IF('[3]Tasa de Falla'!JB117=0,"",'[3]Tasa de Falla'!JB117) -> 
C118: ='[3]Tasa de Falla'!C118 -> 101 | D118: ='[3]Tasa de Falla'!D118 -> ORAN - TABACAL | E118: ='[3]Tasa de Falla'!E118 -> 132 | F118: ='[3]Tasa de Falla'!F118 -> 10 | G118: =IF('[3]Tasa de Falla'!IQ118=0,"",'[3]Tasa de Falla'!IQ118) ->  | H118: =IF('[3]Tasa de Falla'!IR118=0,"",'[3]Tasa de Falla'!IR118) ->  | I118: =IF('[3]Tasa de Falla'!IS118=0,"",'[3]Tasa de Falla'!IS118) ->  | J118: =IF('[3]Tasa de Falla'!IT118=0,"",'[3]Tasa de Falla'!IT118) ->  | K118: =IF('[3]Tasa de Falla'!IU118=0,"",'[3]Tasa de Falla'!IU118) ->  | L118: =IF('[3]Tasa de Falla'!IV118=0,"",'[3]Tasa de Falla'!IV118) ->  | M118: =IF('[3]Tasa de Falla'!IW118=0,"",'[3]Tasa de Falla'!IW118) ->  | N118: =IF('[3]Tasa de Falla'!IX118=0,"",'[3]Tasa de Falla'!IX118) ->  | O118: =IF('[3]Tasa de Falla'!IY118=0,"",'[3]Tasa de Falla'!IY118) -> 1 | P118: =IF('[3]Tasa de Falla'!IZ118=0,"",'[3]Tasa de Falla'!IZ118) ->  | Q118: =IF('[3]Tasa de Falla'!JA118=0,"",'[3]Tasa de Falla'!JA118) ->  | R118: =IF('[3]Tasa de Falla'!JB118=0,"",'[3]Tasa de Falla'!JB118) -> 
C119: ='[3]Tasa de Falla'!C119 -> 102 | D119: ='[3]Tasa de Falla'!D119 -> MONTE QUEMADO -COPO - QUIMILI | E119: ='[3]Tasa de Falla'!E119 -> 132 | F119: ='[3]Tasa de Falla'!F119 -> 218 | G119: =IF('[3]Tasa de Falla'!IQ119=0,"",'[3]Tasa de Falla'!IQ119) ->  | H119: =IF('[3]Tasa de Falla'!IR119=0,"",'[3]Tasa de Falla'!IR119) ->  | I119: =IF('[3]Tasa de Falla'!IS119=0,"",'[3]Tasa de Falla'!IS119) ->  | J119: =IF('[3]Tasa de Falla'!IT119=0,"",'[3]Tasa de Falla'!IT119) -> 1 | K119: =IF('[3]Tasa de Falla'!IU119=0,"",'[3]Tasa de Falla'!IU119) ->  | L119: =IF('[3]Tasa de Falla'!IV119=0,"",'[3]Tasa de Falla'!IV119) ->  | M119: =IF('[3]Tasa de Falla'!IW119=0,"",'[3]Tasa de Falla'!IW119) ->  | N119: =IF('[3]Tasa de Falla'!IX119=0,"",'[3]Tasa de Falla'!IX119) ->  | O119: =IF('[3]Tasa de Falla'!IY119=0,"",'[3]Tasa de Falla'!IY119) ->  | P119: =IF('[3]Tasa de Falla'!IZ119=0,"",'[3]Tasa de Falla'!IZ119) ->  | Q119: =IF('[3]Tasa de Falla'!JA119=0,"",'[3]Tasa de Falla'!JA119) ->  | R119: =IF('[3]Tasa de Falla'!JB119=0,"",'[3]Tasa de Falla'!JB119) -> 
C120: ='[3]Tasa de Falla'!C120 -> 103 | D120: ='[3]Tasa de Falla'!D120 -> PI. CIRCUNVALACIÓN - LARIOJA N. 1 | E120: ='[3]Tasa de Falla'!E120 -> 132 | F120: ='[3]Tasa de Falla'!F120 -> 16.65 | G120: =IF('[3]Tasa de Falla'!IQ120=0,"",'[3]Tasa de Falla'!IQ120) ->  | H120: =IF('[3]Tasa de Falla'!IR120=0,"",'[3]Tasa de Falla'!IR120) ->  | I120: =IF('[3]Tasa de Falla'!IS120=0,"",'[3]Tasa de Falla'!IS120) -> 1 | J120: =IF('[3]Tasa de Falla'!IT120=0,"",'[3]Tasa de Falla'!IT120) ->  | K120: =IF('[3]Tasa de Falla'!IU120=0,"",'[3]Tasa de Falla'!IU120) ->  | L120: =IF('[3]Tasa de Falla'!IV120=0,"",'[3]Tasa de Falla'!IV120) ->  | M120: =IF('[3]Tasa de Falla'!IW120=0,"",'[3]Tasa de Falla'!IW120) ->  | N120: =IF('[3]Tasa de Falla'!IX120=0,"",'[3]Tasa de Falla'!IX120) ->  | O120: =IF('[3]Tasa de Falla'!IY120=0,"",'[3]Tasa de Falla'!IY120) ->  | P120: =IF('[3]Tasa de Falla'!IZ120=0,"",'[3]Tasa de Falla'!IZ120) ->  | Q120: =IF('[3]Tasa de Falla'!JA120=0,"",'[3]Tasa de Falla'!JA120) ->  | R120: =IF('[3]Tasa de Falla'!JB120=0,"",'[3]Tasa de Falla'!JB120) -> 
C121: ='[3]Tasa de Falla'!C121 -> 104 | D121: ='[3]Tasa de Falla'!D121 -> PATQUIA NONOGASTA 132 1 | E121: ='[3]Tasa de Falla'!E121 -> 132 | F121: ='[3]Tasa de Falla'!F121 -> 108.3 | G121: =IF('[3]Tasa de Falla'!IQ121=0,"",'[3]Tasa de Falla'!IQ121) ->  | H121: =IF('[3]Tasa de Falla'!IR121=0,"",'[3]Tasa de Falla'!IR121) ->  | I121: =IF('[3]Tasa de Falla'!IS121=0,"",'[3]Tasa de Falla'!IS121) ->  | J121: =IF('[3]Tasa de Falla'!IT121=0,"",'[3]Tasa de Falla'!IT121) ->  | K121: =IF('[3]Tasa de Falla'!IU121=0,"",'[3]Tasa de Falla'!IU121) ->  | L121: =IF('[3]Tasa de Falla'!IV121=0,"",'[3]Tasa de Falla'!IV121) ->  | M121: =IF('[3]Tasa de Falla'!IW121=0,"",'[3]Tasa de Falla'!IW121) ->  | N121: =IF('[3]Tasa de Falla'!IX121=0,"",'[3]Tasa de Falla'!IX121) ->  | O121: =IF('[3]Tasa de Falla'!IY121=0,"",'[3]Tasa de Falla'!IY121) ->  | P121: =IF('[3]Tasa de Falla'!IZ121=0,"",'[3]Tasa de Falla'!IZ121) ->  | Q121: =IF('[3]Tasa de Falla'!JA121=0,"",'[3]Tasa de Falla'!JA121) ->  | R121: =IF('[3]Tasa de Falla'!JB121=0,"",'[3]Tasa de Falla'!JB121) -> 
C122: ='[3]Tasa de Falla'!C122 -> 105 | D122: ='[3]Tasa de Falla'!D122 -> NONOGASTA - VILLA UNION 132 1 | E122: ='[3]Tasa de Falla'!E122 -> 132 | F122: ='[3]Tasa de Falla'!F122 -> 82.1 | G122: =IF('[3]Tasa de Falla'!IQ122=0,"",'[3]Tasa de Falla'!IQ122) ->  | H122: =IF('[3]Tasa de Falla'!IR122=0,"",'[3]Tasa de Falla'!IR122) ->  | I122: =IF('[3]Tasa de Falla'!IS122=0,"",'[3]Tasa de Falla'!IS122) ->  | J122: =IF('[3]Tasa de Falla'!IT122=0,"",'[3]Tasa de Falla'!IT122) ->  | K122: =IF('[3]Tasa de Falla'!IU122=0,"",'[3]Tasa de Falla'!IU122) ->  | L122: =IF('[3]Tasa de Falla'!IV122=0,"",'[3]Tasa de Falla'!IV122) ->  | M122: =IF('[3]Tasa de Falla'!IW122=0,"",'[3]Tasa de Falla'!IW122) ->  | N122: =IF('[3]Tasa de Falla'!IX122=0,"",'[3]Tasa de Falla'!IX122) ->  | O122: =IF('[3]Tasa de Falla'!IY122=0,"",'[3]Tasa de Falla'!IY122) ->  | P122: =IF('[3]Tasa de Falla'!IZ122=0,"",'[3]Tasa de Falla'!IZ122) ->  | Q122: =IF('[3]Tasa de Falla'!JA122=0,"",'[3]Tasa de Falla'!JA122) ->  | R122: =IF('[3]Tasa de Falla'!JB122=0,"",'[3]Tasa de Falla'!JB122) -> 
C123: ='[3]Tasa de Falla'!C123 -> 106 | D123: ='[3]Tasa de Falla'!D123 -> ARAUCO - AIMOGASTA 132 1 | E123: ='[3]Tasa de Falla'!E123 -> 132 | F123: ='[3]Tasa de Falla'!F123 -> 20 | G123: =IF('[3]Tasa de Falla'!IQ123=0,"",'[3]Tasa de Falla'!IQ123) ->  | H123: =IF('[3]Tasa de Falla'!IR123=0,"",'[3]Tasa de Falla'!IR123) ->  | I123: =IF('[3]Tasa de Falla'!IS123=0,"",'[3]Tasa de Falla'!IS123) ->  | J123: =IF('[3]Tasa de Falla'!IT123=0,"",'[3]Tasa de Falla'!IT123) ->  | K123: =IF('[3]Tasa de Falla'!IU123=0,"",'[3]Tasa de Falla'!IU123) ->  | L123: =IF('[3]Tasa de Falla'!IV123=0,"",'[3]Tasa de Falla'!IV123) ->  | M123: =IF('[3]Tasa de Falla'!IW123=0,"",'[3]Tasa de Falla'!IW123) ->  | N123: =IF('[3]Tasa de Falla'!IX123=0,"",'[3]Tasa de Falla'!IX123) ->  | O123: =IF('[3]Tasa de Falla'!IY123=0,"",'[3]Tasa de Falla'!IY123) ->  | P123: =IF('[3]Tasa de Falla'!IZ123=0,"",'[3]Tasa de Falla'!IZ123) ->  | Q123: =IF('[3]Tasa de Falla'!JA123=0,"",'[3]Tasa de Falla'!JA123) ->  | R123: =IF('[3]Tasa de Falla'!JB123=0,"",'[3]Tasa de Falla'!JB123) -> 
C124: ='[3]Tasa de Falla'!C124 -> 107 | D124: ='[3]Tasa de Falla'!D124 -> PATQUIA - CHAMICAL 132 1 | E124: ='[3]Tasa de Falla'!E124 -> 132 | F124: ='[3]Tasa de Falla'!F124 -> 67.4 | G124: =IF('[3]Tasa de Falla'!IQ124=0,"",'[3]Tasa de Falla'!IQ124) ->  | H124: =IF('[3]Tasa de Falla'!IR124=0,"",'[3]Tasa de Falla'!IR124) ->  | I124: =IF('[3]Tasa de Falla'!IS124=0,"",'[3]Tasa de Falla'!IS124) ->  | J124: =IF('[3]Tasa de Falla'!IT124=0,"",'[3]Tasa de Falla'!IT124) ->  | K124: =IF('[3]Tasa de Falla'!IU124=0,"",'[3]Tasa de Falla'!IU124) ->  | L124: =IF('[3]Tasa de Falla'!IV124=0,"",'[3]Tasa de Falla'!IV124) ->  | M124: =IF('[3]Tasa de Falla'!IW124=0,"",'[3]Tasa de Falla'!IW124) ->  | N124: =IF('[3]Tasa de Falla'!IX124=0,"",'[3]Tasa de Falla'!IX124) ->  | O124: =IF('[3]Tasa de Falla'!IY124=0,"",'[3]Tasa de Falla'!IY124) ->  | P124: =IF('[3]Tasa de Falla'!IZ124=0,"",'[3]Tasa de Falla'!IZ124) ->  | Q124: =IF('[3]Tasa de Falla'!JA124=0,"",'[3]Tasa de Falla'!JA124) ->  | R124: =IF('[3]Tasa de Falla'!JB124=0,"",'[3]Tasa de Falla'!JB124) -> 
C125: ='[3]Tasa de Falla'!C125 -> 108 | D125: ='[3]Tasa de Falla'!D125 -> LA RIOJA - ARAUCO 132 1 | E125: ='[3]Tasa de Falla'!E125 -> 132 | F125: ='[3]Tasa de Falla'!F125 -> 84.3 | G125: =IF('[3]Tasa de Falla'!IQ125=0,"",'[3]Tasa de Falla'!IQ125) ->  | H125: =IF('[3]Tasa de Falla'!IR125=0,"",'[3]Tasa de Falla'!IR125) ->  | I125: =IF('[3]Tasa de Falla'!IS125=0,"",'[3]Tasa de Falla'!IS125) ->  | J125: =IF('[3]Tasa de Falla'!IT125=0,"",'[3]Tasa de Falla'!IT125) ->  | K125: =IF('[3]Tasa de Falla'!IU125=0,"",'[3]Tasa de Falla'!IU125) ->  | L125: =IF('[3]Tasa de Falla'!IV125=0,"",'[3]Tasa de Falla'!IV125) ->  | M125: =IF('[3]Tasa de Falla'!IW125=0,"",'[3]Tasa de Falla'!IW125) -> 1 | N125: =IF('[3]Tasa de Falla'!IX125=0,"",'[3]Tasa de Falla'!IX125) ->  | O125: =IF('[3]Tasa de Falla'!IY125=0,"",'[3]Tasa de Falla'!IY125) ->  | P125: =IF('[3]Tasa de Falla'!IZ125=0,"",'[3]Tasa de Falla'!IZ125) ->  | Q125: =IF('[3]Tasa de Falla'!JA125=0,"",'[3]Tasa de Falla'!JA125) ->  | R125: =IF('[3]Tasa de Falla'!JB125=0,"",'[3]Tasa de Falla'!JB125) -> 
C126: ='[3]Tasa de Falla'!C126 -> 109 | D126: ='[3]Tasa de Falla'!D126 -> PI PATQUIA - PATQUIA 132 1 | E126: ='[3]Tasa de Falla'!E126 -> 132 | F126: ='[3]Tasa de Falla'!F126 -> 58.65 | G126: =IF('[3]Tasa de Falla'!IQ126=0,"",'[3]Tasa de Falla'!IQ126) ->  | H126: =IF('[3]Tasa de Falla'!IR126=0,"",'[3]Tasa de Falla'!IR126) ->  | I126: =IF('[3]Tasa de Falla'!IS126=0,"",'[3]Tasa de Falla'!IS126) ->  | J126: =IF('[3]Tasa de Falla'!IT126=0,"",'[3]Tasa de Falla'!IT126) ->  | K126: =IF('[3]Tasa de Falla'!IU126=0,"",'[3]Tasa de Falla'!IU126) ->  | L126: =IF('[3]Tasa de Falla'!IV126=0,"",'[3]Tasa de Falla'!IV126) ->  | M126: =IF('[3]Tasa de Falla'!IW126=0,"",'[3]Tasa de Falla'!IW126) ->  | N126: =IF('[3]Tasa de Falla'!IX126=0,"",'[3]Tasa de Falla'!IX126) ->  | O126: =IF('[3]Tasa de Falla'!IY126=0,"",'[3]Tasa de Falla'!IY126) ->  | P126: =IF('[3]Tasa de Falla'!IZ126=0,"",'[3]Tasa de Falla'!IZ126) ->  | Q126: =IF('[3]Tasa de Falla'!JA126=0,"",'[3]Tasa de Falla'!JA126) ->  | R126: =IF('[3]Tasa de Falla'!JB126=0,"",'[3]Tasa de Falla'!JB126) -> 
C127: ='[3]Tasa de Falla'!C127 -> 110 | D127: ='[3]Tasa de Falla'!D127 -> RIO HONDO - TERMAS NORTE | E127: ='[3]Tasa de Falla'!E127 -> 132 | F127: ='[3]Tasa de Falla'!F127 -> 5.8 | G127: =IF('[3]Tasa de Falla'!IQ127=0,"",'[3]Tasa de Falla'!IQ127) -> XXXX | H127: =IF('[3]Tasa de Falla'!IR127=0,"",'[3]Tasa de Falla'!IR127) -> XXXX | I127: =IF('[3]Tasa de Falla'!IS127=0,"",'[3]Tasa de Falla'!IS127) ->  | J127: =IF('[3]Tasa de Falla'!IT127=0,"",'[3]Tasa de Falla'!IT127) ->  | K127: =IF('[3]Tasa de Falla'!IU127=0,"",'[3]Tasa de Falla'!IU127) ->  | L127: =IF('[3]Tasa de Falla'!IV127=0,"",'[3]Tasa de Falla'!IV127) ->  | M127: =IF('[3]Tasa de Falla'!IW127=0,"",'[3]Tasa de Falla'!IW127) ->  | N127: =IF('[3]Tasa de Falla'!IX127=0,"",'[3]Tasa de Falla'!IX127) ->  | O127: =IF('[3]Tasa de Falla'!IY127=0,"",'[3]Tasa de Falla'!IY127) ->  | P127: =IF('[3]Tasa de Falla'!IZ127=0,"",'[3]Tasa de Falla'!IZ127) ->  | Q127: =IF('[3]Tasa de Falla'!JA127=0,"",'[3]Tasa de Falla'!JA127) ->  | R127: =IF('[3]Tasa de Falla'!JB127=0,"",'[3]Tasa de Falla'!JB127) -> 
C128: ='[3]Tasa de Falla'!C128 -> 111 | D128: ='[3]Tasa de Falla'!D128 -> EL BRACHO - TETRMAS NORTE | E128: ='[3]Tasa de Falla'!E128 -> 132 | F128: ='[3]Tasa de Falla'!F128 -> 78.4 | G128: =IF('[3]Tasa de Falla'!IQ128=0,"",'[3]Tasa de Falla'!IQ128) -> XXXX | H128: =IF('[3]Tasa de Falla'!IR128=0,"",'[3]Tasa de Falla'!IR128) -> XXXX | I128: =IF('[3]Tasa de Falla'!IS128=0,"",'[3]Tasa de Falla'!IS128) ->  | J128: =IF('[3]Tasa de Falla'!IT128=0,"",'[3]Tasa de Falla'!IT128) ->  | K128: =IF('[3]Tasa de Falla'!IU128=0,"",'[3]Tasa de Falla'!IU128) ->  | L128: =IF('[3]Tasa de Falla'!IV128=0,"",'[3]Tasa de Falla'!IV128) ->  | M128: =IF('[3]Tasa de Falla'!IW128=0,"",'[3]Tasa de Falla'!IW128) ->  | N128: =IF('[3]Tasa de Falla'!IX128=0,"",'[3]Tasa de Falla'!IX128) ->  | O128: =IF('[3]Tasa de Falla'!IY128=0,"",'[3]Tasa de Falla'!IY128) ->  | P128: =IF('[3]Tasa de Falla'!IZ128=0,"",'[3]Tasa de Falla'!IZ128) -> 1 | Q128: =IF('[3]Tasa de Falla'!JA128=0,"",'[3]Tasa de Falla'!JA128) -> 1 | R128: =IF('[3]Tasa de Falla'!JB128=0,"",'[3]Tasa de Falla'!JB128) -> 
C129: ='[3]Tasa de Falla'!C129 -> 112 | D129: ='[3]Tasa de Falla'!D129 -> PI 150 NORTE - LA RIOJA ESTE | E129: ='[3]Tasa de Falla'!E129 -> 132 | F129: ='[3]Tasa de Falla'!F129 -> 4 | G129: =IF('[3]Tasa de Falla'!IQ129=0,"",'[3]Tasa de Falla'!IQ129) -> XXXX | H129: =IF('[3]Tasa de Falla'!IR129=0,"",'[3]Tasa de Falla'!IR129) -> XXXX | I129: =IF('[3]Tasa de Falla'!IS129=0,"",'[3]Tasa de Falla'!IS129) ->  | J129: =IF('[3]Tasa de Falla'!IT129=0,"",'[3]Tasa de Falla'!IT129) ->  | K129: =IF('[3]Tasa de Falla'!IU129=0,"",'[3]Tasa de Falla'!IU129) ->  | L129: =IF('[3]Tasa de Falla'!IV129=0,"",'[3]Tasa de Falla'!IV129) ->  | M129: =IF('[3]Tasa de Falla'!IW129=0,"",'[3]Tasa de Falla'!IW129) ->  | N129: =IF('[3]Tasa de Falla'!IX129=0,"",'[3]Tasa de Falla'!IX129) ->  | O129: =IF('[3]Tasa de Falla'!IY129=0,"",'[3]Tasa de Falla'!IY129) ->  | P129: =IF('[3]Tasa de Falla'!IZ129=0,"",'[3]Tasa de Falla'!IZ129) ->  | Q129: =IF('[3]Tasa de Falla'!JA129=0,"",'[3]Tasa de Falla'!JA129) ->  | R129: =IF('[3]Tasa de Falla'!JB129=0,"",'[3]Tasa de Falla'!JB129) -> 
C130: ='[3]Tasa de Falla'!C130 -> 113 | D130: ='[3]Tasa de Falla'!D130 -> PI 150 SUR - LA RIOJA ESTE | E130: ='[3]Tasa de Falla'!E130 -> 132 | F130: ='[3]Tasa de Falla'!F130 -> 4 | G130: =IF('[3]Tasa de Falla'!IQ130=0,"",'[3]Tasa de Falla'!IQ130) -> XXXX | H130: =IF('[3]Tasa de Falla'!IR130=0,"",'[3]Tasa de Falla'!IR130) -> XXXX | I130: =IF('[3]Tasa de Falla'!IS130=0,"",'[3]Tasa de Falla'!IS130) ->  | J130: =IF('[3]Tasa de Falla'!IT130=0,"",'[3]Tasa de Falla'!IT130) ->  | K130: =IF('[3]Tasa de Falla'!IU130=0,"",'[3]Tasa de Falla'!IU130) ->  | L130: =IF('[3]Tasa de Falla'!IV130=0,"",'[3]Tasa de Falla'!IV130) ->  | M130: =IF('[3]Tasa de Falla'!IW130=0,"",'[3]Tasa de Falla'!IW130) ->  | N130: =IF('[3]Tasa de Falla'!IX130=0,"",'[3]Tasa de Falla'!IX130) ->  | O130: =IF('[3]Tasa de Falla'!IY130=0,"",'[3]Tasa de Falla'!IY130) ->  | P130: =IF('[3]Tasa de Falla'!IZ130=0,"",'[3]Tasa de Falla'!IZ130) ->  | Q130: =IF('[3]Tasa de Falla'!JA130=0,"",'[3]Tasa de Falla'!JA130) ->  | R130: =IF('[3]Tasa de Falla'!JB130=0,"",'[3]Tasa de Falla'!JB130) -> 
C131: ='[3]Tasa de Falla'!C131 -> 114 | D131: ='[3]Tasa de Falla'!D131 -> QUIMILI - CAMPO GALLO 132 1 | E131: ='[3]Tasa de Falla'!E131 -> 132 | F131: ='[3]Tasa de Falla'!F131 -> 140 | G131: =IF('[3]Tasa de Falla'!IQ131=0,"",'[3]Tasa de Falla'!IQ131) -> XXXX | H131: =IF('[3]Tasa de Falla'!IR131=0,"",'[3]Tasa de Falla'!IR131) -> XXXX | I131: =IF('[3]Tasa de Falla'!IS131=0,"",'[3]Tasa de Falla'!IS131) -> XXXX | J131: =IF('[3]Tasa de Falla'!IT131=0,"",'[3]Tasa de Falla'!IT131) ->  | K131: =IF('[3]Tasa de Falla'!IU131=0,"",'[3]Tasa de Falla'!IU131) ->  | L131: =IF('[3]Tasa de Falla'!IV131=0,"",'[3]Tasa de Falla'!IV131) ->  | M131: =IF('[3]Tasa de Falla'!IW131=0,"",'[3]Tasa de Falla'!IW131) ->  | N131: =IF('[3]Tasa de Falla'!IX131=0,"",'[3]Tasa de Falla'!IX131) ->  | O131: =IF('[3]Tasa de Falla'!IY131=0,"",'[3]Tasa de Falla'!IY131) ->  | P131: =IF('[3]Tasa de Falla'!IZ131=0,"",'[3]Tasa de Falla'!IZ131) ->  | Q131: =IF('[3]Tasa de Falla'!JA131=0,"",'[3]Tasa de Falla'!JA131) ->  | R131: =IF('[3]Tasa de Falla'!JB131=0,"",'[3]Tasa de Falla'!JB131) -> 
C132: ='[3]Tasa de Falla'!C132 -> 115 | D132: ='[3]Tasa de Falla'!D132 -> CAMPO GALLO - COPO 132 1 | E132: ='[3]Tasa de Falla'!E132 -> 132 | F132: ='[3]Tasa de Falla'!F132 -> 90 | G132: =IF('[3]Tasa de Falla'!IQ132=0,"",'[3]Tasa de Falla'!IQ132) -> XXXX | H132: =IF('[3]Tasa de Falla'!IR132=0,"",'[3]Tasa de Falla'!IR132) -> XXXX | I132: =IF('[3]Tasa de Falla'!IS132=0,"",'[3]Tasa de Falla'!IS132) -> XXXX | J132: =IF('[3]Tasa de Falla'!IT132=0,"",'[3]Tasa de Falla'!IT132) ->  | K132: =IF('[3]Tasa de Falla'!IU132=0,"",'[3]Tasa de Falla'!IU132) ->  | L132: =IF('[3]Tasa de Falla'!IV132=0,"",'[3]Tasa de Falla'!IV132) ->  | M132: =IF('[3]Tasa de Falla'!IW132=0,"",'[3]Tasa de Falla'!IW132) ->  | N132: =IF('[3]Tasa de Falla'!IX132=0,"",'[3]Tasa de Falla'!IX132) ->  | O132: =IF('[3]Tasa de Falla'!IY132=0,"",'[3]Tasa de Falla'!IY132) ->  | P132: =IF('[3]Tasa de Falla'!IZ132=0,"",'[3]Tasa de Falla'!IZ132) ->  | Q132: =IF('[3]Tasa de Falla'!JA132=0,"",'[3]Tasa de Falla'!JA132) ->  | R132: =IF('[3]Tasa de Falla'!JB132=0,"",'[3]Tasa de Falla'!JB132) -> 
C133: ='[3]Tasa de Falla'!C133 -> 116 | D133: ='[3]Tasa de Falla'!D133 -> PICHANAL - SENDA HACHADA 132 1 | E133: ='[3]Tasa de Falla'!E133 -> 132 | F133: ='[3]Tasa de Falla'!F133 -> 46.5 | G133: =IF('[3]Tasa de Falla'!IQ133=0,"",'[3]Tasa de Falla'!IQ133) -> XXXX | H133: =IF('[3]Tasa de Falla'!IR133=0,"",'[3]Tasa de Falla'!IR133) -> XXXX | I133: =IF('[3]Tasa de Falla'!IS133=0,"",'[3]Tasa de Falla'!IS133) -> XXXX | J133: =IF('[3]Tasa de Falla'!IT133=0,"",'[3]Tasa de Falla'!IT133) -> XXXX | K133: =IF('[3]Tasa de Falla'!IU133=0,"",'[3]Tasa de Falla'!IU133) -> XXXX | L133: =IF('[3]Tasa de Falla'!IV133=0,"",'[3]Tasa de Falla'!IV133) ->  | M133: =IF('[3]Tasa de Falla'!IW133=0,"",'[3]Tasa de Falla'!IW133) ->  | N133: =IF('[3]Tasa de Falla'!IX133=0,"",'[3]Tasa de Falla'!IX133) ->  | O133: =IF('[3]Tasa de Falla'!IY133=0,"",'[3]Tasa de Falla'!IY133) ->  | P133: =IF('[3]Tasa de Falla'!IZ133=0,"",'[3]Tasa de Falla'!IZ133) ->  | Q133: =IF('[3]Tasa de Falla'!JA133=0,"",'[3]Tasa de Falla'!JA133) ->  | R133: =IF('[3]Tasa de Falla'!JB133=0,"",'[3]Tasa de Falla'!JB133) -> 
C134: ='[3]Tasa de Falla'!C134 -> 117 | D134: ='[3]Tasa de Falla'!D134 -> SENDA HACHADA - TARTAGAL 132 1 | E134: ='[3]Tasa de Falla'!E134 -> 132 | F134: ='[3]Tasa de Falla'!F134 -> 58.5 | G134: =IF('[3]Tasa de Falla'!IQ134=0,"",'[3]Tasa de Falla'!IQ134) -> XXXX | H134: =IF('[3]Tasa de Falla'!IR134=0,"",'[3]Tasa de Falla'!IR134) -> XXXX | I134: =IF('[3]Tasa de Falla'!IS134=0,"",'[3]Tasa de Falla'!IS134) -> XXXX | J134: =IF('[3]Tasa de Falla'!IT134=0,"",'[3]Tasa de Falla'!IT134) -> XXXX | K134: =IF('[3]Tasa de Falla'!IU134=0,"",'[3]Tasa de Falla'!IU134) -> XXXX | L134: =IF('[3]Tasa de Falla'!IV134=0,"",'[3]Tasa de Falla'!IV134) ->  | M134: =IF('[3]Tasa de Falla'!IW134=0,"",'[3]Tasa de Falla'!IW134) ->  | N134: =IF('[3]Tasa de Falla'!IX134=0,"",'[3]Tasa de Falla'!IX134) ->  | O134: =IF('[3]Tasa de Falla'!IY134=0,"",'[3]Tasa de Falla'!IY134) ->  | P134: =IF('[3]Tasa de Falla'!IZ134=0,"",'[3]Tasa de Falla'!IZ134) ->  | Q134: =IF('[3]Tasa de Falla'!JA134=0,"",'[3]Tasa de Falla'!JA134) ->  | R134: =IF('[3]Tasa de Falla'!JB134=0,"",'[3]Tasa de Falla'!JB134) -> 
C135: ='[3]Tasa de Falla'!C135 -> 118 | D135: ='[3]Tasa de Falla'!D135 -> ESTATICA - INDEPENDENCIA.TUC. 132 2 | E135: ='[3]Tasa de Falla'!E135 -> 132 | F135: ='[3]Tasa de Falla'!F135 -> 3.1 | G135: =IF('[3]Tasa de Falla'!IQ135=0,"",'[3]Tasa de Falla'!IQ135) -> XXXX | H135: =IF('[3]Tasa de Falla'!IR135=0,"",'[3]Tasa de Falla'!IR135) -> XXXX | I135: =IF('[3]Tasa de Falla'!IS135=0,"",'[3]Tasa de Falla'!IS135) -> XXXX | J135: =IF('[3]Tasa de Falla'!IT135=0,"",'[3]Tasa de Falla'!IT135) -> XXXX | K135: =IF('[3]Tasa de Falla'!IU135=0,"",'[3]Tasa de Falla'!IU135) -> XXXX | L135: =IF('[3]Tasa de Falla'!IV135=0,"",'[3]Tasa de Falla'!IV135) -> XXXX | M135: =IF('[3]Tasa de Falla'!IW135=0,"",'[3]Tasa de Falla'!IW135) -> XXXX | N135: =IF('[3]Tasa de Falla'!IX135=0,"",'[3]Tasa de Falla'!IX135) ->  | O135: =IF('[3]Tasa de Falla'!IY135=0,"",'[3]Tasa de Falla'!IY135) ->  | P135: =IF('[3]Tasa de Falla'!IZ135=0,"",'[3]Tasa de Falla'!IZ135) -> 1 | Q135: =IF('[3]Tasa de Falla'!JA135=0,"",'[3]Tasa de Falla'!JA135) ->  | R135: =IF('[3]Tasa de Falla'!JB135=0,"",'[3]Tasa de Falla'!JB135) -> 
C136: ='[3]Tasa de Falla'!C136 -> 119 | D136: ='[3]Tasa de Falla'!D136 -> SENDA HACHADA - DRAGONES 132 1 | E136: ='[3]Tasa de Falla'!E136 -> 132 | F136: ='[3]Tasa de Falla'!F136 -> 65 | G136: =IF('[3]Tasa de Falla'!IQ136=0,"",'[3]Tasa de Falla'!IQ136) -> XXXX | H136: =IF('[3]Tasa de Falla'!IR136=0,"",'[3]Tasa de Falla'!IR136) -> XXXX | I136: =IF('[3]Tasa de Falla'!IS136=0,"",'[3]Tasa de Falla'!IS136) -> XXXX | J136: =IF('[3]Tasa de Falla'!IT136=0,"",'[3]Tasa de Falla'!IT136) -> XXXX | K136: =IF('[3]Tasa de Falla'!IU136=0,"",'[3]Tasa de Falla'!IU136) -> XXXX | L136: =IF('[3]Tasa de Falla'!IV136=0,"",'[3]Tasa de Falla'!IV136) -> XXXX | M136: =IF('[3]Tasa de Falla'!IW136=0,"",'[3]Tasa de Falla'!IW136) -> XXXX | N136: =IF('[3]Tasa de Falla'!IX136=0,"",'[3]Tasa de Falla'!IX136) -> XXXX | O136: =IF('[3]Tasa de Falla'!IY136=0,"",'[3]Tasa de Falla'!IY136) -> XXXX | P136: =IF('[3]Tasa de Falla'!IZ136=0,"",'[3]Tasa de Falla'!IZ136) -> XXXX | Q136: =IF('[3]Tasa de Falla'!JA136=0,"",'[3]Tasa de Falla'!JA136) -> XXXX | R136: =IF('[3]Tasa de Falla'!JB136=0,"",'[3]Tasa de Falla'!JB136) -> XXXX
C137: ='[3]Tasa de Falla'!C137 -> 120 | D137: ='[3]Tasa de Falla'!D137 -> COBOS - SALTA ESTE 132 1 | E137: ='[3]Tasa de Falla'!E137 -> 132 | F137: ='[3]Tasa de Falla'!F137 -> 45.6 | G137: =IF('[3]Tasa de Falla'!IQ137=0,"",'[3]Tasa de Falla'!IQ137) -> XXXX | H137: =IF('[3]Tasa de Falla'!IR137=0,"",'[3]Tasa de Falla'!IR137) -> XXXX | I137: =IF('[3]Tasa de Falla'!IS137=0,"",'[3]Tasa de Falla'!IS137) -> XXXX | J137: =IF('[3]Tasa de Falla'!IT137=0,"",'[3]Tasa de Falla'!IT137) -> XXXX | K137: =IF('[3]Tasa de Falla'!IU137=0,"",'[3]Tasa de Falla'!IU137) -> XXXX | L137: =IF('[3]Tasa de Falla'!IV137=0,"",'[3]Tasa de Falla'!IV137) -> XXXX | M137: =IF('[3]Tasa de Falla'!IW137=0,"",'[3]Tasa de Falla'!IW137) -> XXXX | N137: =IF('[3]Tasa de Falla'!IX137=0,"",'[3]Tasa de Falla'!IX137) ->  | O137: =IF('[3]Tasa de Falla'!IY137=0,"",'[3]Tasa de Falla'!IY137) -> 1 | P137: =IF('[3]Tasa de Falla'!IZ137=0,"",'[3]Tasa de Falla'!IZ137) ->  | Q137: =IF('[3]Tasa de Falla'!JA137=0,"",'[3]Tasa de Falla'!JA137) ->  | R137: =IF('[3]Tasa de Falla'!JB137=0,"",'[3]Tasa de Falla'!JB137) -> 
C138: ='[3]Tasa de Falla'!C138 -> 121 | D138: ='[3]Tasa de Falla'!D138 -> SANTIAGO - SANTIAGO SUR | E138: ='[3]Tasa de Falla'!E138 -> 132 | F138: ='[3]Tasa de Falla'!F138 -> 8.4 | G138: =IF('[3]Tasa de Falla'!IQ138=0,"",'[3]Tasa de Falla'!IQ138) -> XXXX | H138: =IF('[3]Tasa de Falla'!IR138=0,"",'[3]Tasa de Falla'!IR138) -> XXXX | I138: =IF('[3]Tasa de Falla'!IS138=0,"",'[3]Tasa de Falla'!IS138) -> XXXX | J138: =IF('[3]Tasa de Falla'!IT138=0,"",'[3]Tasa de Falla'!IT138) -> XXXX | K138: =IF('[3]Tasa de Falla'!IU138=0,"",'[3]Tasa de Falla'!IU138) -> XXXX | L138: =IF('[3]Tasa de Falla'!IV138=0,"",'[3]Tasa de Falla'!IV138) -> XXXX | M138: =IF('[3]Tasa de Falla'!IW138=0,"",'[3]Tasa de Falla'!IW138) -> XXXX | N138: =IF('[3]Tasa de Falla'!IX138=0,"",'[3]Tasa de Falla'!IX138) -> XXXX | O138: =IF('[3]Tasa de Falla'!IY138=0,"",'[3]Tasa de Falla'!IY138) ->  | P138: =IF('[3]Tasa de Falla'!IZ138=0,"",'[3]Tasa de Falla'!IZ138) ->  | Q138: =IF('[3]Tasa de Falla'!JA138=0,"",'[3]Tasa de Falla'!JA138) ->  | R138: =IF('[3]Tasa de Falla'!JB138=0,"",'[3]Tasa de Falla'!JB138) -> 
C139: ='[3]Tasa de Falla'!C139 -> 122 | D139: ='[3]Tasa de Falla'!D139 -> SANTIAGO OESTE - SANTIAGO | E139: ='[3]Tasa de Falla'!E139 -> 132 | F139: ='[3]Tasa de Falla'!F139 -> 8.4 | G139: =IF('[3]Tasa de Falla'!IQ139=0,"",'[3]Tasa de Falla'!IQ139) -> XXXX | H139: =IF('[3]Tasa de Falla'!IR139=0,"",'[3]Tasa de Falla'!IR139) -> XXXX | I139: =IF('[3]Tasa de Falla'!IS139=0,"",'[3]Tasa de Falla'!IS139) -> XXXX | J139: =IF('[3]Tasa de Falla'!IT139=0,"",'[3]Tasa de Falla'!IT139) -> XXXX | K139: =IF('[3]Tasa de Falla'!IU139=0,"",'[3]Tasa de Falla'!IU139) -> XXXX | L139: =IF('[3]Tasa de Falla'!IV139=0,"",'[3]Tasa de Falla'!IV139) -> XXXX | M139: =IF('[3]Tasa de Falla'!IW139=0,"",'[3]Tasa de Falla'!IW139) -> XXXX | N139: =IF('[3]Tasa de Falla'!IX139=0,"",'[3]Tasa de Falla'!IX139) -> XXXX | O139: =IF('[3]Tasa de Falla'!IY139=0,"",'[3]Tasa de Falla'!IY139) -> XXXX | P139: =IF('[3]Tasa de Falla'!IZ139=0,"",'[3]Tasa de Falla'!IZ139) -> XXXX | Q139: =IF('[3]Tasa de Falla'!JA139=0,"",'[3]Tasa de Falla'!JA139) -> XXXX | R139: =IF('[3]Tasa de Falla'!JB139=0,"",'[3]Tasa de Falla'!JB139) -> XXXX
C140: ='[3]Tasa de Falla'!C140 -> 123 | D140: ='[3]Tasa de Falla'!D140 -> LA BANDA - MISQUI MAYU II - SANTIAGO ESTE | E140: ='[3]Tasa de Falla'!E140 -> 132 | F140: ='[3]Tasa de Falla'!F140 -> 4.92 | G140: =IF('[3]Tasa de Falla'!IQ140=0,"",'[3]Tasa de Falla'!IQ140) -> XXXX | H140: =IF('[3]Tasa de Falla'!IR140=0,"",'[3]Tasa de Falla'!IR140) -> XXXX | I140: =IF('[3]Tasa de Falla'!IS140=0,"",'[3]Tasa de Falla'!IS140) -> XXXX | J140: =IF('[3]Tasa de Falla'!IT140=0,"",'[3]Tasa de Falla'!IT140) -> XXXX | K140: =IF('[3]Tasa de Falla'!IU140=0,"",'[3]Tasa de Falla'!IU140) -> XXXX | L140: =IF('[3]Tasa de Falla'!IV140=0,"",'[3]Tasa de Falla'!IV140) -> XXXX | M140: =IF('[3]Tasa de Falla'!IW140=0,"",'[3]Tasa de Falla'!IW140) -> XXXX | N140: =IF('[3]Tasa de Falla'!IX140=0,"",'[3]Tasa de Falla'!IX140) -> XXXX | O140: =IF('[3]Tasa de Falla'!IY140=0,"",'[3]Tasa de Falla'!IY140) ->  | P140: =IF('[3]Tasa de Falla'!IZ140=0,"",'[3]Tasa de Falla'!IZ140) ->  | Q140: =IF('[3]Tasa de Falla'!JA140=0,"",'[3]Tasa de Falla'!JA140) ->  | R140: =IF('[3]Tasa de Falla'!JB140=0,"",'[3]Tasa de Falla'!JB140) -> 1
C141: ='[3]Tasa de Falla'!C141 -> 124 | D141: ='[3]Tasa de Falla'!D141 -> CABRA CORRAL - GUACHIPAS - PAMPA GRANDE | E141: ='[3]Tasa de Falla'!E141 -> 132 | F141: ='[3]Tasa de Falla'!F141 -> 72.1 | G141: =IF('[3]Tasa de Falla'!IQ141=0,"",'[3]Tasa de Falla'!IQ141) -> XXXX | H141: =IF('[3]Tasa de Falla'!IR141=0,"",'[3]Tasa de Falla'!IR141) -> XXXX | I141: =IF('[3]Tasa de Falla'!IS141=0,"",'[3]Tasa de Falla'!IS141) -> XXXX | J141: =IF('[3]Tasa de Falla'!IT141=0,"",'[3]Tasa de Falla'!IT141) -> XXXX | K141: =IF('[3]Tasa de Falla'!IU141=0,"",'[3]Tasa de Falla'!IU141) -> XXXX | L141: =IF('[3]Tasa de Falla'!IV141=0,"",'[3]Tasa de Falla'!IV141) -> XXXX | M141: =IF('[3]Tasa de Falla'!IW141=0,"",'[3]Tasa de Falla'!IW141) -> XXXX | N141: =IF('[3]Tasa de Falla'!IX141=0,"",'[3]Tasa de Falla'!IX141) -> XXXX | O141: =IF('[3]Tasa de Falla'!IY141=0,"",'[3]Tasa de Falla'!IY141) -> XXXX | P141: =IF('[3]Tasa de Falla'!IZ141=0,"",'[3]Tasa de Falla'!IZ141) -> XXXX | Q141: =IF('[3]Tasa de Falla'!JA141=0,"",'[3]Tasa de Falla'!JA141) -> XXXX | R141: =IF('[3]Tasa de Falla'!JB141=0,"",'[3]Tasa de Falla'!JB141) -> XXXX
C142: ='[3]Tasa de Falla'!C142 -> 125 | D142: ='[3]Tasa de Falla'!D142 -> EL TABACAL - PI. TABACAL II - ORAN | E142: ='[3]Tasa de Falla'!E142 -> 132 | F142: ='[3]Tasa de Falla'!F142 -> 12.04 | G142: =IF('[3]Tasa de Falla'!IQ142=0,"",'[3]Tasa de Falla'!IQ142) -> XXXX | H142: =IF('[3]Tasa de Falla'!IR142=0,"",'[3]Tasa de Falla'!IR142) -> XXXX | I142: =IF('[3]Tasa de Falla'!IS142=0,"",'[3]Tasa de Falla'!IS142) -> XXXX | J142: =IF('[3]Tasa de Falla'!IT142=0,"",'[3]Tasa de Falla'!IT142) -> XXXX | K142: =IF('[3]Tasa de Falla'!IU142=0,"",'[3]Tasa de Falla'!IU142) -> XXXX | L142: =IF('[3]Tasa de Falla'!IV142=0,"",'[3]Tasa de Falla'!IV142) -> XXXX | M142: =IF('[3]Tasa de Falla'!IW142=0,"",'[3]Tasa de Falla'!IW142) -> XXXX | N142: =IF('[3]Tasa de Falla'!IX142=0,"",'[3]Tasa de Falla'!IX142) -> XXXX | O142: =IF('[3]Tasa de Falla'!IY142=0,"",'[3]Tasa de Falla'!IY142) -> XXXX | P142: =IF('[3]Tasa de Falla'!IZ142=0,"",'[3]Tasa de Falla'!IZ142) -> XXXX | Q142: =IF('[3]Tasa de Falla'!JA142=0,"",'[3]Tasa de Falla'!JA142) -> XXXX | R142: =IF('[3]Tasa de Falla'!JB142=0,"",'[3]Tasa de Falla'!JB142) -> XXXX
C143: ='[3]Tasa de Falla'!C143 -> 126 | D143: ='[3]Tasa de Falla'!D143 -> GUEMES - CAMPO SANTO - MINETTI | E143: ='[3]Tasa de Falla'!E143 -> 132 | F143: ='[3]Tasa de Falla'!F143 -> 41.8 | G143: =IF('[3]Tasa de Falla'!IQ143=0,"",'[3]Tasa de Falla'!IQ143) ->  | H143: =IF('[3]Tasa de Falla'!IR143=0,"",'[3]Tasa de Falla'!IR143) ->  | I143: =IF('[3]Tasa de Falla'!IS143=0,"",'[3]Tasa de Falla'!IS143) ->  | J143: =IF('[3]Tasa de Falla'!IT143=0,"",'[3]Tasa de Falla'!IT143) ->  | K143: =IF('[3]Tasa de Falla'!IU143=0,"",'[3]Tasa de Falla'!IU143) ->  | L143: =IF('[3]Tasa de Falla'!IV143=0,"",'[3]Tasa de Falla'!IV143) ->  | M143: =IF('[3]Tasa de Falla'!IW143=0,"",'[3]Tasa de Falla'!IW143) -> 2 | N143: =IF('[3]Tasa de Falla'!IX143=0,"",'[3]Tasa de Falla'!IX143) -> 3 | O143: =IF('[3]Tasa de Falla'!IY143=0,"",'[3]Tasa de Falla'!IY143) ->  | P143: =IF('[3]Tasa de Falla'!IZ143=0,"",'[3]Tasa de Falla'!IZ143) ->  | Q143: =IF('[3]Tasa de Falla'!JA143=0,"",'[3]Tasa de Falla'!JA143) -> 1 | R143: =IF('[3]Tasa de Falla'!JB143=0,"",'[3]Tasa de Falla'!JB143) -> 1
C144: ='[3]Tasa de Falla'!C144 -> 127 | D144: ='[3]Tasa de Falla'!D144 -> GUEMES - CAMPO SANTO - PARQUE IND. | E144: ='[3]Tasa de Falla'!E144 -> 132 | F144: ='[3]Tasa de Falla'!F144 -> 38.86 | G144: =IF('[3]Tasa de Falla'!IQ144=0,"",'[3]Tasa de Falla'!IQ144) ->  | H144: =IF('[3]Tasa de Falla'!IR144=0,"",'[3]Tasa de Falla'!IR144) ->  | I144: =IF('[3]Tasa de Falla'!IS144=0,"",'[3]Tasa de Falla'!IS144) ->  | J144: =IF('[3]Tasa de Falla'!IT144=0,"",'[3]Tasa de Falla'!IT144) ->  | K144: =IF('[3]Tasa de Falla'!IU144=0,"",'[3]Tasa de Falla'!IU144) ->  | L144: =IF('[3]Tasa de Falla'!IV144=0,"",'[3]Tasa de Falla'!IV144) ->  | M144: =IF('[3]Tasa de Falla'!IW144=0,"",'[3]Tasa de Falla'!IW144) ->  | N144: =IF('[3]Tasa de Falla'!IX144=0,"",'[3]Tasa de Falla'!IX144) ->  | O144: =IF('[3]Tasa de Falla'!IY144=0,"",'[3]Tasa de Falla'!IY144) ->  | P144: =IF('[3]Tasa de Falla'!IZ144=0,"",'[3]Tasa de Falla'!IZ144) ->  | Q144: =IF('[3]Tasa de Falla'!JA144=0,"",'[3]Tasa de Falla'!JA144) ->  | R144: =IF('[3]Tasa de Falla'!JB144=0,"",'[3]Tasa de Falla'!JB144) -> 
C145: ='[3]Tasa de Falla'!C145 -> 128 | D145: ='[3]Tasa de Falla'!D145 -> SANTIAGO CENTRO - MISQUI MAYU I - SANTIAGO ESTE | E145: ='[3]Tasa de Falla'!E145 -> 132 | F145: ='[3]Tasa de Falla'!F145 -> 10.66 | G145: =IF('[3]Tasa de Falla'!IQ145=0,"",'[3]Tasa de Falla'!IQ145) -> XXXX | H145: =IF('[3]Tasa de Falla'!IR145=0,"",'[3]Tasa de Falla'!IR145) -> XXXX | I145: =IF('[3]Tasa de Falla'!IS145=0,"",'[3]Tasa de Falla'!IS145) -> XXXX | J145: =IF('[3]Tasa de Falla'!IT145=0,"",'[3]Tasa de Falla'!IT145) -> XXXX | K145: =IF('[3]Tasa de Falla'!IU145=0,"",'[3]Tasa de Falla'!IU145) -> XXXX | L145: =IF('[3]Tasa de Falla'!IV145=0,"",'[3]Tasa de Falla'!IV145) -> XXXX | M145: =IF('[3]Tasa de Falla'!IW145=0,"",'[3]Tasa de Falla'!IW145) -> XXXX | N145: =IF('[3]Tasa de Falla'!IX145=0,"",'[3]Tasa de Falla'!IX145) -> XXXX | O145: =IF('[3]Tasa de Falla'!IY145=0,"",'[3]Tasa de Falla'!IY145) ->  | P145: =IF('[3]Tasa de Falla'!IZ145=0,"",'[3]Tasa de Falla'!IZ145) ->  | Q145: =IF('[3]Tasa de Falla'!JA145=0,"",'[3]Tasa de Falla'!JA145) ->  | R145: =IF('[3]Tasa de Falla'!JB145=0,"",'[3]Tasa de Falla'!JB145) -> 
C146: ='[3]Tasa de Falla'!C146 -> 129 | D146: ='[3]Tasa de Falla'!D146 -> LA RIOJA SUR - PI. PATQUIA 2 | E146: ='[3]Tasa de Falla'!E146 -> 132 | F146: ='[3]Tasa de Falla'!F146 -> 40 | G146: =IF('[3]Tasa de Falla'!IQ146=0,"",'[3]Tasa de Falla'!IQ146) ->  | H146: =IF('[3]Tasa de Falla'!IR146=0,"",'[3]Tasa de Falla'!IR146) ->  | I146: =IF('[3]Tasa de Falla'!IS146=0,"",'[3]Tasa de Falla'!IS146) ->  | J146: =IF('[3]Tasa de Falla'!IT146=0,"",'[3]Tasa de Falla'!IT146) ->  | K146: =IF('[3]Tasa de Falla'!IU146=0,"",'[3]Tasa de Falla'!IU146) ->  | L146: =IF('[3]Tasa de Falla'!IV146=0,"",'[3]Tasa de Falla'!IV146) ->  | M146: =IF('[3]Tasa de Falla'!IW146=0,"",'[3]Tasa de Falla'!IW146) ->  | N146: =IF('[3]Tasa de Falla'!IX146=0,"",'[3]Tasa de Falla'!IX146) ->  | O146: =IF('[3]Tasa de Falla'!IY146=0,"",'[3]Tasa de Falla'!IY146) ->  | P146: =IF('[3]Tasa de Falla'!IZ146=0,"",'[3]Tasa de Falla'!IZ146) ->  | Q146: =IF('[3]Tasa de Falla'!JA146=0,"",'[3]Tasa de Falla'!JA146) ->  | R146: =IF('[3]Tasa de Falla'!JB146=0,"",'[3]Tasa de Falla'!JB146) -> 
C147: ='[3]Tasa de Falla'!C147 -> 130 | D147: ='[3]Tasa de Falla'!D147 -> LA RIOJA SUR - PI. CIRCUNVALACION 1 | E147: ='[3]Tasa de Falla'!E147 -> 132 | F147: ='[3]Tasa de Falla'!F147 -> 41.35 | G147: =IF('[3]Tasa de Falla'!IQ147=0,"",'[3]Tasa de Falla'!IQ147) -> XXXX | H147: =IF('[3]Tasa de Falla'!IR147=0,"",'[3]Tasa de Falla'!IR147) -> XXXX | I147: =IF('[3]Tasa de Falla'!IS147=0,"",'[3]Tasa de Falla'!IS147) -> XXXX | J147: =IF('[3]Tasa de Falla'!IT147=0,"",'[3]Tasa de Falla'!IT147) ->  | K147: =IF('[3]Tasa de Falla'!IU147=0,"",'[3]Tasa de Falla'!IU147) ->  | L147: =IF('[3]Tasa de Falla'!IV147=0,"",'[3]Tasa de Falla'!IV147) ->  | M147: =IF('[3]Tasa de Falla'!IW147=0,"",'[3]Tasa de Falla'!IW147) ->  | N147: =IF('[3]Tasa de Falla'!IX147=0,"",'[3]Tasa de Falla'!IX147) ->  | O147: =IF('[3]Tasa de Falla'!IY147=0,"",'[3]Tasa de Falla'!IY147) ->  | P147: =IF('[3]Tasa de Falla'!IZ147=0,"",'[3]Tasa de Falla'!IZ147) ->  | Q147: =IF('[3]Tasa de Falla'!JA147=0,"",'[3]Tasa de Falla'!JA147) ->  | R147: =IF('[3]Tasa de Falla'!JB147=0,"",'[3]Tasa de Falla'!JB147) -> 
G148: =IF('[3]Tasa de Falla'!IQ148=0,"",'[3]Tasa de Falla'!IQ148) ->  | H148: =IF('[3]Tasa de Falla'!IR148=0,"",'[3]Tasa de Falla'!IR148) ->  | I148: =IF('[3]Tasa de Falla'!IS148=0,"",'[3]Tasa de Falla'!IS148) ->  | J148: =IF('[3]Tasa de Falla'!IT148=0,"",'[3]Tasa de Falla'!IT148) ->  | K148: =IF('[3]Tasa de Falla'!IU148=0,"",'[3]Tasa de Falla'!IU148) ->  | L148: =IF('[3]Tasa de Falla'!IV148=0,"",'[3]Tasa de Falla'!IV148) ->  | M148: =IF('[3]Tasa de Falla'!IW148=0,"",'[3]Tasa de Falla'!IW148) ->  | N148: =IF('[3]Tasa de Falla'!IX148=0,"",'[3]Tasa de Falla'!IX148) ->  | O148: =IF('[3]Tasa de Falla'!IY148=0,"",'[3]Tasa de Falla'!IY148) ->  | P148: =IF('[3]Tasa de Falla'!IZ148=0,"",'[3]Tasa de Falla'!IZ148) ->  | Q148: =IF('[3]Tasa de Falla'!JA148=0,"",'[3]Tasa de Falla'!JA148) ->  | R148: =IF('[3]Tasa de Falla'!JB148=0,"",'[3]Tasa de Falla'!JB148) -> 
E149: Longitud Total | F149: =SUM(F16:F148)-F19-F21-F22-F26-F27-F37-F39-F40-F43-F44-F47-F48-F49-F53-F60-F65-F78-F82-F96-F101-F111 -> 6071.38
F150: Indisponibilidades Forzadas | G150: =SUM(G17:G148) -> 5 | H150: =SUM(H17:H148) -> 17 | I150: =SUM(I17:I148) -> 10 | J150: 19 | K150: 12 | L150: 14 | M150: 15 | N150: 10 | O150: 4 | P150: 11 | Q150: 15 | R150: 6
F151: TASA DE FALLA | G151: =+'[3]Tasa de Falla'!IQ154 -> 3.38 | H151: =+'[3]Tasa de Falla'!IR154 -> 3.2 | I151: =+'[3]Tasa de Falla'!IS154 -> 3.29 | J151: =+'[3]Tasa de Falla'!IT154 -> 2.89 | K151: =+'[3]Tasa de Falla'!IU154 -> 2.57 | L151: =+'[3]Tasa de Falla'!IV154 -> 2.31 | M151: =+'[3]Tasa de Falla'!IW154 -> 2.39 | N151: =+'[3]Tasa de Falla'!IX154 -> 2.4 | O151: =+'[3]Tasa de Falla'!IY154 -> 2.51 | P151: =+'[3]Tasa de Falla'!IZ154 -> 2.26 | Q151: =+'[3]Tasa de Falla'!JA154 -> 2.44 | R151: =+'[3]Tasa de Falla'!JB154 -> 2.61 | S151: =+'[3]Tasa de Falla'!JC154 -> 2.67
C153: XXX | D153: Línea no computada en el mes | I153: TASA DE FALLA | L153: =S151 -> 2.67 | N153: SALIDAS x AÑO / 100 km

Sheet DATO
A1: Mes | B1: Mes | C1: Dia | D1: Año
A2: enero | B2: 01 | C2: 31 | D2: 2006
A3: febrero | B3: 02 | C3: =IF(MOD(E14,4)=0,29,28) -> 28 | D3: =+D2+1 -> 2007
A4: marzo | B4: 03 | C4: 31 | D4: 2008
A5: abril | B5: 04 | C5: 30 | D5: 2009
A6: mayo | B6: 05 | C6: 31 | D6: 2010
A7: junio | B7: 06 | C7: 30 | D7: 2011
A8: julio | B8: 07 | C8: 31 | D8: 2012
A9: agosto | B9: 08 | C9: 31 | D9: 2013
A10: septiembre | B10: 09 | C10: 30 | D10: 2014
A11: octubre | B11: 10 | C11: 31 | D11: 2015
A12: noviembre | B12: 11 | C12: 30
A13: diciembre | B13: 12 | C13: 31 | I13: Total
A14: 10 | B14: 10 | C14: =CELL("CONTENIDO",OFFSET(A1,B14,0)) -> octubre | D14: =CELL("CONTENIDO",OFFSET(C1,B14,0)) -> 31 | E14: =CELL("CONTENIDO",OFFSET(D1,A14,0)) -> 2015 | F14: ="Desde el 01 al " & D14 & " de " & C14 & " de " & E14 -> Desde el 01 al 31 de octubre de 2015 | G14: =CELL("CONTENIDO",OFFSET(B1,B14,0)) -> 10 | H14: =RIGHT(E14,2) -> 15 | I14: B14
B15: ="\\rugor\files\Transporte\Transporte\AA PROCESO AUT ARCHIVOS J\TRANSNOA\" &E14 -> \\rugor\files\Transporte\Transporte\AA PROCESO AUT ARCHIVOS J\TRANSNOA\2015 | G15: ="J"&G14&H14&"NOA" -> J1015NOA
B16: ="\\rugor\files\Transporte\transporte\AA PROCESO AUT\INTERCAMBIO\" &H14&G14 -> \\rugor\files\Transporte\transporte\AA PROCESO AUT\INTERCAMBIO\1510
A17: Hoja | B17: FilaInicio | C17: FilasPlantilla | D17: Columnas | E17: NombreHoja | F17: OrigenDeDatos | G17: Col00 | H17: Col01 | I17: Col02 | J17: Col03 | K17: Col04 | L17: Col05 | M17: Col06 | N17: Col07 | O17: Col08 | P17: Col09 | Q17: Col10 | R17: Col11 | S17: Col12 | T17: Col13 | U17: Col14 | V17: Col15 | W17: FILHTOTAL | X17: COLHTOTAL | Y17: FILHCALC | Z17: COLHCALC | AA17: FILTRANSP | AB17: COLTRANSP | AC17: COL TSAL
A18: MODELO L | B18: 21 | C18: 20 | D18: 11 | E18: ="LI-" & $G$14 -> LI-10 | F18: TRANSNOA_INDISPONIBILIDADES_LINEAS_TRANSNOA.XLS | G18: 3 | H18: 5 | I18: 4 | J18: 6 | K18: 7 | L18: 8 | M18: 0 | N18: 10 | O18: 11 | P18: 14 | Q18: 0 | R18: 26 | S18: 0 | T18: 0 | U18: 0 | V18: 0 | W18: 19 | X18: 10 | Y18: 42 | Z18: 27 | AA18: 19 | AB18: 27 | AC18: 14
A19: MODELO T | B19: 24 | C19: 20 | D19: 13 | E19: ="T-" & $G$14 -> T-10 | F19: TRANSNOA_INDISPONIBILIDADES_TRAFOS_TRANSNOA.XLS | G19: 3 | H19: 5 | I19: 4 | J19: 6 | K19: 7 | L19: 8 | M19: 9 | N19: 11 | O19: 12 | P19: 15 | Q19: 16 | R19: 18 | S19: 28 | T19: 17 | U19: 0 | V19: 0 | W19: 25 | X19: 10 | Y19: 45 | Z19: 29 | AA19: 22 | AB19: 29 | AC19: 15
A20: MODELO S | B20: 23 | C20: 20 | D20: 10 | E20: ="SA-" & $G$14 -> SA-10 | F20: TRANSNOA_INDISPONIBILIDADES_SALIDAS_TRANSNOA.XLS | G20: 3 | H20: 5 | I20: 4 | J20: 6 | K20: 7 | L20: 8 | M20: 10 | N20: 11 | O20: 14 | P20: 15 | Q20: 21 | R20: 0 | S20: 0 | T20: 0 | U20: 0 | V20: 0 | W20: 29 | X20: 10 | Y20: 44 | Z20: 22 | AA20: 21 | AB20: 22 | AC20: 14
A21: MODELO L RIOJA | B21: 21 | C21: 20 | D21: 11 | E21: ="LI-RIOJA-" & $G$14 -> LI-RIOJA-10 | F21: TRANSNOA_INDISPONIBILIDADES_LINEAS_RIOJA.XLS | G21: 3 | H21: 5 | I21: 4 | J21: 6 | K21: 7 | L21: 8 | M21: 0 | N21: 10 | O21: 11 | P21: 14 | Q21: 2 | R21: 26 | S21: 0 | T21: 0 | U21: 0 | V21: 0 | W21: 21 | X21: 10 | Y21: 42 | Z21: 27 | AA21: 19 | AB21: 27 | AC21: 14
A22: MODELO L EDESA | B22: 21 | C22: 20 | D22: 11 | E22: ="LI-EDESA-" & $G$14 -> LI-EDESA-10 | F22: TRANSNOA_INDISPONIBILIDADES_LINEAS_EDESA.XLS | G22: 3 | H22: 5 | I22: 4 | J22: 6 | K22: 7 | L22: 8 | M22: 0 | N22: 10 | O22: 11 | P22: 14 | Q22: 2 | R22: 26 | S22: 0 | T22: 0 | U22: 0 | V22: 0 | W22: 20 | X22: 10 | Y22: 42 | Z22: 27 | AA22: 19 | AB22: 27 | AC22: 14
A23: MODELO T EDESA | B23: 24 | C23: 20 | D23: 13 | E23: ="T-EDESA-" & $G$14 -> T-EDESA-10 | F23: TRANSNOA_INDISPONIBILIDADES_TRAFOS_EDESA.XLS | G23: 3 | H23: 5 | I23: 4 | J23: 6 | K23: 7 | L23: 8 | M23: 9 | N23: 11 | O23: 12 | P23: 15 | Q23: 16 | R23: 18 | S23: 28 | T23: 17 | U23: 0 | V23: 0 | W23: 26 | X23: 10 | Y23: 45 | Z23: 29 | AA23: 22 | AB23: 29 | AC23: 15
A24: MODELO S EDESA | B24: 23 | C24: 20 | D24: 10 | E24: ="SA-EDESA-" & $G$14 -> SA-EDESA-10 | F24: TRANSNOA_INDISPONIBILIDADES_SALIDAS_EDESA.XLS | G24: 3 | H24: 5 | I24: 4 | J24: 6 | K24: 7 | L24: 8 | M24: 10 | N24: 11 | O24: 14 | P24: 15 | Q24: 21 | R24: 0 | S24: 0 | T24: 0 | U24: 0 | V24: 0 | W24: 30 | X24: 10 | Y24: 44 | Z24: 22 | AA24: 21 | AB24: 22 | AC24: 14
A25: MODELO VST | B25: 19 | C25: 24 | D25: 4 | E25: ="CAUSAS-VST-" & $G$14 -> CAUSAS-VST-10 | F25: TRANSNOA_CAUSAS_VST.XLS | G25: 3 | H25: 4 | I25: 5 | J25: 6 | K25: 7 | L25: 0 | M25: 0 | N25: 0 | O25: 0 | P25: 0 | Q25: 0 | R25: 0 | S25: 0 | T25: 0 | U25: 0 | V25: 0 | W25: 999 | X25: 999 | Y25: 0 | Z25: 0 | AA25: 0 | AB25: 0 | AC25: 0
